Body Name,Body,Service Label,Service Code,Service Division Label,Service Division Code,Expenditure Category,Expenditure Code,CIPFA Detailed Expenditure Type,CIPFA Detailed Expenditure Code,Date,Transaction Number,CC 43 TBM Section,CCN 43 TBM Section,Net Amount,Capital and Revenue,Creditor Name
Brighton & Hove City Council,http://statistics.data.gov.uk/id/local-authority/00ML,Cultural and Related Serv,BVACUL,Culture and Heritage,CHG,Customer n Client Receipts,M,Fees n Charges,MB,14/10/2015,PAY00805065,VENU,Venues,-11103.75,Revenue,3A Entertainment Ltd
Brighton & Hove City Council,http://statistics.data.gov.uk/id/local-authority/00ML,Cultural and Related Serv,BVACUL,Culture and Heritage,CHG,Customer n Client Receipts,M,Sales,MA,14/10/2015,PAY00805065,VENU,Venues,100526.66,Revenue,3A Entertainment Ltd
Brighton & Hove City Council,http://statistics.data.gov.uk/id/local-authority/00ML,Cultural and Related Serv,BVACUL,Culture and Heritage,CHG,Supplies and Services,E,Communications n Computing,EH,14/10/2015,PAY00805065,VENU,Venues,-21.75,Revenue,3A Entertainment Ltd
Brighton & Hove City Council,http://statistics.data.gov.uk/id/local-authority/00ML,Cultural and Related Serv,BVACUL,Culture and Heritage,CHG,Supplies and Services,E,Equip't Furniture n Materials,EA,14/10/2015,PAY00805065,VENU,Venues,-144.00,Revenue,3A Entertainment Ltd
Brighton & Hove City Council,http://statistics.data.gov.uk/id/local-authority/00ML,Cultural and Related Serv,BVACUL,Culture and Heritage,CHG,Supplies and Services,E,Miscellaneous Expenses,EM,14/10/2015,PAY00805065,VENU,Venues,-3853.90,Revenue,3A Entertainment Ltd
Brighton & Hove City Council,http://statistics.data.gov.uk/id/local-authority/00ML,Non I&E,BVANON,CAP Sport and Recreation,4RC,Plant Machinery n Equipment,PE2,Plant Machinery n Equipment,PE2L5,02/10/2015,PAY00803033,MJPR,Major Projects,395.00,Capital,5 Rings Telecom Ltd
Brighton & Hove City Council,http://statistics.data.gov.uk/id/local-authority/00ML,Non I&E,BVANON,CAP Sport and Recreation,4RC,Plant Machinery n Equipment,PE2,Plant Machinery n Equipment,PE2L5,16/10/2015,PAY00806944,MJPR,Major Projects,400.00,Capital,5 Rings Telecom Ltd
Brighton & Hove City Council,http://statistics.data.gov.uk/id/local-authority/00ML,Non I&E,BVANON,CAP Sport and Recreation,4RC,Plant Machinery n Equipment,PE2,Plant Machinery n Equipment,PE2L5,23/10/2015,PAY00808922,MJPR,Major Projects,784.00,Capital,5 Rings Telecom Ltd
Brighton & Hove City Council,http://statistics.data.gov.uk/id/local-authority/00ML,Non I&E,BVANON,CAP Sport and Recreation,4RC,Plant Machinery n Equipment,PE2,Plant Machinery n Equipment,PE2L5,28/10/2015,PAY00810056,MJPR,Major Projects,794.00,Capital,5 Rings Telecom Ltd
Brighton & Hove City Council,http://statistics.data.gov.uk/id/local-authority/00ML,Housing General Fund,BVAHOG,Homelessness,HML,Premises Related,C,Rents Payable,CC,14/10/2015,PAY00805404,ASSA,Hostel Accommodation,6000.00,Revenue,61 St Aubyns Ltd
Brighton & Hove City Council,http://statistics.data.gov.uk/id/local-authority/00ML,Housing General Fund,BVAHOG,Homelessness,HML,Premises Related,C,Rents Payable,CC,30/10/2015,PAY00811307,ASSA,Hostel Accommodation,6000.00,Revenue,61 St Aubyns Ltd
Brighton & Hove City Council,http://statistics.data.gov.uk/id/local-authority/00ML,Central Support and Overheads,BVACEN,Support Services (SSC),PPT,Premises Related,C,Repair Maint n Alterations,CA,28/10/2015,PAY00809231,PROP,Property and Design,2047.00,Revenue,A J Taylor Electrical Contractors Ltd
Brighton & Hove City Council,http://statistics.data.gov.uk/id/local-authority/00ML,Cultural and Related Serv,BVACUL,Culture and Heritage,CHG,Supplies and Services,E,Services,EF,07/10/2015,PAY00803759,RPMU,Royal Pavilion and Museums,333.34,Revenue,Abacus Training Group Limited
Brighton & Hove City Council,http://statistics.data.gov.uk/id/local-authority/00ML,Adult Social Care,BVASOC,ASC Learning Disabilities,ALD,Customer n Client Receipts,M,Fees n Charges,MB,23/10/2015,PAY00808430,LDIS,Learning Disabilities,-643.60,Revenue,Abbey Care Group Ltd-Saxon Court
Brighton & Hove City Council,http://statistics.data.gov.uk/id/local-authority/00ML,Adult Social Care,BVASOC,ASC Learning Disabilities,ALD,Third Party Payments,F,Other Establishments,FH,23/10/2015,PAY00808430,LDIS,Learning Disabilities,6296.60,Revenue,Abbey Care Group Ltd-Saxon Court
Brighton & Hove City Council,http://statistics.data.gov.uk/id/local-authority/00ML,Non-BHC Organisations,BVANON,Trusts,TRT,Supplies and Services,E,Miscellaneous Expenses,EM,28/10/2015,PAY00810150,NBHC,Non Council,508.98,Revenue,Abbey Upholstery (Leeds) Ltd
Brighton & Hove City Council,http://statistics.data.gov.uk/id/local-authority/00ML,Children`s & Education Serv,BVAEDU,Child Srvcs - Other Fam Supp,FFX,Transfer Payments,G,Other Transfer Payments,GD,16/10/2015,PAY00806571,FAMP,Families\Prevention,225.00,Revenue,abc Translations
Brighton & Hove City Council,http://statistics.data.gov.uk/id/local-authority/00ML,Adult Social Care,BVASOC,ASC Physical Support,PHY,Third Party Payments,F,Other Establishments,FH,21/10/2015,PAY00807505,PHYS,Physical Support,3720.00,Revenue,Abi House
Brighton & Hove City Council,http://statistics.data.gov.uk/id/local-authority/00ML,Adult Social Care,BVASOC,ASC Learning Disabilities,ALD,Customer n Client Receipts,M,Fees n Charges,MB,23/10/2015,PAY00808572,LDIS,Learning Disabilities,-400.60,Revenue,Abi House
Brighton & Hove City Council,http://statistics.data.gov.uk/id/local-authority/00ML,Adult Social Care,BVASOC,ASC Learning Disabilities,ALD,Third Party Payments,F,Other Establishments,FH,23/10/2015,PAY00808572,LDIS,Learning Disabilities,4884.00,Revenue,Abi House
Brighton & Hove City Council,http://statistics.data.gov.uk/id/local-authority/00ML,Adult Social Care,BVASOC,S Svcs Other Adult Services,ADT,Indirect Employees,B,Training,BM,21/10/2015,PAY00807582,ORGD,Organisational Development,1495.00,Revenue,Ability Professional Training
Brighton & Hove City Council,http://statistics.data.gov.uk/id/local-authority/00ML,Housing General Fund,BVAHOG,Hsing Welfare,HGW,Transfer Payments,G,Supporting People,GF,30/10/2015,PAY00810655,AHRS,Housing Related Support,2289.62,Revenue,About Me Care & Support
Brighton & Hove City Council,http://statistics.data.gov.uk/id/local-authority/00ML,Non I&E,BVANON,CAP Housing Services GF,4HG,Capital Grants,PF,Capital Grants,PFL5,28/10/2015,PAY00809885,PSHG,Private Sector Housing,13560.00,Capital,Access Automation Ltd
Brighton & Hove City Council,http://statistics.data.gov.uk/id/local-authority/00ML,Adult Social Care,BVASOC,Assistive Equipment & Tech,AET,Supplies and Services,E,Equip't Furniture n Materials,EA,09/10/2015,PAY00804545,SSCT,S75 SCT,4410.00,Revenue,Accora
Brighton & Hove City Council,http://statistics.data.gov.uk/id/local-authority/00ML,Children`s & Education Serv,BVAEDU,Ed Ed Other LA Attrib Sch,ELA,Transport Related,D,Other Transport Costs,DG,28/10/2015,PAY00809424,OEDS,Other Education Support,1500.00,Revenue,Ace Travel Ltd
Brighton & Hove City Council,http://statistics.data.gov.uk/id/local-authority/00ML,Library Services,BVACUL,Library Service,LBR,Supplies and Services,E,Goods for Resale,EG,16/10/2015,PAY00806667,LIBS,Libraries,425.90,Revenue,Ackerman International Trading Ltd.
Brighton & Hove City Council,http://statistics.data.gov.uk/id/local-authority/00ML,Children`s & Education Serv,BVAEDU,Ed Mgmt and Support Services,EMG,Supplies and Services,E,Communications n Computing,EH,16/10/2015,PAY00805726,MUSE,Music Service,752.50,Revenue,Ackerman Music Ltd
Brighton & Hove City Council,http://statistics.data.gov.uk/id/local-authority/00ML,Adult Social Care,BVASOC,ASC Learning Disabilities,ALD,Customer n Client Receipts,M,Fees n Charges,MB,23/10/2015,PAY00808388,LDIS,Learning Disabilities,-1786.96,Revenue,Acorn (Watford) Ltd
Brighton & Hove City Council,http://statistics.data.gov.uk/id/local-authority/00ML,Adult Social Care,BVASOC,ASC Learning Disabilities,ALD,Third Party Payments,F,Other Establishments,FH,23/10/2015,PAY00808388,LDIS,Learning Disabilities,15329.84,Revenue,Acorn (Watford) Ltd
Brighton & Hove City Council,http://statistics.data.gov.uk/id/local-authority/00ML,Central Support and Overheads,BVACEN,Support Services (SSC),PPT,Premises Related,C,Cleaning n Domestic Supps,CH,21/10/2015,PAY00807569,PROP,Property and Design,1001.65,Revenue,Acorn Environmental
Brighton & Hove City Council,http://statistics.data.gov.uk/id/local-authority/00ML,Children`s & Education Serv,BVAEDU,Child Srvcs - Residential Svcs,FLR,Third Party Payments,F,Other Establishments,FH,07/10/2015,PAY00803744,AVFM,Agency Placements\VFM,14142.90,Revenue,Acorn Homes Uk Ltd
Brighton & Hove City Council,http://statistics.data.gov.uk/id/local-authority/00ML,Non I&E,BVANON,Cap - Housing Services - HRA,4HR,New Construction n Conversion,PB,New Construction n Conversion,PBL5,23/10/2015,PAY00808534,HREG,Head of Regeneration,450.00,Capital,Acoustic Associates
Brighton & Hove City Council,http://statistics.data.gov.uk/id/local-authority/00ML,Adult Social Care,BVASOC,Social Care Activities,ACM,Third Party Payments,F,Other Establishments,FH,23/10/2015,PAY00808769,ASIT,Assessment and SIT,300.00,Revenue,Action Deafness
Brighton & Hove City Council,http://statistics.data.gov.uk/id/local-authority/00ML,Adult Social Care,BVASOC,ASC Physical Support,PHY,Third Party Payments,F,Other Establishments,FH,14/10/2015,PAY00805429,PHYS,Physical Support,7375.00,Revenue,Action First iPeople Ltd
Brighton & Hove City Council,http://statistics.data.gov.uk/id/local-authority/00ML,Adult Social Care,BVASOC,Social Care Activities,ACM,Supplies and Services,E,Services,EF,23/10/2015,PAY00808897,ASIT,Assessment and SIT,4720.00,Revenue,Action First iPeople Ltd
Brighton & Hove City Council,http://statistics.data.gov.uk/id/local-authority/00ML,Adult Social Care,BVASOC,Social Care Activities,ACM,Supplies and Services,E,Services,EF,28/10/2015,PAY00810027,ASIT,Assessment and SIT,666.00,Revenue,Action First iPeople Ltd
Brighton & Hove City Council,http://statistics.data.gov.uk/id/local-authority/00ML,Adult Social Care,BVASOC,ASC Sensory Support,AHV,Customer n Client Receipts,M,Fees n Charges,MB,16/10/2015,PAY00805997,SORY,Sensory Support,-168.00,Revenue,Action on Hearing Loss
Brighton & Hove City Council,http://statistics.data.gov.uk/id/local-authority/00ML,Adult Social Care,BVASOC,ASC Sensory Support,AHV,Third Party Payments,F,Other Establishments,FH,16/10/2015,PAY00805997,SORY,Sensory Support,1037.40,Revenue,Action on Hearing Loss
Brighton & Hove City Council,http://statistics.data.gov.uk/id/local-authority/00ML,Adult Social Care,BVASOC,ASC Physical Support,PHY,Third Party Payments,F,Other Establishments,FH,30/10/2015,PAY00810626,PHYS,Physical Support,1117.20,Revenue,Action on Hearing Loss
Brighton & Hove City Council,http://statistics.data.gov.uk/id/local-authority/00ML,Environment & Regulatory Serv,BVAERS,Agricultural and Fisheries,AGF,Third Party Payments,F,Private Contractors,FJ,14/10/2015,PAY00804970,PROP,Property and Design,29180.00,Revenue,Active Pump Services Limited
Brighton & Hove City Council,http://statistics.data.gov.uk/id/local-authority/00ML,Adult Social Care,BVASOC,ASC Learning Disabilities,ALD,Premises Related,C,Repair Maint n Alterations,CA,09/10/2015,PAY00804483,SUPE,Supported Employment,2031.87,Revenue,AD Colour Ltd
Brighton & Hove City Council,http://statistics.data.gov.uk/id/local-authority/00ML,Adult Social Care,BVASOC,ASC Learning Disabilities,ALD,Supplies and Services,E,Equip't Furniture n Materials,EA,14/10/2015,PAY00805275,SUPE,Supported Employment,234.00,Revenue,AD Colour Ltd
Brighton & Hove City Council,http://statistics.data.gov.uk/id/local-authority/00ML,Non-BHC Organisations,BVANON,Trusts,TRT,Supplies and Services,E,Miscellaneous Expenses,EM,14/10/2015,PAY00804809,NBHC,Non Council,574.18,Revenue,Adams & Remers LLP
Brighton & Hove City Council,http://statistics.data.gov.uk/id/local-authority/00ML,Environment & Regulatory Serv,BVAERS,Street Cleansing,CLE,Transport Related,D,Direct Transport Costs,DA,02/10/2015,PAY00802954,CICL,City Clean,921.80,Revenue,Addex Trading
Brighton & Hove City Council,http://statistics.data.gov.uk/id/local-authority/00ML,Central Support and Overheads,BVACEN,Support Services (SSC),PPT,Supplies and Services,E,Equip't Furniture n Materials,EA,16/10/2015,PAY00806288,COMU,Communications,417.00,Revenue,Addressing & Mailing Solutions Ltd
Brighton & Hove City Council,http://statistics.data.gov.uk/id/local-authority/00ML,Adult Social Care,BVASOC,ASC Physical Support,PHY,Customer n Client Receipts,M,Fees n Charges,MB,23/10/2015,PAY00808530,PHYS,Physical Support,-570.56,Revenue,Adelaide Healthcare Ltd
Brighton & Hove City Council,http://statistics.data.gov.uk/id/local-authority/00ML,Adult Social Care,BVASOC,ASC Physical Support,PHY,Third Party Payments,F,Other Establishments,FH,23/10/2015,PAY00808530,PHYS,Physical Support,2500.68,Revenue,Adelaide Healthcare Ltd
Brighton & Hove City Council,http://statistics.data.gov.uk/id/local-authority/00ML,Central Support and Overheads,BVACEN,Support Services (SSC),PPT,Third Party Payments,F,Other Establishments,FH,09/10/2015,PAY00804214,FINS,Financial Services,4700.80,Revenue,Adelaide Nursing Home
Brighton & Hove City Council,http://statistics.data.gov.uk/id/local-authority/00ML,Adult Social Care,BVASOC,ASC Physical Support,PHY,Customer n Client Receipts,M,Fees n Charges,MB,14/10/2015,PAY00805036,PHYS,Physical Support,-1427.56,Revenue,Adelaide Nursing Home
Brighton & Hove City Council,http://statistics.data.gov.uk/id/local-authority/00ML,Adult Social Care,BVASOC,ASC Physical Support,PHY,Third Party Payments,F,Other Establishments,FH,14/10/2015,PAY00805036,PHYS,Physical Support,4585.98,Revenue,Adelaide Nursing Home
Brighton & Hove City Council,http://statistics.data.gov.uk/id/local-authority/00ML,Central Support and Overheads,BVACEN,Support Services (SSC),PPT,Third Party Payments,F,Other Establishments,FH,14/10/2015,PAY00805036,FINS,Financial Services,-304.00,Revenue,Adelaide Nursing Home
Brighton & Hove City Council,http://statistics.data.gov.uk/id/local-authority/00ML,Adult Social Care,BVASOC,ASC Physical Support,PHY,Customer n Client Receipts,M,Fees n Charges,MB,23/10/2015,PAY00808389,PHYS,Physical Support,-4298.04,Revenue,Adelaide Nursing Home
Brighton & Hove City Council,http://statistics.data.gov.uk/id/local-authority/00ML,Adult Social Care,BVASOC,ASC Physical Support,PHY,Third Party Payments,F,Other Establishments,FH,23/10/2015,PAY00808389,PHYS,Physical Support,33168.80,Revenue,Adelaide Nursing Home
Brighton & Hove City Council,http://statistics.data.gov.uk/id/local-authority/00ML,Adult Social Care,BVASOC,ASC Physical Support,PHY,Customer n Client Receipts,M,Fees n Charges,MB,30/10/2015,PAY00810642,PHYS,Physical Support,-1523.14,Revenue,Adelaide Nursing Home
Brighton & Hove City Council,http://statistics.data.gov.uk/id/local-authority/00ML,Adult Social Care,BVASOC,ASC Physical Support,PHY,Third Party Payments,F,Other Establishments,FH,30/10/2015,PAY00810642,PHYS,Physical Support,6587.13,Revenue,Adelaide Nursing Home
Brighton & Hove City Council,http://statistics.data.gov.uk/id/local-authority/00ML,Central Support and Overheads,BVACEN,Support Services (SSC),PPT,Supplies and Services,E,Communications n Computing,EH,28/10/2015,PAY00810048,ICTA,ICT,338.00,Revenue,Adept Power Solutions Ltd
Brighton & Hove City Council,http://statistics.data.gov.uk/id/local-authority/00ML,Adult Social Care,BVASOC,ASC Learning Disabilities,ALD,Supplies and Services,E,Equip't Furniture n Materials,EA,14/10/2015,PAY00805305,SUPE,Supported Employment,256.00,Revenue,adproducts.com
Brighton & Hove City Council,http://statistics.data.gov.uk/id/local-authority/00ML,Cultural and Related Serv,BVACUL,Culture and Heritage,CHG,Premises Related,C,Repair Maint n Alterations,CA,16/10/2015,PAY00806026,RPMU,Royal Pavilion and Museums,259.00,Revenue,ADT Fire & Security Plc
Brighton & Hove City Council,http://statistics.data.gov.uk/id/local-authority/00ML,Central Support and Overheads,BVACEN,Support Services (SSC),PPT,Supplies and Services,E,Miscellaneous Expenses,EM,28/10/2015,PAY00809227,LEGS,Legal Services,1200.00,Revenue,Advanced Legal Solutions Ltd
Brighton & Hove City Council,http://statistics.data.gov.uk/id/local-authority/00ML,Planning and Development,BVAPLA,Economic Development,ECD,Supplies and Services,E,Grants n Subscriptions,EK,28/10/2015,PAY00809241,CMNY,Communities and Equalities,3250.00,Revenue,Adventure Unlimited
Brighton & Hove City Council,http://statistics.data.gov.uk/id/local-authority/00ML,Environment & Regulatory Serv,BVAERS,Management Services (DEC),MGT,Premises Related,C,Repair Maint n Alterations,CA,21/10/2015,PAY00807229,CICL,City Clean,216.50,Revenue,AE Mechanical Services
Brighton & Hove City Council,http://statistics.data.gov.uk/id/local-authority/00ML,Housing General Fund,BVAHOG,Hsing Welfare,HGW,Transfer Payments,G,Supporting People,GF,02/10/2015,PAY00802469,AHRS,Housing Related Support,7750.00,Revenue,Affinity Sutton Homes Ltd
Brighton & Hove City Council,http://statistics.data.gov.uk/id/local-authority/00ML,Children`s & Education Serv,BVAEDU,Child Srvcs Leaving Care,FAL,Transfer Payments,G,Other Transfer Payments,GD,09/10/2015,PAY00804041,CHIC,Children In Care,872.00,Revenue,Affinity Sutton Homes Ltd
Brighton & Hove City Council,http://statistics.data.gov.uk/id/local-authority/00ML,Adult Social Care,BVASOC,ASC Learning Disabilities,ALD,Premises Related,C,Rents Payable,CC,21/10/2015,PAY00807312,LDAS,LD Accommodation Services,1228.77,Revenue,Affinity Sutton Homes Ltd
Brighton & Hove City Council,http://statistics.data.gov.uk/id/local-authority/00ML,Adult Social Care,BVASOC,ASC Learning Disabilities,ALD,Premises Related,C,Rents Payable,CC,28/10/2015,PAY00809414,RESP,Respite Services,22405.95,Revenue,Affinity Sutton Homes Ltd
Brighton & Hove City Council,http://statistics.data.gov.uk/id/local-authority/00ML,Adult Social Care,BVASOC,ASC Learning Disabilities,ALD,Third Party Payments,F,Other Establishments,FH,30/10/2015,PAY00810454,LDIS,Learning Disabilities,1249.38,Revenue,Affinity Sutton Homes Ltd
Brighton & Hove City Council,http://statistics.data.gov.uk/id/local-authority/00ML,Central Support and Overheads,BVACEN,Support Services (SSC),PPT,Premises Related,C,Rents Payable,CC,30/10/2015,PAY00810454,PROP,Property and Design,1964.34,Revenue,Affinity Sutton Homes Ltd
Brighton & Hove City Council,http://statistics.data.gov.uk/id/local-authority/00ML,Housing General Fund,BVAHOG,Hsing Welfare,HGW,Transfer Payments,G,Supporting People,GF,30/10/2015,PAY00810495,AHRS,Housing Related Support,7750.00,Revenue,Affinity Sutton Homes Ltd
Brighton & Hove City Council,http://statistics.data.gov.uk/id/local-authority/00ML,Children`s & Education Serv,BVAEDU,Child Srvcs Leaving Care,FAL,Transfer Payments,G,Other Transfer Payments,GD,30/10/2015,PAY00811381,CHIC,Children In Care,450.00,Revenue,Affitto Estate Agents
Brighton & Hove City Council,http://statistics.data.gov.uk/id/local-authority/00ML,Adult Social Care,BVASOC,Info & Early Intervention,PRV,Third Party Payments,F,Other Establishments,FH,14/10/2015,PAY00804974,CONT,Contracts,31024.25,Revenue,AgeUK Brighton & Hove
Brighton & Hove City Council,http://statistics.data.gov.uk/id/local-authority/00ML,Central Services to the Public,BVACEN,Support Services (SSC),PPT,Supplies and Services,E,Services,EF,16/10/2015,PAY00806960,REVS,Revenues and Benefits,8394.93,Revenue,Agilisys Contact Services Ltd
Brighton & Hove City Council,http://statistics.data.gov.uk/id/local-authority/00ML,Adult Social Care,BVASOC,ASC Memory Cognition Support,MEM,Customer n Client Receipts,M,Fees n Charges,MB,02/10/2015,PAY00802435,COGN,Memory Cognition Support,-91.00,Revenue,Agincare UK Ltd
Brighton & Hove City Council,http://statistics.data.gov.uk/id/local-authority/00ML,Adult Social Care,BVASOC,ASC Memory Cognition Support,MEM,Third Party Payments,F,Other Establishments,FH,02/10/2015,PAY00802435,COGN,Memory Cognition Support,413.52,Revenue,Agincare UK Ltd
Brighton & Hove City Council,http://statistics.data.gov.uk/id/local-authority/00ML,Adult Social Care,BVASOC,ASC Mental Health Support,MHP,Third Party Payments,F,Other Establishments,FH,02/10/2015,PAY00802435,MENH,Mental Health Support,37.75,Revenue,Agincare UK Ltd
Brighton & Hove City Council,http://statistics.data.gov.uk/id/local-authority/00ML,Adult Social Care,BVASOC,ASC Physical Support,PHY,Customer n Client Receipts,M,Fees n Charges,MB,02/10/2015,PAY00802435,PHYS,Physical Support,-1272.00,Revenue,Agincare UK Ltd
Brighton & Hove City Council,http://statistics.data.gov.uk/id/local-authority/00ML,Adult Social Care,BVASOC,ASC Physical Support,PHY,Third Party Payments,F,Other Establishments,FH,02/10/2015,PAY00802435,PHYS,Physical Support,8673.41,Revenue,Agincare UK Ltd
Brighton & Hove City Council,http://statistics.data.gov.uk/id/local-authority/00ML,Adult Social Care,BVASOC,ASC Memory Cognition Support,MEM,Customer n Client Receipts,M,Fees n Charges,MB,09/10/2015,PAY00804036,COGN,Memory Cognition Support,-273.00,Revenue,Agincare UK Ltd
Brighton & Hove City Council,http://statistics.data.gov.uk/id/local-authority/00ML,Adult Social Care,BVASOC,ASC Memory Cognition Support,MEM,Third Party Payments,F,Other Establishments,FH,09/10/2015,PAY00804036,COGN,Memory Cognition Support,1121.26,Revenue,Agincare UK Ltd
Brighton & Hove City Council,http://statistics.data.gov.uk/id/local-authority/00ML,Adult Social Care,BVASOC,ASC Mental Health Support,MHP,Third Party Payments,F,Other Establishments,FH,09/10/2015,PAY00804036,MENH,Mental Health Support,113.25,Revenue,Agincare UK Ltd
Brighton & Hove City Council,http://statistics.data.gov.uk/id/local-authority/00ML,Adult Social Care,BVASOC,ASC Physical Support,PHY,Customer n Client Receipts,M,Fees n Charges,MB,09/10/2015,PAY00804036,PHYS,Physical Support,-3892.00,Revenue,Agincare UK Ltd
Brighton & Hove City Council,http://statistics.data.gov.uk/id/local-authority/00ML,Adult Social Care,BVASOC,ASC Physical Support,PHY,Third Party Payments,F,Other Establishments,FH,09/10/2015,PAY00804036,PHYS,Physical Support,25959.37,Revenue,Agincare UK Ltd
Brighton & Hove City Council,http://statistics.data.gov.uk/id/local-authority/00ML,Adult Social Care,BVASOC,ASC Sensory Support,AHV,Customer n Client Receipts,M,Fees n Charges,MB,09/10/2015,PAY00804036,SORY,Sensory Support,-105.00,Revenue,Agincare UK Ltd
Brighton & Hove City Council,http://statistics.data.gov.uk/id/local-authority/00ML,Adult Social Care,BVASOC,ASC Sensory Support,AHV,Third Party Payments,F,Other Establishments,FH,09/10/2015,PAY00804036,SORY,Sensory Support,292.13,Revenue,Agincare UK Ltd
Brighton & Hove City Council,http://statistics.data.gov.uk/id/local-authority/00ML,Adult Social Care,BVASOC,ASC Substance Misuse,ADM,Third Party Payments,F,Other Establishments,FH,09/10/2015,PAY00804036,SUBM,Substance Misuse Support,22.65,Revenue,Agincare UK Ltd
Brighton & Hove City Council,http://statistics.data.gov.uk/id/local-authority/00ML,Adult Social Care,BVASOC,ASC Memory Cognition Support,MEM,Customer n Client Receipts,M,Fees n Charges,MB,21/10/2015,PAY00807309,COGN,Memory Cognition Support,-182.00,Revenue,Agincare UK Ltd
Brighton & Hove City Council,http://statistics.data.gov.uk/id/local-authority/00ML,Adult Social Care,BVASOC,ASC Memory Cognition Support,MEM,Third Party Payments,F,Other Establishments,FH,21/10/2015,PAY00807309,COGN,Memory Cognition Support,1040.65,Revenue,Agincare UK Ltd
Brighton & Hove City Council,http://statistics.data.gov.uk/id/local-authority/00ML,Adult Social Care,BVASOC,ASC Mental Health Support,MHP,Third Party Payments,F,Other Establishments,FH,21/10/2015,PAY00807309,MENH,Mental Health Support,75.50,Revenue,Agincare UK Ltd
Brighton & Hove City Council,http://statistics.data.gov.uk/id/local-authority/00ML,Adult Social Care,BVASOC,ASC Physical Support,PHY,Customer n Client Receipts,M,Fees n Charges,MB,21/10/2015,PAY00807309,PHYS,Physical Support,-2478.71,Revenue,Agincare UK Ltd
Brighton & Hove City Council,http://statistics.data.gov.uk/id/local-authority/00ML,Adult Social Care,BVASOC,ASC Physical Support,PHY,Third Party Payments,F,Other Establishments,FH,21/10/2015,PAY00807309,PHYS,Physical Support,17553.57,Revenue,Agincare UK Ltd
Brighton & Hove City Council,http://statistics.data.gov.uk/id/local-authority/00ML,Adult Social Care,BVASOC,ASC Sensory Support,AHV,Customer n Client Receipts,M,Fees n Charges,MB,21/10/2015,PAY00807309,SORY,Sensory Support,-72.00,Revenue,Agincare UK Ltd
Brighton & Hove City Council,http://statistics.data.gov.uk/id/local-authority/00ML,Adult Social Care,BVASOC,ASC Sensory Support,AHV,Third Party Payments,F,Other Establishments,FH,21/10/2015,PAY00807309,SORY,Sensory Support,190.98,Revenue,Agincare UK Ltd
Brighton & Hove City Council,http://statistics.data.gov.uk/id/local-authority/00ML,Adult Social Care,BVASOC,ASC Substance Misuse,ADM,Customer n Client Receipts,M,Fees n Charges,MB,21/10/2015,PAY00807309,SUBM,Substance Misuse Support,-8.00,Revenue,Agincare UK Ltd
Brighton & Hove City Council,http://statistics.data.gov.uk/id/local-authority/00ML,Adult Social Care,BVASOC,ASC Substance Misuse,ADM,Third Party Payments,F,Other Establishments,FH,21/10/2015,PAY00807309,SUBM,Substance Misuse Support,489.93,Revenue,Agincare UK Ltd
Brighton & Hove City Council,http://statistics.data.gov.uk/id/local-authority/00ML,Adult Social Care,BVASOC,ASC Learning Disabilities,ALD,Customer n Client Receipts,M,Fees n Charges,MB,23/10/2015,PAY00808212,LDIS,Learning Disabilities,-2515.80,Revenue,Aitch Care Homes (London) Ltd
Brighton & Hove City Council,http://statistics.data.gov.uk/id/local-authority/00ML,Adult Social Care,BVASOC,ASC Learning Disabilities,ALD,Third Party Payments,F,Other Establishments,FH,23/10/2015,PAY00808212,LDIS,Learning Disabilities,38983.00,Revenue,Aitch Care Homes (London) Ltd
Brighton & Hove City Council,http://statistics.data.gov.uk/id/local-authority/00ML,Adult Social Care,BVASOC,ASC Physical Support,PHY,Customer n Client Receipts,M,Fees n Charges,MB,23/10/2015,PAY00808212,PHYS,Physical Support,-2400.00,Revenue,Aitch Care Homes (London) Ltd
Brighton & Hove City Council,http://statistics.data.gov.uk/id/local-authority/00ML,Adult Social Care,BVASOC,ASC Physical Support,PHY,Third Party Payments,F,Other Establishments,FH,23/10/2015,PAY00808212,PHYS,Physical Support,2400.00,Revenue,Aitch Care Homes (London) Ltd
Brighton & Hove City Council,http://statistics.data.gov.uk/id/local-authority/00ML,Adult Social Care,BVASOC,ASC Learning Disabilities,ALD,Customer n Client Receipts,M,Fees n Charges,MB,30/10/2015,PAY00810459,LDIS,Learning Disabilities,-353.44,Revenue,Aitch Care Homes (London) Ltd
Brighton & Hove City Council,http://statistics.data.gov.uk/id/local-authority/00ML,Adult Social Care,BVASOC,ASC Learning Disabilities,ALD,Third Party Payments,F,Other Establishments,FH,30/10/2015,PAY00810459,LDIS,Learning Disabilities,6288.00,Revenue,Aitch Care Homes (London) Ltd
Brighton & Hove City Council,http://statistics.data.gov.uk/id/local-authority/00ML,Planning and Development,BVAPLA,Economic Development,ECD,Supplies and Services,E,Services,EF,21/10/2015,PAY00807557,SUAI,Sustainability & International,1200.00,Revenue,AJA Registrars Ltd
Brighton & Hove City Council,http://statistics.data.gov.uk/id/local-authority/00ML,Central Support and Overheads,BVACEN,Support Services (SSC),PPT,Indirect Employees,B,Training,BM,07/10/2015,PAY00803299,ORGD,Organisational Development,2500.00,Revenue,AKD Solutions Ltd
Brighton & Hove City Council,http://statistics.data.gov.uk/id/local-authority/00ML,Central Support and Overheads,BVACEN,Support Services (SSC),PPT,Supplies and Services,E,Services,EF,09/10/2015,PAY00804030,LEGS,Legal Services,437.00,Revenue,Alere Toxicology PLC
Brighton & Hove City Council,http://statistics.data.gov.uk/id/local-authority/00ML,Children`s & Education Serv,BVAEDU,Child Srvcs - Other Fam Supp,FFX,Transfer Payments,G,Other Transfer Payments,GD,09/10/2015,PAY00804030,FAMP,Families\Prevention,375.00,Revenue,Alere Toxicology PLC
Brighton & Hove City Council,http://statistics.data.gov.uk/id/local-authority/00ML,Children`s & Education Serv,BVAEDU,Management Services (DEC),MGT,Supplies and Services,E,Services,EF,21/10/2015,PAY00807302,SOCK,Social Work,781.40,Revenue,Alere Toxicology PLC
Brighton & Hove City Council,http://statistics.data.gov.uk/id/local-authority/00ML,Children`s & Education Serv,BVAEDU,Child Srvcs Com and Scl Work,FCW,Supplies and Services,E,Equip't Furniture n Materials,EA,28/10/2015,PAY00809397,SOCK,Social Work,761.30,Revenue,Alere Toxicology PLC
Brighton & Hove City Council,http://statistics.data.gov.uk/id/local-authority/00ML,Children`s & Education Serv,BVAEDU,Management Services (DEC),MGT,Supplies and Services,E,Services,EF,28/10/2015,PAY00809397,SOCK,Social Work,506.00,Revenue,Alere Toxicology PLC
Brighton & Hove City Council,http://statistics.data.gov.uk/id/local-authority/00ML,Non I&E,BVANON,CAP Housing Services GF,4HG,Capital Grants,PF,Capital Grants,PFL5,02/10/2015,PAY00802703,PSHG,Private Sector Housing,4031.79,Capital,Alfa Electric Ltd
Brighton & Hove City Council,http://statistics.data.gov.uk/id/local-authority/00ML,Non I&E,BVANON,CAP Housing Services GF,4HG,Capital Grants,PF,Capital Grants,PFL5,16/10/2015,PAY00806164,PSHG,Private Sector Housing,3692.93,Capital,Alfa Electric Ltd
Brighton & Hove City Council,http://statistics.data.gov.uk/id/local-authority/00ML,Non I&E,BVANON,CAP Education Services,4ED,New Construction n Conversion,PB,New Construction n Conversion,PBL5,23/10/2015,PAY00808542,OEDS,Other Education Support,328.49,Capital,Alfa Electric Ltd
Brighton & Hove City Council,http://statistics.data.gov.uk/id/local-authority/00ML,Adult Social Care,BVASOC,ASC Memory Cognition Support,MEM,Customer n Client Receipts,M,Fees n Charges,MB,02/10/2015,PAY00802973,COGN,Memory Cognition Support,-200.00,Revenue,Alina Homecare Ltd
Brighton & Hove City Council,http://statistics.data.gov.uk/id/local-authority/00ML,Adult Social Care,BVASOC,ASC Memory Cognition Support,MEM,Third Party Payments,F,Other Establishments,FH,02/10/2015,PAY00802973,COGN,Memory Cognition Support,1154.01,Revenue,Alina Homecare Ltd
Brighton & Hove City Council,http://statistics.data.gov.uk/id/local-authority/00ML,Adult Social Care,BVASOC,ASC Physical Support,PHY,Customer n Client Receipts,M,Fees n Charges,MB,02/10/2015,PAY00802973,PHYS,Physical Support,-439.00,Revenue,Alina Homecare Ltd
Brighton & Hove City Council,http://statistics.data.gov.uk/id/local-authority/00ML,Adult Social Care,BVASOC,ASC Physical Support,PHY,Third Party Payments,F,Other Establishments,FH,02/10/2015,PAY00802973,PHYS,Physical Support,2957.46,Revenue,Alina Homecare Ltd
Brighton & Hove City Council,http://statistics.data.gov.uk/id/local-authority/00ML,Adult Social Care,BVASOC,ASC Physical Support,PHY,Customer n Client Receipts,M,Fees n Charges,MB,21/10/2015,PAY00807727,PHYS,Physical Support,-196.00,Revenue,Alina Homecare Ltd
Brighton & Hove City Council,http://statistics.data.gov.uk/id/local-authority/00ML,Adult Social Care,BVASOC,ASC Physical Support,PHY,Third Party Payments,F,Other Establishments,FH,21/10/2015,PAY00807727,PHYS,Physical Support,736.26,Revenue,Alina Homecare Ltd
Brighton & Hove City Council,http://statistics.data.gov.uk/id/local-authority/00ML,Adult Social Care,BVASOC,ASC Physical Support,PHY,Customer n Client Receipts,M,Fees n Charges,MB,28/10/2015,PAY00809982,PHYS,Physical Support,-1240.00,Revenue,Alina Homecare Ltd
Brighton & Hove City Council,http://statistics.data.gov.uk/id/local-authority/00ML,Adult Social Care,BVASOC,ASC Physical Support,PHY,Third Party Payments,F,Other Establishments,FH,28/10/2015,PAY00809982,PHYS,Physical Support,13308.19,Revenue,Alina Homecare Ltd
Brighton & Hove City Council,http://statistics.data.gov.uk/id/local-authority/00ML,Adult Social Care,BVASOC,ASC Learning Disabilities,ALD,Customer n Client Receipts,M,Fees n Charges,MB,02/10/2015,PAY00802402,LDIS,Learning Disabilities,-25.00,Revenue,Allied Healthcare
Brighton & Hove City Council,http://statistics.data.gov.uk/id/local-authority/00ML,Adult Social Care,BVASOC,ASC Learning Disabilities,ALD,Third Party Payments,F,Other Establishments,FH,02/10/2015,PAY00802402,LDIS,Learning Disabilities,111.92,Revenue,Allied Healthcare
Brighton & Hove City Council,http://statistics.data.gov.uk/id/local-authority/00ML,Adult Social Care,BVASOC,ASC Memory Cognition Support,MEM,Customer n Client Receipts,M,Fees n Charges,MB,02/10/2015,PAY00802402,COGN,Memory Cognition Support,-42.00,Revenue,Allied Healthcare
Brighton & Hove City Council,http://statistics.data.gov.uk/id/local-authority/00ML,Adult Social Care,BVASOC,ASC Memory Cognition Support,MEM,Third Party Payments,F,Other Establishments,FH,02/10/2015,PAY00802402,COGN,Memory Cognition Support,582.67,Revenue,Allied Healthcare
Brighton & Hove City Council,http://statistics.data.gov.uk/id/local-authority/00ML,Adult Social Care,BVASOC,ASC Mental Health Support,MHP,Customer n Client Receipts,M,Fees n Charges,MB,02/10/2015,PAY00802402,MENH,Mental Health Support,-189.00,Revenue,Allied Healthcare
Brighton & Hove City Council,http://statistics.data.gov.uk/id/local-authority/00ML,Adult Social Care,BVASOC,ASC Mental Health Support,MHP,Third Party Payments,F,Other Establishments,FH,02/10/2015,PAY00802402,MENH,Mental Health Support,624.68,Revenue,Allied Healthcare
Brighton & Hove City Council,http://statistics.data.gov.uk/id/local-authority/00ML,Adult Social Care,BVASOC,ASC Physical Support,PHY,Customer n Client Receipts,M,Fees n Charges,MB,02/10/2015,PAY00802402,PHYS,Physical Support,-907.00,Revenue,Allied Healthcare
Brighton & Hove City Council,http://statistics.data.gov.uk/id/local-authority/00ML,Adult Social Care,BVASOC,ASC Physical Support,PHY,Third Party Payments,F,Other Establishments,FH,02/10/2015,PAY00802402,PHYS,Physical Support,8804.61,Revenue,Allied Healthcare
Brighton & Hove City Council,http://statistics.data.gov.uk/id/local-authority/00ML,Adult Social Care,BVASOC,ASC Learning Disabilities,ALD,Customer n Client Receipts,M,Fees n Charges,MB,21/10/2015,PAY00807262,LDIS,Learning Disabilities,-75.00,Revenue,Allied Healthcare
Brighton & Hove City Council,http://statistics.data.gov.uk/id/local-authority/00ML,Adult Social Care,BVASOC,ASC Learning Disabilities,ALD,Third Party Payments,F,Other Establishments,FH,21/10/2015,PAY00807262,LDIS,Learning Disabilities,371.45,Revenue,Allied Healthcare
Brighton & Hove City Council,http://statistics.data.gov.uk/id/local-authority/00ML,Adult Social Care,BVASOC,ASC Memory Cognition Support,MEM,Customer n Client Receipts,M,Fees n Charges,MB,21/10/2015,PAY00807262,COGN,Memory Cognition Support,-188.00,Revenue,Allied Healthcare
Brighton & Hove City Council,http://statistics.data.gov.uk/id/local-authority/00ML,Adult Social Care,BVASOC,ASC Memory Cognition Support,MEM,Third Party Payments,F,Other Establishments,FH,21/10/2015,PAY00807262,COGN,Memory Cognition Support,1591.87,Revenue,Allied Healthcare
Brighton & Hove City Council,http://statistics.data.gov.uk/id/local-authority/00ML,Adult Social Care,BVASOC,ASC Mental Health Support,MHP,Customer n Client Receipts,M,Fees n Charges,MB,21/10/2015,PAY00807262,MENH,Mental Health Support,-567.00,Revenue,Allied Healthcare
Brighton & Hove City Council,http://statistics.data.gov.uk/id/local-authority/00ML,Adult Social Care,BVASOC,ASC Mental Health Support,MHP,Third Party Payments,F,Other Establishments,FH,21/10/2015,PAY00807262,MENH,Mental Health Support,1869.10,Revenue,Allied Healthcare
Brighton & Hove City Council,http://statistics.data.gov.uk/id/local-authority/00ML,Adult Social Care,BVASOC,ASC Physical Support,PHY,Customer n Client Receipts,M,Fees n Charges,MB,21/10/2015,PAY00807262,PHYS,Physical Support,-3018.00,Revenue,Allied Healthcare
Brighton & Hove City Council,http://statistics.data.gov.uk/id/local-authority/00ML,Adult Social Care,BVASOC,ASC Physical Support,PHY,Third Party Payments,F,Other Establishments,FH,21/10/2015,PAY00807262,PHYS,Physical Support,27199.26,Revenue,Allied Healthcare
Brighton & Hove City Council,http://statistics.data.gov.uk/id/local-authority/00ML,Adult Social Care,BVASOC,ASC Physical Support,PHY,Customer n Client Receipts,M,Fees n Charges,MB,23/10/2015,PAY00808159,PHYS,Physical Support,-1412.00,Revenue,Allied Healthcare
Brighton & Hove City Council,http://statistics.data.gov.uk/id/local-authority/00ML,Adult Social Care,BVASOC,ASC Physical Support,PHY,Third Party Payments,F,Other Establishments,FH,23/10/2015,PAY00808159,PHYS,Physical Support,6820.24,Revenue,Allied Healthcare
Brighton & Hove City Council,http://statistics.data.gov.uk/id/local-authority/00ML,Adult Social Care,BVASOC,ASC Learning Disabilities,ALD,Customer n Client Receipts,M,Fees n Charges,MB,28/10/2015,PAY00809330,LDIS,Learning Disabilities,-25.00,Revenue,Allied Healthcare
Brighton & Hove City Council,http://statistics.data.gov.uk/id/local-authority/00ML,Adult Social Care,BVASOC,ASC Learning Disabilities,ALD,Third Party Payments,F,Other Establishments,FH,28/10/2015,PAY00809330,LDIS,Learning Disabilities,117.03,Revenue,Allied Healthcare
Brighton & Hove City Council,http://statistics.data.gov.uk/id/local-authority/00ML,Adult Social Care,BVASOC,ASC Memory Cognition Support,MEM,Customer n Client Receipts,M,Fees n Charges,MB,28/10/2015,PAY00809330,COGN,Memory Cognition Support,-104.00,Revenue,Allied Healthcare
Brighton & Hove City Council,http://statistics.data.gov.uk/id/local-authority/00ML,Adult Social Care,BVASOC,ASC Memory Cognition Support,MEM,Third Party Payments,F,Other Establishments,FH,28/10/2015,PAY00809330,COGN,Memory Cognition Support,478.86,Revenue,Allied Healthcare
Brighton & Hove City Council,http://statistics.data.gov.uk/id/local-authority/00ML,Adult Social Care,BVASOC,ASC Mental Health Support,MHP,Customer n Client Receipts,M,Fees n Charges,MB,28/10/2015,PAY00809330,MENH,Mental Health Support,-189.00,Revenue,Allied Healthcare
Brighton & Hove City Council,http://statistics.data.gov.uk/id/local-authority/00ML,Adult Social Care,BVASOC,ASC Mental Health Support,MHP,Third Party Payments,F,Other Establishments,FH,28/10/2015,PAY00809330,MENH,Mental Health Support,628.95,Revenue,Allied Healthcare
Brighton & Hove City Council,http://statistics.data.gov.uk/id/local-authority/00ML,Adult Social Care,BVASOC,ASC Physical Support,PHY,Customer n Client Receipts,M,Fees n Charges,MB,28/10/2015,PAY00809330,PHYS,Physical Support,-993.00,Revenue,Allied Healthcare
Brighton & Hove City Council,http://statistics.data.gov.uk/id/local-authority/00ML,Adult Social Care,BVASOC,ASC Physical Support,PHY,Third Party Payments,F,Other Establishments,FH,28/10/2015,PAY00809330,PHYS,Physical Support,9149.51,Revenue,Allied Healthcare
Brighton & Hove City Council,http://statistics.data.gov.uk/id/local-authority/00ML,Adult Social Care,BVASOC,ASC Physical Support,PHY,Customer n Client Receipts,M,Fees n Charges,MB,30/10/2015,PAY00810417,PHYS,Physical Support,-42.00,Revenue,Allied Healthcare
Brighton & Hove City Council,http://statistics.data.gov.uk/id/local-authority/00ML,Adult Social Care,BVASOC,ASC Physical Support,PHY,Third Party Payments,F,Other Establishments,FH,30/10/2015,PAY00810417,PHYS,Physical Support,488.52,Revenue,Allied Healthcare
Brighton & Hove City Council,http://statistics.data.gov.uk/id/local-authority/00ML,Non I&E,BVANON,CAP Education Services,4ED,New Construction n Conversion,PB,New Construction n Conversion,PBL5,28/10/2015,PAY00809524,OEDS,Other Education Support,15489.37,Capital,Allied Services
Brighton & Hove City Council,http://statistics.data.gov.uk/id/local-authority/00ML,Central Support and Overheads,BVACEN,Support Services (SSC),PPT,Premises Related,C,Repair Maint n Alterations,CA,09/10/2015,PAY00803990,PROP,Property and Design,1109.12,Revenue,Allsop & Francis Ltd
Brighton & Hove City Council,http://statistics.data.gov.uk/id/local-authority/00ML,Central Support and Overheads,BVACEN,Support Services (SSC),PPT,Premises Related,C,Repair Maint n Alterations,CA,28/10/2015,PAY00809304,PROP,Property and Design,464.44,Revenue,Allsop & Francis Ltd
Brighton & Hove City Council,http://statistics.data.gov.uk/id/local-authority/00ML,Planning and Development,BVAPLA,Economic Development,ECD,Supplies and Services,E,Grants n Subscriptions,EK,28/10/2015,PAY00809238,CMNY,Communities and Equalities,5500.00,Revenue,Allsorts Youth Project
Brighton & Hove City Council,http://statistics.data.gov.uk/id/local-authority/00ML,Central Support and Overheads,BVACEN,Holding Accounts,PPH,Transport Related,D,Direct Transport Costs,DA,02/10/2015,PAY00802850,CICL,City Clean,4982.85,Revenue,Allstar Business Solutions Ltd
Brighton & Hove City Council,http://statistics.data.gov.uk/id/local-authority/00ML,Central Support and Overheads,BVACEN,Holding Accounts,PPH,Transport Related,D,Direct Transport Costs,DA,30/10/2015,PAY00811114,CICL,City Clean,6547.77,Revenue,Allstar Business Solutions Ltd
Brighton & Hove City Council,http://statistics.data.gov.uk/id/local-authority/00ML,Non I&E,BVANON,CAP Education Services,4ED,New Construction n Conversion,PB,New Construction n Conversion,PBL5,30/10/2015,PAY00810643,OEDS,Other Education Support,65310.00,Capital,Allweather Roofing & Construction
Brighton & Hove City Council,http://statistics.data.gov.uk/id/local-authority/00ML,Cultural and Related Serv,BVACUL,Recreation and Sport,REC,Supplies and Services,E,Miscellaneous Expenses,EM,14/10/2015,PAY00804946,SEAS,Seafront Services,355.50,Revenue,Almega Limited
Brighton & Hove City Council,http://statistics.data.gov.uk/id/local-authority/00ML,Adult Social Care,BVASOC,ASC Physical Support,PHY,Transport Related,D,Contract Hire n Operating Leas,DB,28/10/2015,PAY00809657,RCOP,Resource Centres Older People,495.30,Revenue,Alphabet (UK) Fleet Management Ltd
Brighton & Hove City Council,http://statistics.data.gov.uk/id/local-authority/00ML,Adult Social Care,BVASOC,Social Care Activities,ACM,Transport Related,D,Contract Hire n Operating Leas,DB,28/10/2015,PAY00809657,ASIT,Assessment and SIT,276.90,Revenue,Alphabet (UK) Fleet Management Ltd
Brighton & Hove City Council,http://statistics.data.gov.uk/id/local-authority/00ML,Adult Social Care,BVASOC,Social Care Activities,ACM,Transport Related,D,Contract Hire n Operating Leas,DB,28/10/2015,PAY00809657,SPFT,S75 SPFT,167.10,Revenue,Alphabet (UK) Fleet Management Ltd
Brighton & Hove City Council,http://statistics.data.gov.uk/id/local-authority/00ML,Children`s & Education Serv,BVAEDU,Child Srvcs Com and Scl Work,FCW,Transport Related,D,Contract Hire n Operating Leas,DB,28/10/2015,PAY00809657,SOCK,Social Work,699.30,Revenue,Alphabet (UK) Fleet Management Ltd
Brighton & Hove City Council,http://statistics.data.gov.uk/id/local-authority/00ML,Children`s & Education Serv,BVAEDU,Child Srvcs - Other Fam Supp,FFX,Transport Related,D,Contract Hire n Operating Leas,DB,28/10/2015,PAY00809657,DISS,Disability Services,289.20,Revenue,Alphabet (UK) Fleet Management Ltd
Brighton & Hove City Council,http://statistics.data.gov.uk/id/local-authority/00ML,Children`s & Education Serv,BVAEDU,Support Services (SSC),PPT,Transport Related,D,Contract Hire n Operating Leas,DB,28/10/2015,PAY00809657,OEDS,Other Education Support,485.40,Revenue,Alphabet (UK) Fleet Management Ltd
Brighton & Hove City Council,http://statistics.data.gov.uk/id/local-authority/00ML,Highways and Transportation,BVAHRT,Parking Services,PRK,Transport Related,D,Contract Hire n Operating Leas,DB,28/10/2015,PAY00809657,PARK,Parking,369.00,Revenue,Alphabet (UK) Fleet Management Ltd
Brighton & Hove City Council,http://statistics.data.gov.uk/id/local-authority/00ML,Housing General Fund,BVAHOG,Homelessness,HML,Transport Related,D,Contract Hire n Operating Leas,DB,28/10/2015,PAY00809657,TAAS,Temp Accom and Allocations,387.30,Revenue,Alphabet (UK) Fleet Management Ltd
Brighton & Hove City Council,http://statistics.data.gov.uk/id/local-authority/00ML,Housing Revenue Account,BVAHOU,Hsing Management - HRA,HGM,Transport Related,D,Contract Hire n Operating Leas,DB,28/10/2015,PAY00809657,HTEN,Tenancy Services,157.80,Revenue,Alphabet (UK) Fleet Management Ltd
Brighton & Hove City Council,http://statistics.data.gov.uk/id/local-authority/00ML,Housing Revenue Account,BVAHOU,Hsing Strategy - HRA,HGT,Transport Related,D,Contract Hire n Operating Leas,DB,28/10/2015,PAY00809657,HSTR,Housing Strategy,240.60,Revenue,Alphabet (UK) Fleet Management Ltd
Brighton & Hove City Council,http://statistics.data.gov.uk/id/local-authority/00ML,Adult Social Care,BVASOC,Assistive Equipment & Tech,AET,Supplies and Services,E,Equip't Furniture n Materials,EA,21/10/2015,PAY00807211,SSCT,S75 SCT,732.68,Revenue,Alsford Timber Ltd
Brighton & Hove City Council,http://statistics.data.gov.uk/id/local-authority/00ML,Central Support and Overheads,BVACEN,Support Services (SSC),PPT,Supplies and Services,E,Communications n Computing,EH,14/10/2015,PAY00805124,ICTA,ICT,36028.20,Revenue,Altodigital Networks Ltd
Brighton & Hove City Council,http://statistics.data.gov.uk/id/local-authority/00ML,Children`s & Education Serv,BVAEDU,Ed EY Central,EAE,Supplies and Services,E,Equip't Furniture n Materials,EA,14/10/2015,PAY00805124,EYRS,Early Years,79.23,Revenue,Altodigital Networks Ltd
Brighton & Hove City Council,http://statistics.data.gov.uk/id/local-authority/00ML,Children`s & Education Serv,BVAEDU,Ed Srvcs YP Youth Srvcs,ENY,Supplies and Services,E,Equip't Furniture n Materials,EA,14/10/2015,PAY00805124,YOTS,Youth Service,298.74,Revenue,Altodigital Networks Ltd
Brighton & Hove City Council,http://statistics.data.gov.uk/id/local-authority/00ML,Central Support and Overheads,BVACEN,Support Services (SSC),PPT,Supplies and Services,E,Communications n Computing,EH,23/10/2015,PAY00808544,ICTA,ICT,3645.87,Revenue,Altodigital Networks Ltd
Brighton & Hove City Council,http://statistics.data.gov.uk/id/local-authority/00ML,Central Support and Overheads,BVACEN,Support Services (SSC),PPT,Supplies and Services,E,Equip't Furniture n Materials,EA,23/10/2015,PAY00808544,PROP,Property and Design,726.26,Revenue,Altodigital Networks Ltd
Brighton & Hove City Council,http://statistics.data.gov.uk/id/local-authority/00ML,Central Support and Overheads,BVACEN,Support Services (SSC),PPT,Supplies and Services,E,Communications n Computing,EH,28/10/2015,PAY00809684,ICTA,ICT,83.20,Revenue,Altodigital Networks Ltd
Brighton & Hove City Council,http://statistics.data.gov.uk/id/local-authority/00ML,Central Support and Overheads,BVACEN,Support Services (SSC),PPT,Supplies and Services,E,Equip't Furniture n Materials,EA,28/10/2015,PAY00809684,PROP,Property and Design,2780.74,Revenue,Altodigital Networks Ltd
Brighton & Hove City Council,http://statistics.data.gov.uk/id/local-authority/00ML,Adult Social Care,BVASOC,Support to Carer,CAR,Other Grants Reimbs n Conts,L,Contributions,LC,14/10/2015,PAY00805048,CONT,Contracts,-151.71,Revenue,Alzheimers Society (Sussex Locality)
Brighton & Hove City Council,http://statistics.data.gov.uk/id/local-authority/00ML,Adult Social Care,BVASOC,Support to Carer,CAR,Third Party Payments,F,Other Establishments,FH,14/10/2015,PAY00805048,CONT,Contracts,35881.71,Revenue,Alzheimers Society (Sussex Locality)
Brighton & Hove City Council,http://statistics.data.gov.uk/id/local-authority/00ML,Adult Social Care,BVASOC,Support to Carer,CAR,Other Grants Reimbs n Conts,L,Contributions,LC,16/10/2015,PAY00806016,CONT,Contracts,-224.00,Revenue,Alzheimers Society (Sussex Locality)
Brighton & Hove City Council,http://statistics.data.gov.uk/id/local-authority/00ML,Adult Social Care,BVASOC,Support to Carer,CAR,Third Party Payments,F,Other Establishments,FH,16/10/2015,PAY00806016,CONT,Contracts,7518.00,Revenue,Alzheimers Society (Sussex Locality)
Brighton & Hove City Council,http://statistics.data.gov.uk/id/local-authority/00ML,Adult Social Care,BVASOC,Support to Carer,CAR,Third Party Payments,F,Other Establishments,FH,30/10/2015,PAY00810653,CONT,Contracts,774.00,Revenue,Alzheimers Society (Sussex Locality)
Brighton & Hove City Council,http://statistics.data.gov.uk/id/local-authority/00ML,Non I&E,BVANON,CAP Education Services,4ED,New Construction n Conversion,PB,New Construction n Conversion,PBL5,07/10/2015,PAY00803304,OEDS,Other Education Support,270.35,Capital,AM Fire & Security Group
Brighton & Hove City Council,http://statistics.data.gov.uk/id/local-authority/00ML,Central Support and Overheads,BVACEN,Support Services (SSC),PPT,Premises Related,C,Repair Maint n Alterations,CA,09/10/2015,PAY00804060,PROP,Property and Design,47.72,Revenue,AM Fire & Security Group
Brighton & Hove City Council,http://statistics.data.gov.uk/id/local-authority/00ML,Cultural and Related Serv,BVACUL,Culture and Heritage,CHG,Premises Related,C,Repair Maint n Alterations,CA,09/10/2015,PAY00804060,RPMU,Royal Pavilion and Museums,92.73,Revenue,AM Fire & Security Group
Brighton & Hove City Council,http://statistics.data.gov.uk/id/local-authority/00ML,Non I&E,BVANON,CAP Education Services,4ED,New Construction n Conversion,PB,New Construction n Conversion,PBL5,09/10/2015,PAY00804060,OEDS,Other Education Support,118.40,Capital,AM Fire & Security Group
Brighton & Hove City Council,http://statistics.data.gov.uk/id/local-authority/00ML,Highways and Transportation,BVAHRT,Parking Services,PRK,Premises Related,C,Repair Maint n Alterations,CA,14/10/2015,PAY00804980,PARK,Parking,235.99,Revenue,AM Fire & Security Group
Brighton & Hove City Council,http://statistics.data.gov.uk/id/local-authority/00ML,Central Support and Overheads,BVACEN,Support Services (SSC),PPT,Premises Related,C,Repair Maint n Alterations,CA,23/10/2015,PAY00808231,PROP,Property and Design,388.08,Revenue,AM Fire & Security Group
Brighton & Hove City Council,http://statistics.data.gov.uk/id/local-authority/00ML,Central Support and Overheads,BVACEN,Holding Accounts,PPH,Premises Related,C,Repair Maint n Alterations,CA,28/10/2015,PAY00809448,PROP,Property and Design,1116.99,Revenue,AM Fire & Security Group
Brighton & Hove City Council,http://statistics.data.gov.uk/id/local-authority/00ML,Central Support and Overheads,BVACEN,Support Services (SSC),PPT,Premises Related,C,Repair Maint n Alterations,CA,28/10/2015,PAY00809448,PROP,Property and Design,4397.78,Revenue,AM Fire & Security Group
Brighton & Hove City Council,http://statistics.data.gov.uk/id/local-authority/00ML,Housing Revenue Account,BVAHOU,Hsing Management - HRA,HGM,Supplies and Services,E,Services,EF,28/10/2015,PAY00809448,HPAI,Property & Investment,158.65,Revenue,AM Fire & Security Group
Brighton & Hove City Council,http://statistics.data.gov.uk/id/local-authority/00ML,Children`s & Education Serv,BVAEDU,Ed EY Central,EAE,Supplies and Services,E,Equip't Furniture n Materials,EA,30/10/2015,PAY00810479,EYRS,Early Years,23.86,Revenue,AM Fire & Security Group
Brighton & Hove City Council,http://statistics.data.gov.uk/id/local-authority/00ML,Cultural and Related Serv,BVACUL,Recreation and Sport,REC,Premises Related,C,Repair Maint n Alterations,CA,30/10/2015,PAY00810479,SFAC,Sports Facilities,408.45,Revenue,AM Fire & Security Group
Brighton & Hove City Council,http://statistics.data.gov.uk/id/local-authority/00ML,Adult Social Care,BVASOC,Info & Early Intervention,PRV,Third Party Payments,F,Other Establishments,FH,14/10/2015,PAY00804842,CONT,Contracts,3353.00,Revenue,Amaze Brighton & Hove
Brighton & Hove City Council,http://statistics.data.gov.uk/id/local-authority/00ML,Children`s & Education Serv,BVAEDU,Child Srvcs - Other Fam Supp,FFX,Third Party Payments,F,Other Establishments,FH,21/10/2015,PAY00807196,DISS,Disability Services,74439.00,Revenue,Amaze Brighton & Hove
Brighton & Hove City Council,http://statistics.data.gov.uk/id/local-authority/00ML,Children`s & Education Serv,BVAEDU,Child Srvcs Other,FAX,Supplies and Services,E,Miscellaneous Expenses,EM,28/10/2015,PAY00809189,YOTS,Youth Service,510.20,Revenue,Amaze Brighton & Hove
Brighton & Hove City Council,http://statistics.data.gov.uk/id/local-authority/00ML,Planning and Development,BVAPLA,Economic Development,ECD,Supplies and Services,E,Grants n Subscriptions,EK,28/10/2015,PAY00809189,CMNY,Communities and Equalities,1250.00,Revenue,Amaze Brighton & Hove
Brighton & Hove City Council,http://statistics.data.gov.uk/id/local-authority/00ML,Cultural and Related Serv,BVACUL,Recreation and Sport,REC,Supplies and Services,E,Miscellaneous Expenses,EM,16/10/2015,PAY00807038,SDEV,Sports Development,300.00,Revenue,Amazonas Arts
Brighton & Hove City Council,http://statistics.data.gov.uk/id/local-authority/00ML,Cultural and Related Serv,BVACUL,Tourism,TRM,Customer n Client Receipts,M,Fees n Charges,MB,02/10/2015,PAY00802339,TOMA,Tourism and Marketing,333.00,Revenue,Ambassador Hotel
Brighton & Hove City Council,http://statistics.data.gov.uk/id/local-authority/00ML,Housing Revenue Account,BVAHOU,Hsing Management - HRA,HGM,Supplies and Services,E,Services,EF,14/10/2015,PAY00804823,HTEN,Tenancy Services,583.33,Revenue,Ambassador Hotel
Brighton & Hove City Council,http://statistics.data.gov.uk/id/local-authority/00ML,Cultural and Related Serv,BVACUL,Management Services (DEC),MGT,Supplies and Services,E,Equip't Furniture n Materials,EA,21/10/2015,PAY00807436,CIPK,City Parks,736.65,Revenue,Amethyst Horticulture Ltd
Brighton & Hove City Council,http://statistics.data.gov.uk/id/local-authority/00ML,Highways and Transportation,BVAHRT,Highways and Roads - Mntnce,HRM,Supplies and Services,E,Services,EF,09/10/2015,PAY00803957,HWEN,Highways Engineering,1616.12,Revenue,Amey OW Limited
Brighton & Hove City Council,http://statistics.data.gov.uk/id/local-authority/00ML,Children`s & Education Serv,BVAEDU,Ed EY PVI,ENP,Supplies and Services,E,Grants n Subscriptions,EK,21/10/2015,PAY00807396,EYRS,Early Years,1852.50,Revenue,Amigos Pre-School Playgroup
Brighton & Hove City Council,http://statistics.data.gov.uk/id/local-authority/00ML,Cultural and Related Serv,BVACUL,Management Services (DEC),MGT,Transport Related,D,Direct Transport Costs,DA,28/10/2015,PAY00809447,CIPK,City Parks,4892.70,Revenue,AMP Groundcare Machinery Services Ltd
Brighton & Hove City Council,http://statistics.data.gov.uk/id/local-authority/00ML,Cultural and Related Serv,BVACUL,Open Spaces,PEN,Supplies and Services,E,Equip't Furniture n Materials,EA,28/10/2015,PAY00809447,CIPK,City Parks,7926.35,Revenue,AMP Groundcare Machinery Services Ltd
Brighton & Hove City Council,http://statistics.data.gov.uk/id/local-authority/00ML,Highways and Transportation,BVAHRT,Transport Plan Policy Strategy,TPP,Supplies and Services,E,Equip't Furniture n Materials,EA,14/10/2015,PAY00805150,TPRS,Transport Plan and Road Safety,400.00,Revenue,Anahata Integrated Health Clinic Ltd
Brighton & Hove City Council,http://statistics.data.gov.uk/id/local-authority/00ML,Housing General Fund,BVAHOG,Hsing Welfare,HGW,Transfer Payments,G,Supporting People,GF,30/10/2015,PAY00810439,AHRS,Housing Related Support,535.33,Revenue,Anchor Trust Rent Account
Brighton & Hove City Council,http://statistics.data.gov.uk/id/local-authority/00ML,Children`s & Education Serv,BVAEDU,Child Srvcs - Residential Svcs,FLR,Third Party Payments,F,Other Establishments,FH,14/10/2015,PAY00805196,AVFM,Agency Placements\VFM,19540.00,Revenue,Anderida Adolescent Care Ltd
Brighton & Hove City Council,http://statistics.data.gov.uk/id/local-authority/00ML,Environment & Regulatory Serv,BVAERS,Management Services (DEC),MGT,Transport Related,D,Direct Transport Costs,DA,09/10/2015,PAY00804646,CICL,City Clean,249.25,Revenue,Andrew Page Ltd
Brighton & Hove City Council,http://statistics.data.gov.uk/id/local-authority/00ML,Housing General Fund,BVAHOG,Hsing Strat Advice and RSLs,HGR,Indirect Employees,B,Misc Employee Costs,BP,07/10/2015,PAY00803662,ASSA,Hostel Accommodation,1000.00,Revenue,Andy Wilkes Training and Consultancy Ltd
Brighton & Hove City Council,http://statistics.data.gov.uk/id/local-authority/00ML,Cultural and Related Serv,BVACUL,Culture and Heritage,CHG,Supplies and Services,E,Equip't Furniture n Materials,EA,14/10/2015,PAY00805320,RPMU,Royal Pavilion and Museums,12880.00,Revenue,Antenna Audio Ltd
Brighton & Hove City Council,http://statistics.data.gov.uk/id/local-authority/00ML,Cultural and Related Serv,BVACUL,Culture and Heritage,CHG,Supplies and Services,E,Equip't Furniture n Materials,EA,30/10/2015,PAY00811205,RPMU,Royal Pavilion and Museums,3500.00,Revenue,Antenna Audio Ltd
Brighton & Hove City Council,http://statistics.data.gov.uk/id/local-authority/00ML,Cultural and Related Serv,BVACUL,Culture and Heritage,CHG,Supplies and Services,E,Services,EF,21/10/2015,PAY00807333,RPMU,Royal Pavilion and Museums,15000.00,Revenue,Antique Collectors Club Ltd
Brighton & Hove City Council,http://statistics.data.gov.uk/id/local-authority/00ML,Central Support and Overheads,BVACEN,Support Services (SSC),PPT,Supplies and Services,E,Services,EF,02/10/2015,PAY00802908,PROP,Property and Design,59348.07,Revenue,AP Security (APS) Ltd
Brighton & Hove City Council,http://statistics.data.gov.uk/id/local-authority/00ML,Central Support and Overheads,BVACEN,Holding Accounts,PPH,Premises Related,C,Repair Maint n Alterations,CA,09/10/2015,PAY00804530,PROP,Property and Design,76.78,Revenue,AP Security (APS) Ltd
Brighton & Hove City Council,http://statistics.data.gov.uk/id/local-authority/00ML,Central Support and Overheads,BVACEN,Support Services (SSC),PPT,Premises Related,C,Repair Maint n Alterations,CA,09/10/2015,PAY00804530,PROP,Property and Design,631.00,Revenue,AP Security (APS) Ltd
Brighton & Hove City Council,http://statistics.data.gov.uk/id/local-authority/00ML,Central Support and Overheads,BVACEN,Support Services (SSC),PPT,Supplies and Services,E,Services,EF,14/10/2015,PAY00805317,PROP,Property and Design,30976.25,Revenue,AP Security (APS) Ltd
Brighton & Hove City Council,http://statistics.data.gov.uk/id/local-authority/00ML,Cultural and Related Serv,BVACUL,Culture and Heritage,CHG,Supplies and Services,E,Services,EF,16/10/2015,PAY00806637,RPMU,Royal Pavilion and Museums,468.00,Revenue,AP Security (APS) Ltd
Brighton & Hove City Council,http://statistics.data.gov.uk/id/local-authority/00ML,Central Support and Overheads,BVACEN,Support Services (SSC),PPT,Supplies and Services,E,Services,EF,28/10/2015,PAY00809908,PROP,Property and Design,17553.14,Revenue,AP Security (APS) Ltd
Brighton & Hove City Council,http://statistics.data.gov.uk/id/local-authority/00ML,Central Support and Overheads,BVACEN,Support Services (SSC),PPT,Supplies and Services,E,Services,EF,30/10/2015,PAY00811196,PROP,Property and Design,57754.10,Revenue,AP Security (APS) Ltd
Brighton & Hove City Council,http://statistics.data.gov.uk/id/local-authority/00ML,Housing Revenue Account,BVAHOU,Hsing Management - HRA,HGM,Premises Related,C,Repair Maint n Alterations,CA,07/10/2015,PAY00803392,HPAI,Property & Investment,2511.79,Revenue,Appello
Brighton & Hove City Council,http://statistics.data.gov.uk/id/local-authority/00ML,Housing Revenue Account,BVAHOU,Hsing Management - HRA,HGM,Supplies and Services,E,Equip't Furniture n Materials,EA,07/10/2015,PAY00803392,HPAI,Property & Investment,2867.41,Revenue,Appello
Brighton & Hove City Council,http://statistics.data.gov.uk/id/local-authority/00ML,Housing Revenue Account,BVAHOU,Hsing Management - HRA,HGM,Premises Related,C,Repair Maint n Alterations,CA,14/10/2015,PAY00805059,HPAI,Property & Investment,875.42,Revenue,Appello
Brighton & Hove City Council,http://statistics.data.gov.uk/id/local-authority/00ML,Housing Revenue Account,BVAHOU,Hsing Management - HRA,HGM,Supplies and Services,E,Equip't Furniture n Materials,EA,14/10/2015,PAY00805059,HPAI,Property & Investment,1718.02,Revenue,Appello
Brighton & Hove City Council,http://statistics.data.gov.uk/id/local-authority/00ML,Housing Revenue Account,BVAHOU,Hsing Management - HRA,HGM,Supplies and Services,E,Equip't Furniture n Materials,EA,21/10/2015,PAY00807412,HTEN,Tenancy Services,563.89,Revenue,Appello
Brighton & Hove City Council,http://statistics.data.gov.uk/id/local-authority/00ML,Children`s & Education Serv,BVAEDU,Child Srvcs Leaving Care,FAL,Transfer Payments,G,Other Transfer Payments,GD,07/10/2015,PAY00803568,CHIC,Children In Care,51124.40,Revenue,Apple Orchard
Brighton & Hove City Council,http://statistics.data.gov.uk/id/local-authority/00ML,Housing General Fund,BVAHOG,Homelessness,HML,Premises Related,C,Rents Payable,CC,09/10/2015,PAY00804323,TAAS,Temp Accom and Allocations,2250.00,Revenue,Applegate Properties Ltd
Brighton & Hove City Council,http://statistics.data.gov.uk/id/local-authority/00ML,Highways and Transportation,BVAHRT,Parking Services,PRK,Premises Related,C,Repair Maint n Alterations,CA,14/10/2015,PAY00805219,PARK,Parking,7868.60,Revenue,APS Aegis Limited
Brighton & Hove City Council,http://statistics.data.gov.uk/id/local-authority/00ML,Highways and Transportation,BVAHRT,Parking Services,PRK,Supplies and Services,E,Equip't Furniture n Materials,EA,14/10/2015,PAY00805219,PARK,Parking,27200.00,Revenue,APS Aegis Limited
Brighton & Hove City Council,http://statistics.data.gov.uk/id/local-authority/00ML,Highways and Transportation,BVAHRT,Parking Services,PRK,Premises Related,C,Repair Maint n Alterations,CA,28/10/2015,PAY00809813,PARK,Parking,399.00,Revenue,APS Aegis Limited
Brighton & Hove City Council,http://statistics.data.gov.uk/id/local-authority/00ML,Highways and Transportation,BVAHRT,Parking Services,PRK,Premises Related,C,Repair Maint n Alterations,CA,30/10/2015,PAY00811062,PARK,Parking,1138.22,Revenue,APS Aegis Limited
Brighton & Hove City Council,http://statistics.data.gov.uk/id/local-authority/00ML,Highways and Transportation,BVAHRT,Parking Services,PRK,Supplies and Services,E,Equip't Furniture n Materials,EA,30/10/2015,PAY00811062,PARK,Parking,271.20,Revenue,APS Aegis Limited
Brighton & Hove City Council,http://statistics.data.gov.uk/id/local-authority/00ML,Highways and Transportation,BVAHRT,Parking Services,PRK,Premises Related,C,Repair Maint n Alterations,CA,14/10/2015,PAY00804945,PARK,Parking,627.13,Revenue,APT Skidata Ltd
Brighton & Hove City Council,http://statistics.data.gov.uk/id/local-authority/00ML,Highways and Transportation,BVAHRT,Parking Services,PRK,Supplies and Services,E,Equip't Furniture n Materials,EA,16/10/2015,PAY00805803,PARK,Parking,627.13,Revenue,APT Skidata Ltd
Brighton & Hove City Council,http://statistics.data.gov.uk/id/local-authority/00ML,Highways and Transportation,BVAHRT,Parking Services,PRK,Supplies and Services,E,Equip't Furniture n Materials,EA,23/10/2015,PAY00808202,PARK,Parking,16246.45,Revenue,APT Skidata Ltd
Brighton & Hove City Council,http://statistics.data.gov.uk/id/local-authority/00ML,Highways and Transportation,BVAHRT,Parking Services,PRK,Supplies and Services,E,Print Stat & Gen Office Exps,ED,28/10/2015,PAY00809395,PARK,Parking,500.50,Revenue,APT Skidata Ltd
Brighton & Hove City Council,http://statistics.data.gov.uk/id/local-authority/00ML,Children`s & Education Serv,BVAEDU,Child Srvcs Com and Scl Work,FCW,Supplies and Services,E,Equip't Furniture n Materials,EA,14/10/2015,PAY00804869,SOCK,Social Work,227.40,Revenue,AquAid (West Sussex) 
Brighton & Hove City Council,http://statistics.data.gov.uk/id/local-authority/00ML,Children`s & Education Serv,BVAEDU,Ed Special Ed,EKE,Premises Related,C,Fixtures and Fittings,CF,14/10/2015,PAY00804869,SENS,Special Educational Needs,278.40,Revenue,AquAid (West Sussex) 
Brighton & Hove City Council,http://statistics.data.gov.uk/id/local-authority/00ML,Children`s & Education Serv,BVAEDU,Child Srvcs - Residential Svcs,FLR,Third Party Payments,F,Other Establishments,FH,14/10/2015,PAY00804977,AVFM,Agency Placements\VFM,43600.00,Revenue,ARC Adventure (Sussex) Ltd
Brighton & Hove City Council,http://statistics.data.gov.uk/id/local-authority/00ML,Children`s & Education Serv,BVAEDU,Child Srvcs Leaving Care,FAL,Transfer Payments,G,Other Transfer Payments,GD,23/10/2015,PAY00808229,CHIC,Children In Care,4428.66,Revenue,ARC Adventure (Sussex) Ltd
Brighton & Hove City Council,http://statistics.data.gov.uk/id/local-authority/00ML,Cultural and Related Serv,BVACUL,Culture and Heritage,CHG,Supplies and Services,E,Communications n Computing,EH,07/10/2015,PAY00803305,RPMU,Royal Pavilion and Museums,10.00,Revenue,ARC Prints & Frames
Brighton & Hove City Council,http://statistics.data.gov.uk/id/local-authority/00ML,Cultural and Related Serv,BVACUL,Culture and Heritage,CHG,Supplies and Services,E,Goods for Resale,EG,07/10/2015,PAY00803305,RPMU,Royal Pavilion and Museums,362.50,Revenue,ARC Prints & Frames
Brighton & Hove City Council,http://statistics.data.gov.uk/id/local-authority/00ML,Children`s & Education Serv,BVAEDU,Child Srvcs Leaving Care,FAL,Transfer Payments,G,Other Transfer Payments,GD,09/10/2015,PAY00804050,CHIC,Children In Care,908.64,Revenue,Argos Business Solutions Ltd
Brighton & Hove City Council,http://statistics.data.gov.uk/id/local-authority/00ML,Children`s & Education Serv,BVAEDU,Child Srvcs Leaving Care,FAL,Transfer Payments,G,Other Transfer Payments,GD,16/10/2015,PAY00805840,CHIC,Children In Care,860.90,Revenue,Argos Business Solutions Ltd
Brighton & Hove City Council,http://statistics.data.gov.uk/id/local-authority/00ML,Children`s & Education Serv,BVAEDU,Child Srvcs Leaving Care,FAL,Transfer Payments,G,Other Transfer Payments,GD,23/10/2015,PAY00808217,CHIC,Children In Care,805.81,Revenue,Argos Business Solutions Ltd
Brighton & Hove City Council,http://statistics.data.gov.uk/id/local-authority/00ML,Children`s & Education Serv,BVAEDU,Child Srvcs Leaving Care,FAL,Transfer Payments,G,Other Transfer Payments,GD,30/10/2015,PAY00810467,CHIC,Children In Care,1013.17,Revenue,Argos Business Solutions Ltd
Brighton & Hove City Council,http://statistics.data.gov.uk/id/local-authority/00ML,Children`s & Education Serv,BVAEDU,Child Srvcs - Othr LAC Svcs,FLX,Transfer Payments,G,Other Transfer Payments,GD,30/10/2015,PAY00810467,CHIC,Children In Care,207.27,Revenue,Argos Business Solutions Ltd
Brighton & Hove City Council,http://statistics.data.gov.uk/id/local-authority/00ML,Children`s & Education Serv,BVAEDU,Ed EY Central,EAE,Supplies and Services,E,Equip't Furniture n Materials,EA,30/10/2015,PAY00810467,EYRS,Early Years,129.59,Revenue,Argos Business Solutions Ltd
Brighton & Hove City Council,http://statistics.data.gov.uk/id/local-authority/00ML,Environment & Regulatory Serv,BVAERS,Cem Crem and Mortuary Services,CCM,Supplies and Services,E,Equip't Furniture n Materials,EA,14/10/2015,PAY00804981,LIFE,Life Events,948.00,Revenue,Arkell & Hurcombe (Bronzeworks)
Brighton & Hove City Council,http://statistics.data.gov.uk/id/local-authority/00ML,Non-BHC Organisations,BVANON,Trusts,TRT,Supplies and Services,E,Miscellaneous Expenses,EM,07/10/2015,PAY00803349,NBHC,Non Council,250.00,Revenue,Arlington House
Brighton & Hove City Council,http://statistics.data.gov.uk/id/local-authority/00ML,Adult Social Care,BVASOC,ASC Memory Cognition Support,MEM,Customer n Client Receipts,M,Fees n Charges,MB,23/10/2015,PAY00808390,COGN,Memory Cognition Support,-6710.48,Revenue,Arlington House
Brighton & Hove City Council,http://statistics.data.gov.uk/id/local-authority/00ML,Adult Social Care,BVASOC,ASC Memory Cognition Support,MEM,Third Party Payments,F,Other Establishments,FH,23/10/2015,PAY00808390,COGN,Memory Cognition Support,21175.20,Revenue,Arlington House
Brighton & Hove City Council,http://statistics.data.gov.uk/id/local-authority/00ML,Adult Social Care,BVASOC,ASC Physical Support,PHY,Customer n Client Receipts,M,Fees n Charges,MB,23/10/2015,PAY00808390,PHYS,Physical Support,-4662.36,Revenue,Arlington House
Brighton & Hove City Council,http://statistics.data.gov.uk/id/local-authority/00ML,Adult Social Care,BVASOC,ASC Physical Support,PHY,Third Party Payments,F,Other Establishments,FH,23/10/2015,PAY00808390,PHYS,Physical Support,23361.68,Revenue,Arlington House
Brighton & Hove City Council,http://statistics.data.gov.uk/id/local-authority/00ML,Cultural and Related Serv,BVACUL,Culture and Heritage,CHG,Supplies and Services,E,Services,EF,07/10/2015,PAY00803783,RPMU,Royal Pavilion and Museums,575.00,Revenue,Art Logistics Ltd
Brighton & Hove City Council,http://statistics.data.gov.uk/id/local-authority/00ML,Adult Social Care,BVASOC,ASC Learning Disabilities,ALD,Customer n Client Receipts,M,Fees n Charges,MB,21/10/2015,PAY00807512,LDIS,Learning Disabilities,-2003.00,Revenue,Arundel Domiciliary Care Services
Brighton & Hove City Council,http://statistics.data.gov.uk/id/local-authority/00ML,Adult Social Care,BVASOC,ASC Learning Disabilities,ALD,Third Party Payments,F,Other Establishments,FH,21/10/2015,PAY00807512,LDIS,Learning Disabilities,95622.49,Revenue,Arundel Domiciliary Care Services
Brighton & Hove City Council,http://statistics.data.gov.uk/id/local-authority/00ML,Adult Social Care,BVASOC,ASC Physical Support,PHY,Third Party Payments,F,Other Establishments,FH,02/10/2015,PAY00802620,PHYS,Physical Support,662.40,Revenue,Arundel Park Lodge
Brighton & Hove City Council,http://statistics.data.gov.uk/id/local-authority/00ML,Central Support and Overheads,BVACEN,Support Services (SSC),PPT,Third Party Payments,F,Other Establishments,FH,02/10/2015,PAY00802620,FINS,Financial Services,475.60,Revenue,Arundel Park Lodge
Brighton & Hove City Council,http://statistics.data.gov.uk/id/local-authority/00ML,Central Support and Overheads,BVACEN,Support Services (SSC),PPT,Third Party Payments,F,Other Establishments,FH,09/10/2015,PAY00804215,FINS,Financial Services,4756.00,Revenue,Arundel Park Lodge
Brighton & Hove City Council,http://statistics.data.gov.uk/id/local-authority/00ML,Adult Social Care,BVASOC,ASC Physical Support,PHY,Customer n Client Receipts,M,Fees n Charges,MB,23/10/2015,PAY00808391,PHYS,Physical Support,-5237.96,Revenue,Arundel Park Lodge
Brighton & Hove City Council,http://statistics.data.gov.uk/id/local-authority/00ML,Adult Social Care,BVASOC,ASC Physical Support,PHY,Third Party Payments,F,Other Establishments,FH,23/10/2015,PAY00808391,PHYS,Physical Support,21979.64,Revenue,Arundel Park Lodge
Brighton & Hove City Council,http://statistics.data.gov.uk/id/local-authority/00ML,Non I&E,BVANON,Cap - Housing Services - HRA,4HR,New Construction n Conversion,PB,New Construction n Conversion,PBL5,28/10/2015,PAY00809299,HPAI,Property & Investment,1787.50,Capital,Ascendit Lifts Ltd
Brighton & Hove City Council,http://statistics.data.gov.uk/id/local-authority/00ML,Children`s & Education Serv,BVAEDU,Ed Ed Other Other,ENF,Premises Related,C,Repair Maint n Alterations,CA,28/10/2015,PAY00809444,PROP,Property and Design,940.00,Revenue,Ashdown Site Investigations Ltd
Brighton & Hove City Council,http://statistics.data.gov.uk/id/local-authority/00ML,Adult Social Care,BVASOC,ASC Mental Health Support,MHP,Third Party Payments,F,Other Establishments,FH,14/10/2015,PAY00804828,MENH,Mental Health Support,14447.88,Revenue,Ashford House Ltd
Brighton & Hove City Council,http://statistics.data.gov.uk/id/local-authority/00ML,Adult Social Care,BVASOC,ASC Learning Disabilities,ALD,Customer n Client Receipts,M,Fees n Charges,MB,07/10/2015,PAY00803519,LDIS,Learning Disabilities,-518.00,Revenue,Ashmeadows House Ltd
Brighton & Hove City Council,http://statistics.data.gov.uk/id/local-authority/00ML,Adult Social Care,BVASOC,ASC Learning Disabilities,ALD,Third Party Payments,F,Other Establishments,FH,07/10/2015,PAY00803519,LDIS,Learning Disabilities,5128.48,Revenue,Ashmeadows House Ltd
Brighton & Hove City Council,http://statistics.data.gov.uk/id/local-authority/00ML,Adult Social Care,BVASOC,ASC Mental Health Support,MHP,Third Party Payments,F,Other Establishments,FH,07/10/2015,PAY00803519,MENH,Mental Health Support,1239.08,Revenue,Ashmeadows House Ltd
Brighton & Hove City Council,http://statistics.data.gov.uk/id/local-authority/00ML,Adult Social Care,BVASOC,ASC Memory Cognition Support,MEM,Customer n Client Receipts,M,Fees n Charges,MB,23/10/2015,PAY00808875,COGN,Memory Cognition Support,-719.76,Revenue,Ashton House
Brighton & Hove City Council,http://statistics.data.gov.uk/id/local-authority/00ML,Adult Social Care,BVASOC,ASC Memory Cognition Support,MEM,Third Party Payments,F,Other Establishments,FH,23/10/2015,PAY00808875,COGN,Memory Cognition Support,4958.24,Revenue,Ashton House
Brighton & Hove City Council,http://statistics.data.gov.uk/id/local-authority/00ML,Children`s & Education Serv,BVAEDU,Child Srvcs - Fostering,FLF,Third Party Payments,F,Other Establishments,FH,14/10/2015,PAY00804863,AVFM,Agency Placements\VFM,3355.43,Revenue,Asphaleia Ltd
Brighton & Hove City Council,http://statistics.data.gov.uk/id/local-authority/00ML,Adult Social Care,BVASOC,ASC Learning Disabilities,ALD,Third Party Payments,F,Other Establishments,FH,21/10/2015,PAY00807406,LDIS,Learning Disabilities,20840.98,Revenue,Aspirations Active
Brighton & Hove City Council,http://statistics.data.gov.uk/id/local-authority/00ML,Adult Social Care,BVASOC,ASC Mental Health Support,MHP,Third Party Payments,F,Other Establishments,FH,09/10/2015,PAY00804641,MENH,Mental Health Support,3912.76,Revenue,Aspirations Care Ltd
Brighton & Hove City Council,http://statistics.data.gov.uk/id/local-authority/00ML,Adult Social Care,BVASOC,ASC Learning Disabilities,ALD,Third Party Payments,F,Other Establishments,FH,23/10/2015,PAY00808193,LDIS,Learning Disabilities,566.67,Revenue,Assert (B&H)
Brighton & Hove City Council,http://statistics.data.gov.uk/id/local-authority/00ML,Central Support and Overheads,BVACEN,Support Services (SSC),PPT,Indirect Employees,B,Training,BM,28/10/2015,PAY00809171,LIFE,Life Events,779.70,Revenue,Assoc Of Electoral Administrators Ltd
Brighton & Hove City Council,http://statistics.data.gov.uk/id/local-authority/00ML,Non I&E,BVANON,CAP Other Env Services,4EV,New Construction n Conversion,PB,New Construction n Conversion,PBL5,14/10/2015,PAY00805461,HWEN,Highways Engineering,3000.00,Capital,AST Floodwall Systems Ltd
Brighton & Hove City Council,http://statistics.data.gov.uk/id/local-authority/00ML,Non I&E,BVANON,CAP Housing Services GF,4HG,Capital Grants,PF,Capital Grants,PFL5,02/10/2015,PAY00802360,PSHG,Private Sector Housing,9192.00,Capital,Astor-Bannerman (Medical) Ltd
Brighton & Hove City Council,http://statistics.data.gov.uk/id/local-authority/00ML,Cultural and Related Serv,BVACUL,Management Services (DEC),MGT,Transport Related,D,Direct Transport Costs,DA,21/10/2015,PAY00807689,CIPK,City Parks,353.35,Revenue,ATE (UK) Ltd
Brighton & Hove City Council,http://statistics.data.gov.uk/id/local-authority/00ML,Cultural and Related Serv,BVACUL,Management Services (DEC),MGT,Transport Related,D,Direct Transport Costs,DA,30/10/2015,PAY00811253,CIPK,City Parks,241.95,Revenue,ATE (UK) Ltd
Brighton & Hove City Council,http://statistics.data.gov.uk/id/local-authority/00ML,Adult Social Care,BVASOC,ASC Learning Disabilities,ALD,Transport Related,D,Direct Transport Costs,DA,07/10/2015,PAY00803306,DAYS,Day Services,15.28,Revenue,ATS Euromaster Ltd
Brighton & Hove City Council,http://statistics.data.gov.uk/id/local-authority/00ML,Adult Social Care,BVASOC,ASC Learning Disabilities,ALD,Transport Related,D,Direct Transport Costs,DA,07/10/2015,PAY00803306,LDAS,LD Accommodation Services,126.08,Revenue,ATS Euromaster Ltd
Brighton & Hove City Council,http://statistics.data.gov.uk/id/local-authority/00ML,Adult Social Care,BVASOC,ASC Physical Support,PHY,Transport Related,D,Direct Transport Costs,DA,07/10/2015,PAY00803306,CONT,Contracts,215.02,Revenue,ATS Euromaster Ltd
Brighton & Hove City Council,http://statistics.data.gov.uk/id/local-authority/00ML,Children`s & Education Serv,BVAEDU,Child Srvcs Com and Scl Work,FCW,Transport Related,D,Direct Transport Costs,DA,07/10/2015,PAY00803306,SOCK,Social Work,62.97,Revenue,ATS Euromaster Ltd
Brighton & Hove City Council,http://statistics.data.gov.uk/id/local-authority/00ML,Cultural and Related Serv,BVACUL,Management Services (DEC),MGT,Transport Related,D,Direct Transport Costs,DA,07/10/2015,PAY00803306,CIPK,City Parks,1456.61,Revenue,ATS Euromaster Ltd
Brighton & Hove City Council,http://statistics.data.gov.uk/id/local-authority/00ML,Cultural and Related Serv,BVACUL,Open Spaces,PEN,Transport Related,D,Direct Transport Costs,DA,07/10/2015,PAY00803306,CIPK,City Parks,770.36,Revenue,ATS Euromaster Ltd
Brighton & Hove City Council,http://statistics.data.gov.uk/id/local-authority/00ML,Cultural and Related Serv,BVACUL,Recreation and Sport,REC,Transport Related,D,Direct Transport Costs,DA,07/10/2015,PAY00803306,SEAS,Seafront Services,176.64,Revenue,ATS Euromaster Ltd
Brighton & Hove City Council,http://statistics.data.gov.uk/id/local-authority/00ML,Environment & Regulatory Serv,BVAERS,Management Services (DEC),MGT,Transport Related,D,Direct Transport Costs,DA,07/10/2015,PAY00803306,CICL,City Clean,103.25,Revenue,ATS Euromaster Ltd
Brighton & Hove City Council,http://statistics.data.gov.uk/id/local-authority/00ML,Environment & Regulatory Serv,BVAERS,Street Cleansing,CLE,Transport Related,D,Direct Transport Costs,DA,07/10/2015,PAY00803306,CICL,City Clean,300.55,Revenue,ATS Euromaster Ltd
Brighton & Hove City Council,http://statistics.data.gov.uk/id/local-authority/00ML,Environment & Regulatory Serv,BVAERS,Waste Management,WMT,Transport Related,D,Direct Transport Costs,DA,07/10/2015,PAY00803306,CICL,City Clean,1798.88,Revenue,ATS Euromaster Ltd
Brighton & Hove City Council,http://statistics.data.gov.uk/id/local-authority/00ML,Highways and Transportation,BVAHRT,Highways and Roads - Mntnce,HRM,Transport Related,D,Direct Transport Costs,DA,07/10/2015,PAY00803306,HIGH,Highways,69.40,Revenue,ATS Euromaster Ltd
Brighton & Hove City Council,http://statistics.data.gov.uk/id/local-authority/00ML,Housing Revenue Account,BVAHOU,Hsing Management - HRA,HGM,Transport Related,D,Direct Transport Costs,DA,07/10/2015,PAY00803306,HTEN,Tenancy Services,89.48,Revenue,ATS Euromaster Ltd
Brighton & Hove City Council,http://statistics.data.gov.uk/id/local-authority/00ML,Adult Social Care,BVASOC,ASC Learning Disabilities,ALD,Transport Related,D,Direct Transport Costs,DA,28/10/2015,PAY00809449,LDAS,LD Accommodation Services,53.98,Revenue,ATS Euromaster Ltd
Brighton & Hove City Council,http://statistics.data.gov.uk/id/local-authority/00ML,Adult Social Care,BVASOC,ASC Memory Cognition Support,MEM,Transport Related,D,Direct Transport Costs,DA,28/10/2015,PAY00809449,DAYS,Day Services,99.89,Revenue,ATS Euromaster Ltd
Brighton & Hove City Council,http://statistics.data.gov.uk/id/local-authority/00ML,Children`s & Education Serv,BVAEDU,Child Srvcs Com and Scl Work,FCW,Transport Related,D,Direct Transport Costs,DA,28/10/2015,PAY00809449,SOCK,Social Work,72.07,Revenue,ATS Euromaster Ltd
Brighton & Hove City Council,http://statistics.data.gov.uk/id/local-authority/00ML,Cultural and Related Serv,BVACUL,Management Services (DEC),MGT,Transport Related,D,Direct Transport Costs,DA,28/10/2015,PAY00809449,CIPK,City Parks,3002.15,Revenue,ATS Euromaster Ltd
Brighton & Hove City Council,http://statistics.data.gov.uk/id/local-authority/00ML,Cultural and Related Serv,BVACUL,Recreation and Sport,REC,Transport Related,D,Direct Transport Costs,DA,28/10/2015,PAY00809449,SEAS,Seafront Services,215.87,Revenue,ATS Euromaster Ltd
Brighton & Hove City Council,http://statistics.data.gov.uk/id/local-authority/00ML,Environment & Regulatory Serv,BVAERS,Street Cleansing,CLE,Transport Related,D,Direct Transport Costs,DA,28/10/2015,PAY00809449,CICL,City Clean,165.29,Revenue,ATS Euromaster Ltd
Brighton & Hove City Council,http://statistics.data.gov.uk/id/local-authority/00ML,Environment & Regulatory Serv,BVAERS,Waste Management,WMT,Transport Related,D,Direct Transport Costs,DA,28/10/2015,PAY00809449,CICL,City Clean,3394.32,Revenue,ATS Euromaster Ltd
Brighton & Hove City Council,http://statistics.data.gov.uk/id/local-authority/00ML,Housing Revenue Account,BVAHOU,Hsing Management - HRA,HGM,Transport Related,D,Direct Transport Costs,DA,28/10/2015,PAY00809449,HTEN,Tenancy Services,267.47,Revenue,ATS Euromaster Ltd
Brighton & Hove City Council,http://statistics.data.gov.uk/id/local-authority/00ML,Children`s & Education Serv,BVAEDU,Child Srvcs Adoption,FAA,Customer n Client Receipts,M,Fees n Charges,MB,07/10/2015,PAY00803742,CHIC,Children In Care,435.00,Revenue,Attachment Works Ltd
Brighton & Hove City Council,http://statistics.data.gov.uk/id/local-authority/00ML,Children`s & Education Serv,BVAEDU,Child Srvcs Adoption,FAA,Customer n Client Receipts,M,Fees n Charges,MB,14/10/2015,PAY00805466,CHIC,Children In Care,425.00,Revenue,Attachment Works Ltd
Brighton & Hove City Council,http://statistics.data.gov.uk/id/local-authority/00ML,Non I&E,BVANON,CAP Other Env Services,4EV,New Construction n Conversion,PB,New Construction n Conversion,PBL5,28/10/2015,PAY00809450,PROP,Property and Design,4280.00,Capital,Austins Cradles Ltd
Brighton & Hove City Council,http://statistics.data.gov.uk/id/local-authority/00ML,Adult Social Care,BVASOC,ASC Learning Disabilities,ALD,Third Party Payments,F,Other Establishments,FH,14/10/2015,PAY00805057,LDIS,Learning Disabilities,3198.00,Revenue,Autism Sussex Ltd
Brighton & Hove City Council,http://statistics.data.gov.uk/id/local-authority/00ML,Adult Social Care,BVASOC,ASC Learning Disabilities,ALD,Customer n Client Receipts,M,Fees n Charges,MB,23/10/2015,PAY00808441,LDIS,Learning Disabilities,-1437.40,Revenue,Autism Sussex Ltd
Brighton & Hove City Council,http://statistics.data.gov.uk/id/local-authority/00ML,Adult Social Care,BVASOC,ASC Learning Disabilities,ALD,Third Party Payments,F,Other Establishments,FH,23/10/2015,PAY00808441,LDIS,Learning Disabilities,24697.60,Revenue,Autism Sussex Ltd
Brighton & Hove City Council,http://statistics.data.gov.uk/id/local-authority/00ML,Adult Social Care,BVASOC,ASC Learning Disabilities,ALD,Customer n Client Receipts,M,Fees n Charges,MB,30/10/2015,PAY00810656,LDIS,Learning Disabilities,-156.00,Revenue,Autism Sussex Ltd
Brighton & Hove City Council,http://statistics.data.gov.uk/id/local-authority/00ML,Adult Social Care,BVASOC,ASC Learning Disabilities,ALD,Third Party Payments,F,Other Establishments,FH,30/10/2015,PAY00810656,LDIS,Learning Disabilities,7672.30,Revenue,Autism Sussex Ltd
Brighton & Hove City Council,http://statistics.data.gov.uk/id/local-authority/00ML,Adult Social Care,BVASOC,ASC Mental Health Support,MHP,Customer n Client Receipts,M,Fees n Charges,MB,30/10/2015,PAY00810656,MENH,Mental Health Support,-41.00,Revenue,Autism Sussex Ltd
Brighton & Hove City Council,http://statistics.data.gov.uk/id/local-authority/00ML,Adult Social Care,BVASOC,ASC Mental Health Support,MHP,Third Party Payments,F,Other Establishments,FH,30/10/2015,PAY00810656,MENH,Mental Health Support,1955.00,Revenue,Autism Sussex Ltd
Brighton & Hove City Council,http://statistics.data.gov.uk/id/local-authority/00ML,Adult Social Care,BVASOC,ASC Physical Support,PHY,Third Party Payments,F,Other Establishments,FH,30/10/2015,PAY00810656,PHYS,Physical Support,330.00,Revenue,Autism Sussex Ltd
Brighton & Hove City Council,http://statistics.data.gov.uk/id/local-authority/00ML,Central Support and Overheads,BVACEN,Support Services (SSC),PPT,Supplies and Services,E,Miscellaneous Expenses,EM,23/10/2015,PAY00808165,ICTA,ICT,1000.00,Revenue,Aviation Projects Ltd
Brighton & Hove City Council,http://statistics.data.gov.uk/id/local-authority/00ML,Children`s & Education Serv,BVAEDU,Child Srvcs Com and Scl Work,FCW,Direct Employees,A,Salaries,AA,14/10/2015,PAY00805241,SOCK,Social Work,278.80,Revenue,Avocet Services Limited
Brighton & Hove City Council,http://statistics.data.gov.uk/id/local-authority/00ML,Housing General Fund,BVAHOG,Homelessness,HML,Premises Related,C,Rents Payable,CC,02/10/2015,PAY00802426,TAAS,Temp Accom and Allocations,950.00,Revenue,Avon Estates (London) Ltd
Brighton & Hove City Council,http://statistics.data.gov.uk/id/local-authority/00ML,Housing General Fund,BVAHOG,Homelessness,HML,Premises Related,C,Rents Payable,CC,14/10/2015,PAY00804942,TAAS,Temp Accom and Allocations,600.00,Revenue,Avon Estates (London) Ltd
Brighton & Hove City Council,http://statistics.data.gov.uk/id/local-authority/00ML,Housing General Fund,BVAHOG,Homelessness,HML,Premises Related,C,Rents Payable,CC,30/10/2015,PAY00810445,TAAS,Temp Accom and Allocations,950.00,Revenue,Avon Estates (London) Ltd
Brighton & Hove City Council,http://statistics.data.gov.uk/id/local-authority/00ML,Adult Social Care,BVASOC,ASC Memory Cognition Support,MEM,Customer n Client Receipts,M,Fees n Charges,MB,21/10/2015,PAY00807390,COGN,Memory Cognition Support,-2111.04,Revenue,Avon House (Cobham Care) Ltd
Brighton & Hove City Council,http://statistics.data.gov.uk/id/local-authority/00ML,Adult Social Care,BVASOC,ASC Memory Cognition Support,MEM,Third Party Payments,F,Other Establishments,FH,21/10/2015,PAY00807390,COGN,Memory Cognition Support,3000.00,Revenue,Avon House (Cobham Care) Ltd
Brighton & Hove City Council,http://statistics.data.gov.uk/id/local-authority/00ML,Central Support and Overheads,BVACEN,Support Services (SSC),PPT,Supplies and Services,E,Miscellaneous Expenses,EM,23/10/2015,PAY00808197,ICTA,ICT,4500.00,Revenue,AWCFA Limited
Brighton & Hove City Council,http://statistics.data.gov.uk/id/local-authority/00ML,Children`s & Education Serv,BVAEDU,Ed Ed Other LA Attrib Sch,ELA,Transport Related,D,Other Transport Costs,DG,16/10/2015,PAY00805999,OEDS,Other Education Support,135237.63,Revenue,B & H City Cabs
Brighton & Hove City Council,http://statistics.data.gov.uk/id/local-authority/00ML,Children`s & Education Serv,BVAEDU,Ed Ed Other LA Attrib Sch,ELA,Transport Related,D,Other Transport Costs,DG,21/10/2015,PAY00807375,OEDS,Other Education Support,4182.10,Revenue,B & H City Cabs
Brighton & Hove City Council,http://statistics.data.gov.uk/id/local-authority/00ML,Children`s & Education Serv,BVAEDU,Support Services (SSC),PPT,Transport Related,D,Public Transport,DD,21/10/2015,PAY00807375,OEDS,Other Education Support,61.00,Revenue,B & H City Cabs
Brighton & Hove City Council,http://statistics.data.gov.uk/id/local-authority/00ML,Housing General Fund,BVAHOG,Homelessness,HML,Transport Related,D,Public Transport,DD,21/10/2015,PAY00807375,TAAS,Temp Accom and Allocations,114.66,Revenue,B & H City Cabs
Brighton & Hove City Council,http://statistics.data.gov.uk/id/local-authority/00ML,Children`s & Education Serv,BVAEDU,Support Services (SSC),PPT,Transport Related,D,Public Transport,DD,23/10/2015,PAY00808381,OEDS,Other Education Support,7875.20,Revenue,B & H City Cabs
Brighton & Hove City Council,http://statistics.data.gov.uk/id/local-authority/00ML,Cultural and Related Serv,BVACUL,Tourism,TRM,Supplies and Services,E,Miscellaneous Expenses,EM,28/10/2015,PAY00809510,TOMA,Tourism and Marketing,260.00,Revenue,B & H City Cabs
Brighton & Hove City Council,http://statistics.data.gov.uk/id/local-authority/00ML,Housing General Fund,BVAHOG,Homelessness,HML,Premises Related,C,Repair Maint n Alterations,CA,02/10/2015,PAY00802391,TAAS,Temp Accom and Allocations,402.84,Revenue,B & Q Plc
Brighton & Hove City Council,http://statistics.data.gov.uk/id/local-authority/00ML,Housing General Fund,BVAHOG,Homelessness,HML,Premises Related,C,Repair Maint n Alterations,CA,07/10/2015,PAY00803239,TAAS,Temp Accom and Allocations,337.02,Revenue,B & Q Plc
Brighton & Hove City Council,http://statistics.data.gov.uk/id/local-authority/00ML,Housing General Fund,BVAHOG,Homelessness,HML,Premises Related,C,Repair Maint n Alterations,CA,09/10/2015,PAY00803989,TAAS,Temp Accom and Allocations,309.96,Revenue,B & Q Plc
Brighton & Hove City Council,http://statistics.data.gov.uk/id/local-authority/00ML,Housing General Fund,BVAHOG,Homelessness,HML,Premises Related,C,Repair Maint n Alterations,CA,21/10/2015,PAY00807248,TAAS,Temp Accom and Allocations,895.98,Revenue,B & Q Plc
Brighton & Hove City Council,http://statistics.data.gov.uk/id/local-authority/00ML,Housing General Fund,BVAHOG,Homelessness,HML,Premises Related,C,Repair Maint n Alterations,CA,28/10/2015,PAY00809300,TAAS,Temp Accom and Allocations,788.37,Revenue,B & Q Plc
Brighton & Hove City Council,http://statistics.data.gov.uk/id/local-authority/00ML,Planning and Development,BVAPLA,Community Development,CDV,Supplies and Services,E,Services,EF,28/10/2015,PAY00809300,CMNY,Communities and Equalities,32.18,Revenue,B & Q Plc
Brighton & Hove City Council,http://statistics.data.gov.uk/id/local-authority/00ML,Adult Social Care,BVASOC,ASC Learning Disabilities,ALD,Customer n Client Receipts,M,Fees n Charges,MB,07/10/2015,PAY00803271,LDIS,Learning Disabilities,-232.00,Revenue,B&H Home Care Service
Brighton & Hove City Council,http://statistics.data.gov.uk/id/local-authority/00ML,Adult Social Care,BVASOC,ASC Learning Disabilities,ALD,Third Party Payments,F,Other Establishments,FH,07/10/2015,PAY00803271,LDIS,Learning Disabilities,1254.00,Revenue,B&H Home Care Service
Brighton & Hove City Council,http://statistics.data.gov.uk/id/local-authority/00ML,Adult Social Care,BVASOC,ASC Learning Disabilities,ALD,Customer n Client Receipts,M,Fees n Charges,MB,16/10/2015,PAY00805788,LDIS,Learning Disabilities,-616.00,Revenue,B&H Home Care Service
Brighton & Hove City Council,http://statistics.data.gov.uk/id/local-authority/00ML,Adult Social Care,BVASOC,ASC Learning Disabilities,ALD,Third Party Payments,F,Other Establishments,FH,16/10/2015,PAY00805788,LDIS,Learning Disabilities,12348.79,Revenue,B&H Home Care Service
Brighton & Hove City Council,http://statistics.data.gov.uk/id/local-authority/00ML,Adult Social Care,BVASOC,ASC Physical Support,PHY,Third Party Payments,F,Other Establishments,FH,16/10/2015,PAY00805788,PHYS,Physical Support,519.75,Revenue,B&H Home Care Service
Brighton & Hove City Council,http://statistics.data.gov.uk/id/local-authority/00ML,Adult Social Care,BVASOC,Commission & Service Delivery,CMM,Third Party Payments,F,Other Establishments,FH,16/10/2015,PAY00805788,COMM,Commissioning,1170.00,Revenue,B&H Home Care Service
Brighton & Hove City Council,http://statistics.data.gov.uk/id/local-authority/00ML,Adult Social Care,BVASOC,ASC Learning Disabilities,ALD,Third Party Payments,F,Other Establishments,FH,21/10/2015,PAY00807295,LDIS,Learning Disabilities,363.00,Revenue,B&H Home Care Service
Brighton & Hove City Council,http://statistics.data.gov.uk/id/local-authority/00ML,Adult Social Care,BVASOC,ASC Learning Disabilities,ALD,Customer n Client Receipts,M,Fees n Charges,MB,28/10/2015,PAY00809374,LDIS,Learning Disabilities,-568.00,Revenue,B&H Home Care Service
Brighton & Hove City Council,http://statistics.data.gov.uk/id/local-authority/00ML,Adult Social Care,BVASOC,ASC Learning Disabilities,ALD,Third Party Payments,F,Other Establishments,FH,28/10/2015,PAY00809374,LDIS,Learning Disabilities,11966.35,Revenue,B&H Home Care Service
Brighton & Hove City Council,http://statistics.data.gov.uk/id/local-authority/00ML,Adult Social Care,BVASOC,ASC Physical Support,PHY,Third Party Payments,F,Other Establishments,FH,28/10/2015,PAY00809374,PHYS,Physical Support,1551.00,Revenue,B&H Home Care Service
Brighton & Hove City Council,http://statistics.data.gov.uk/id/local-authority/00ML,Cultural and Related Serv,BVACUL,Management Services (DEC),MGT,Supplies and Services,E,Equip't Furniture n Materials,EA,14/10/2015,PAY00804929,CIPK,City Parks,526.40,Revenue,Ball Colegrave Ltd
Brighton & Hove City Council,http://statistics.data.gov.uk/id/local-authority/00ML,Adult Social Care,BVASOC,ASC Learning Disabilities,ALD,Customer n Client Receipts,M,Fees n Charges,MB,16/10/2015,PAY00806229,LDIS,Learning Disabilities,-321.80,Revenue,Ballater House
Brighton & Hove City Council,http://statistics.data.gov.uk/id/local-authority/00ML,Adult Social Care,BVASOC,ASC Learning Disabilities,ALD,Third Party Payments,F,Other Establishments,FH,16/10/2015,PAY00806229,LDIS,Learning Disabilities,7980.00,Revenue,Ballater House
Brighton & Hove City Council,http://statistics.data.gov.uk/id/local-authority/00ML,Children`s & Education Serv,BVAEDU,Ed Mgmt and Support Services,EMG,Indirect Employees,B,Misc Employee Costs,BP,21/10/2015,PAY00807793,OEDS,Other Education Support,9120.00,Revenue,Baltimore Consulting Limited
Brighton & Hove City Council,http://statistics.data.gov.uk/id/local-authority/00ML,Central Support and Overheads,BVACEN,Holding Accounts,PPH,Premises Related,C,Repair Maint n Alterations,CA,09/10/2015,PAY00804601,PROP,Property and Design,1689.00,Revenue,Banyard Maintenance Limited
Brighton & Hove City Council,http://statistics.data.gov.uk/id/local-authority/00ML,Central Support and Overheads,BVACEN,Holding Accounts,PPH,Premises Related,C,Repair Maint n Alterations,CA,28/10/2015,PAY00809976,PROP,Property and Design,481.90,Revenue,Banyard Maintenance Limited
Brighton & Hove City Council,http://statistics.data.gov.uk/id/local-authority/00ML,Central Support and Overheads,BVACEN,Support Services (SSC),PPT,Premises Related,C,Repair Maint n Alterations,CA,28/10/2015,PAY00809976,PROP,Property and Design,20000.45,Revenue,Banyard Maintenance Limited
Brighton & Hove City Council,http://statistics.data.gov.uk/id/local-authority/00ML,Public Health,BVAPHE,Public Health,PHE,Third Party Payments,F,Voluntary Associations,FG,21/10/2015,PAY00807730,PHCM,PH Commissioning,6319.60,Revenue,Barbara Deacon-Hedges Limited
Brighton & Hove City Council,http://statistics.data.gov.uk/id/local-authority/00ML,Adult Social Care,BVASOC,ASC Memory Cognition Support,MEM,Third Party Payments,F,Other Establishments,FH,14/10/2015,PAY00804943,COGN,Memory Cognition Support,5600.00,Revenue,Barchester Healthcare Homes Ltd
Brighton & Hove City Council,http://statistics.data.gov.uk/id/local-authority/00ML,Children`s & Education Serv,BVAEDU,Child Srvcs Leaving Care,FAL,Transfer Payments,G,Other Transfer Payments,GD,23/10/2015,PAY00808506,CHIC,Children In Care,28008.42,Revenue,Barnardo Services Ltd
Brighton & Hove City Council,http://statistics.data.gov.uk/id/local-authority/00ML,Children`s & Education Serv,BVAEDU,Child Srvcs - Fostering,FLF,Third Party Payments,F,Other Establishments,FH,14/10/2015,PAY00804877,AVFM,Agency Placements\VFM,9698.68,Revenue,Barnardo`s
Brighton & Hove City Council,http://statistics.data.gov.uk/id/local-authority/00ML,Children`s & Education Serv,BVAEDU,Child Srvcs - Fostering,FLF,Third Party Payments,F,Other Establishments,FH,21/10/2015,PAY00807227,DISS,Disability Services,79840.50,Revenue,Barnardo`s
Brighton & Hove City Council,http://statistics.data.gov.uk/id/local-authority/00ML,Central Support and Overheads,BVACEN,Holding Accounts,PPH,Transport Related,D,Direct Transport Costs,DA,23/10/2015,PAY00808153,CICL,City Clean,465.00,Revenue,Barnes DAF
Brighton & Hove City Council,http://statistics.data.gov.uk/id/local-authority/00ML,Environment & Regulatory Serv,BVAERS,Management Services (DEC),MGT,Transport Related,D,Direct Transport Costs,DA,23/10/2015,PAY00808153,CICL,City Clean,45.69,Revenue,Barnes DAF
Brighton & Hove City Council,http://statistics.data.gov.uk/id/local-authority/00ML,Cultural and Related Serv,BVACUL,Management Services (DEC),MGT,Transport Related,D,Direct Transport Costs,DA,30/10/2015,PAY00810399,CIPK,City Parks,100.08,Revenue,Barnes DAF
Brighton & Hove City Council,http://statistics.data.gov.uk/id/local-authority/00ML,Environment & Regulatory Serv,BVAERS,Management Services (DEC),MGT,Transport Related,D,Direct Transport Costs,DA,30/10/2015,PAY00810399,CICL,City Clean,1177.60,Revenue,Barnes DAF
Brighton & Hove City Council,http://statistics.data.gov.uk/id/local-authority/00ML,Housing General Fund,BVAHOG,Homelessness,HML,Premises Related,C,Rents Payable,CC,02/10/2015,PAY00802870,TAAS,Temp Accom and Allocations,1694.64,Revenue,Baron Developments Ltd
Brighton & Hove City Council,http://statistics.data.gov.uk/id/local-authority/00ML,Housing General Fund,BVAHOG,Homelessness,HML,Premises Related,C,Rents Payable,CC,07/10/2015,PAY00803582,TAAS,Temp Accom and Allocations,2722.46,Revenue,Baron Developments Ltd
Brighton & Hove City Council,http://statistics.data.gov.uk/id/local-authority/00ML,Housing General Fund,BVAHOG,Homelessness,HML,Premises Related,C,Rents Payable,CC,14/10/2015,PAY00805283,TAAS,Temp Accom and Allocations,2541.96,Revenue,Baron Developments Ltd
Brighton & Hove City Council,http://statistics.data.gov.uk/id/local-authority/00ML,Housing General Fund,BVAHOG,Homelessness,HML,Premises Related,C,Rents Payable,CC,16/10/2015,PAY00806567,TAAS,Temp Accom and Allocations,847.32,Revenue,Baron Developments Ltd
Brighton & Hove City Council,http://statistics.data.gov.uk/id/local-authority/00ML,Housing General Fund,BVAHOG,Homelessness,HML,Premises Related,C,Rents Payable,CC,28/10/2015,PAY00809868,TAAS,Temp Accom and Allocations,2541.96,Revenue,Baron Developments Ltd
Brighton & Hove City Council,http://statistics.data.gov.uk/id/local-authority/00ML,Housing General Fund,BVAHOG,Homelessness,HML,Premises Related,C,Rents Payable,CC,30/10/2015,PAY00811143,TAAS,Temp Accom and Allocations,2222.32,Revenue,Baron Developments Ltd
Brighton & Hove City Council,http://statistics.data.gov.uk/id/local-authority/00ML,Housing General Fund,BVAHOG,Homelessness,HML,Premises Related,C,Rents Payable,CC,07/10/2015,PAY00803425,TAAS,Temp Accom and Allocations,703.32,Revenue,Baron Management Ltd
Brighton & Hove City Council,http://statistics.data.gov.uk/id/local-authority/00ML,Housing General Fund,BVAHOG,Homelessness,HML,Premises Related,C,Rents Payable,CC,09/10/2015,PAY00804286,TAAS,Temp Accom and Allocations,1564.20,Revenue,Baron Management Ltd
Brighton & Hove City Council,http://statistics.data.gov.uk/id/local-authority/00ML,Housing General Fund,BVAHOG,Homelessness,HML,Premises Related,C,Rents Payable,CC,14/10/2015,PAY00805093,TAAS,Temp Accom and Allocations,650.00,Revenue,Baron Management Ltd
Brighton & Hove City Council,http://statistics.data.gov.uk/id/local-authority/00ML,Housing General Fund,BVAHOG,Homelessness,HML,Premises Related,C,Rents Payable,CC,16/10/2015,PAY00806089,TAAS,Temp Accom and Allocations,730.00,Revenue,Baron Management Ltd
Brighton & Hove City Council,http://statistics.data.gov.uk/id/local-authority/00ML,Housing General Fund,BVAHOG,Homelessness,HML,Premises Related,C,Rents Payable,CC,21/10/2015,PAY00807447,TAAS,Temp Accom and Allocations,9220.00,Revenue,Baron Management Ltd
Brighton & Hove City Council,http://statistics.data.gov.uk/id/local-authority/00ML,Housing General Fund,BVAHOG,Homelessness,HML,Premises Related,C,Rents Payable,CC,23/10/2015,PAY00808498,TAAS,Temp Accom and Allocations,847.32,Revenue,Baron Management Ltd
Brighton & Hove City Council,http://statistics.data.gov.uk/id/local-authority/00ML,Adult Social Care,BVASOC,ASC Physical Support,PHY,Third Party Payments,F,Other Establishments,FH,16/10/2015,PAY00805653,PHYS,Physical Support,2333.45,Revenue,Barons Down Nursing Home
Brighton & Hove City Council,http://statistics.data.gov.uk/id/local-authority/00ML,Public Health,BVAPHE,Public Health,PHE,Third Party Payments,F,Health Authorities,FC,07/10/2015,PAY00803644,PHCM,PH Commissioning,1642.10,Revenue,Barts Health NHS Trust
Brighton & Hove City Council,http://statistics.data.gov.uk/id/local-authority/00ML,Children`s & Education Serv,BVAEDU,Child Srvcs Com and Scl Work,FCW,Supplies and Services,E,Grants n Subscriptions,EK,02/10/2015,PAY00802621,SPAS,Specialist Assessments,273.00,Revenue,BASPCAN
Brighton & Hove City Council,http://statistics.data.gov.uk/id/local-authority/00ML,Cultural and Related Serv,BVACUL,Culture and Heritage,CHG,Supplies and Services,E,Print Stat & Gen Office Exps,ED,21/10/2015,PAY00807299,RPMU,Royal Pavilion and Museums,1350.00,Revenue,Bay Media Ltd
Brighton & Hove City Council,http://statistics.data.gov.uk/id/local-authority/00ML,Central Support and Overheads,BVACEN,Support Services (SSC),PPT,Supplies and Services,E,Miscellaneous Expenses,EM,02/10/2015,PAY00802982,FINS,Financial Services,4869.74,Revenue,BDI Securities UK Ltd
Brighton & Hove City Council,http://statistics.data.gov.uk/id/local-authority/00ML,Cultural and Related Serv,BVACUL,Culture and Heritage,CHG,Supplies and Services,E,Miscellaneous Expenses,EM,02/10/2015,PAY00802982,RPMU,Royal Pavilion and Museums,800.00,Revenue,BDI Securities UK Ltd
Brighton & Hove City Council,http://statistics.data.gov.uk/id/local-authority/00ML,Highways and Transportation,BVAHRT,Parking Services,PRK,Customer n Client Receipts,M,Fees n Charges,MB,02/10/2015,PAY00802982,PARK,Parking,350.00,Revenue,BDI Securities UK Ltd
Brighton & Hove City Council,http://statistics.data.gov.uk/id/local-authority/00ML,Central Support and Overheads,BVACEN,Support Services (SSC),PPT,Supplies and Services,E,Miscellaneous Expenses,EM,09/10/2015,PAY00804613,FINS,Financial Services,5577.86,Revenue,BDI Securities UK Ltd
Brighton & Hove City Council,http://statistics.data.gov.uk/id/local-authority/00ML,Cultural and Related Serv,BVACUL,Culture and Heritage,CHG,Supplies and Services,E,Miscellaneous Expenses,EM,09/10/2015,PAY00804613,RPMU,Royal Pavilion and Museums,800.00,Revenue,BDI Securities UK Ltd
Brighton & Hove City Council,http://statistics.data.gov.uk/id/local-authority/00ML,Highways and Transportation,BVAHRT,Parking Services,PRK,Customer n Client Receipts,M,Fees n Charges,MB,09/10/2015,PAY00804613,PARK,Parking,350.00,Revenue,BDI Securities UK Ltd
Brighton & Hove City Council,http://statistics.data.gov.uk/id/local-authority/00ML,Central Support and Overheads,BVACEN,Support Services (SSC),PPT,Supplies and Services,E,Services,EF,14/10/2015,PAY00805393,FINS,Financial Services,37048.26,Revenue,BDI Securities UK Ltd
Brighton & Hove City Council,http://statistics.data.gov.uk/id/local-authority/00ML,Central Support and Overheads,BVACEN,Support Services (SSC),PPT,Supplies and Services,E,Miscellaneous Expenses,EM,16/10/2015,PAY00806828,FINS,Financial Services,5475.26,Revenue,BDI Securities UK Ltd
Brighton & Hove City Council,http://statistics.data.gov.uk/id/local-authority/00ML,Cultural and Related Serv,BVACUL,Culture and Heritage,CHG,Supplies and Services,E,Miscellaneous Expenses,EM,16/10/2015,PAY00806828,RPMU,Royal Pavilion and Museums,250.00,Revenue,BDI Securities UK Ltd
Brighton & Hove City Council,http://statistics.data.gov.uk/id/local-authority/00ML,Highways and Transportation,BVAHRT,Parking Services,PRK,Customer n Client Receipts,M,Fees n Charges,MB,16/10/2015,PAY00806828,PARK,Parking,350.00,Revenue,BDI Securities UK Ltd
Brighton & Hove City Council,http://statistics.data.gov.uk/id/local-authority/00ML,Central Support and Overheads,BVACEN,Support Services (SSC),PPT,Supplies and Services,E,Miscellaneous Expenses,EM,23/10/2015,PAY00808849,FINS,Financial Services,4115.59,Revenue,BDI Securities UK Ltd
Brighton & Hove City Council,http://statistics.data.gov.uk/id/local-authority/00ML,Cultural and Related Serv,BVACUL,Culture and Heritage,CHG,Supplies and Services,E,Miscellaneous Expenses,EM,23/10/2015,PAY00808849,RPMU,Royal Pavilion and Museums,250.00,Revenue,BDI Securities UK Ltd
Brighton & Hove City Council,http://statistics.data.gov.uk/id/local-authority/00ML,Highways and Transportation,BVAHRT,Parking Services,PRK,Customer n Client Receipts,M,Fees n Charges,MB,23/10/2015,PAY00808849,PARK,Parking,350.00,Revenue,BDI Securities UK Ltd
Brighton & Hove City Council,http://statistics.data.gov.uk/id/local-authority/00ML,Non-BHC Organisations,BVANON,Trusts,TRT,Supplies and Services,E,Miscellaneous Expenses,EM,23/10/2015,PAY00808849,NBHC,Non Council,1000.00,Revenue,BDI Securities UK Ltd
Brighton & Hove City Council,http://statistics.data.gov.uk/id/local-authority/00ML,Central Support and Overheads,BVACEN,Support Services (SSC),PPT,Supplies and Services,E,Miscellaneous Expenses,EM,30/10/2015,PAY00811292,FINS,Financial Services,5006.88,Revenue,BDI Securities UK Ltd
Brighton & Hove City Council,http://statistics.data.gov.uk/id/local-authority/00ML,Cultural and Related Serv,BVACUL,Culture and Heritage,CHG,Supplies and Services,E,Miscellaneous Expenses,EM,30/10/2015,PAY00811292,RPMU,Royal Pavilion and Museums,250.00,Revenue,BDI Securities UK Ltd
Brighton & Hove City Council,http://statistics.data.gov.uk/id/local-authority/00ML,Highways and Transportation,BVAHRT,Parking Services,PRK,Customer n Client Receipts,M,Fees n Charges,MB,30/10/2015,PAY00811292,PARK,Parking,350.00,Revenue,BDI Securities UK Ltd
Brighton & Hove City Council,http://statistics.data.gov.uk/id/local-authority/00ML,Adult Social Care,BVASOC,ASC Sensory Support,AHV,Customer n Client Receipts,M,Fees n Charges,MB,02/10/2015,PAY00802905,SORY,Sensory Support,-505.20,Revenue,Beachlands Care Ltd
Brighton & Hove City Council,http://statistics.data.gov.uk/id/local-authority/00ML,Adult Social Care,BVASOC,ASC Sensory Support,AHV,Third Party Payments,F,Other Establishments,FH,02/10/2015,PAY00802905,SORY,Sensory Support,1572.00,Revenue,Beachlands Care Ltd
Brighton & Hove City Council,http://statistics.data.gov.uk/id/local-authority/00ML,Adult Social Care,BVASOC,ASC Sensory Support,AHV,Customer n Client Receipts,M,Fees n Charges,MB,30/10/2015,PAY00811193,SORY,Sensory Support,-505.20,Revenue,Beachlands Care Ltd
Brighton & Hove City Council,http://statistics.data.gov.uk/id/local-authority/00ML,Adult Social Care,BVASOC,ASC Sensory Support,AHV,Third Party Payments,F,Other Establishments,FH,30/10/2015,PAY00811193,SORY,Sensory Support,1572.00,Revenue,Beachlands Care Ltd
Brighton & Hove City Council,http://statistics.data.gov.uk/id/local-authority/00ML,Adult Social Care,BVASOC,ASC Mental Health Support,MHP,Customer n Client Receipts,M,Fees n Charges,MB,23/10/2015,PAY00808207,MENH,Mental Health Support,1665.45,Revenue,Beachside Rest Home
Brighton & Hove City Council,http://statistics.data.gov.uk/id/local-authority/00ML,Adult Social Care,BVASOC,ASC Mental Health Support,MHP,Third Party Payments,F,Other Establishments,FH,23/10/2015,PAY00808207,MENH,Mental Health Support,-1170.24,Revenue,Beachside Rest Home
Brighton & Hove City Council,http://statistics.data.gov.uk/id/local-authority/00ML,Cultural and Related Serv,BVACUL,Culture and Heritage,CHG,Supplies and Services,E,Miscellaneous Expenses,EM,02/10/2015,PAY00802364,RPMU,Royal Pavilion and Museums,388.00,Revenue,Beacon Press
Brighton & Hove City Council,http://statistics.data.gov.uk/id/local-authority/00ML,Central Support and Overheads,BVACEN,Support Services (SSC),PPT,Third Party Payments,F,Other Establishments,FH,09/10/2015,PAY00804652,FINS,Financial Services,5624.40,Revenue,Beaumont NH Ltd
Brighton & Hove City Council,http://statistics.data.gov.uk/id/local-authority/00ML,Adult Social Care,BVASOC,ASC Physical Support,PHY,Customer n Client Receipts,M,Fees n Charges,MB,23/10/2015,PAY00808908,PHYS,Physical Support,-4189.16,Revenue,Beaumont NH Ltd
Brighton & Hove City Council,http://statistics.data.gov.uk/id/local-authority/00ML,Adult Social Care,BVASOC,ASC Physical Support,PHY,Third Party Payments,F,Other Establishments,FH,23/10/2015,PAY00808908,PHYS,Physical Support,19690.92,Revenue,Beaumont NH Ltd
Brighton & Hove City Council,http://statistics.data.gov.uk/id/local-authority/00ML,Adult Social Care,BVASOC,ASC Learning Disabilities,ALD,Customer n Client Receipts,M,Fees n Charges,MB,23/10/2015,PAY00808192,LDIS,Learning Disabilities,-712.50,Revenue,Beech Lodge
Brighton & Hove City Council,http://statistics.data.gov.uk/id/local-authority/00ML,Adult Social Care,BVASOC,ASC Learning Disabilities,ALD,Third Party Payments,F,Other Establishments,FH,23/10/2015,PAY00808192,LDIS,Learning Disabilities,10739.72,Revenue,Beech Lodge
Brighton & Hove City Council,http://statistics.data.gov.uk/id/local-authority/00ML,Adult Social Care,BVASOC,ASC Physical Support,PHY,Customer n Client Receipts,M,Fees n Charges,MB,23/10/2015,PAY00808192,PHYS,Physical Support,-337.60,Revenue,Beech Lodge
Brighton & Hove City Council,http://statistics.data.gov.uk/id/local-authority/00ML,Adult Social Care,BVASOC,ASC Physical Support,PHY,Third Party Payments,F,Other Establishments,FH,23/10/2015,PAY00808192,PHYS,Physical Support,6404.40,Revenue,Beech Lodge
Brighton & Hove City Council,http://statistics.data.gov.uk/id/local-authority/00ML,Adult Social Care,BVASOC,ASC Learning Disabilities,ALD,Supplies and Services,E,Equip't Furniture n Materials,EA,14/10/2015,PAY00805386,SUPE,Supported Employment,1200.00,Revenue,Beeswift Ltd
Brighton & Hove City Council,http://statistics.data.gov.uk/id/local-authority/00ML,Adult Social Care,BVASOC,ASC Physical Support,PHY,Customer n Client Receipts,M,Fees n Charges,MB,21/10/2015,PAY00807236,PHYS,Physical Support,-505.20,Revenue,Bell Memorial Home Inc
Brighton & Hove City Council,http://statistics.data.gov.uk/id/local-authority/00ML,Adult Social Care,BVASOC,ASC Physical Support,PHY,Third Party Payments,F,Other Establishments,FH,21/10/2015,PAY00807236,PHYS,Physical Support,4622.30,Revenue,Bell Memorial Home Inc
Brighton & Hove City Council,http://statistics.data.gov.uk/id/local-authority/00ML,Children`s & Education Serv,BVAEDU,Child Srvcs - Other Fam Supp,FFX,Transfer Payments,G,Other Transfer Payments,GD,07/10/2015,PAY00803447,FAMP,Families\Prevention,825.00,Revenue,Belvoir Lettings
Brighton & Hove City Council,http://statistics.data.gov.uk/id/local-authority/00ML,Cultural and Related Serv,BVACUL,Culture and Heritage,CHG,Supplies and Services,E,Services,EF,16/10/2015,PAY00806252,RPMU,Royal Pavilion and Museums,1872.00,Revenue,Benugo Ltd
Brighton & Hove City Council,http://statistics.data.gov.uk/id/local-authority/00ML,Adult Social Care,BVASOC,ASC Mental Health Support,MHP,Third Party Payments,F,Other Establishments,FH,30/10/2015,PAY00810435,MENH,Mental Health Support,1260.00,Revenue,Benwick Kennels & Cattery
Brighton & Hove City Council,http://statistics.data.gov.uk/id/local-authority/00ML,Cultural and Related Serv,BVACUL,Management Services (DEC),MGT,Transport Related,D,Contract Hire n Operating Leas,DB,30/10/2015,PAY00810634,CIPK,City Parks,291.91,Revenue,Berendsen UK Ltd
Brighton & Hove City Council,http://statistics.data.gov.uk/id/local-authority/00ML,Environment & Regulatory Serv,BVAERS,Management Services (DEC),MGT,Supplies and Services,E,Clothing Uniforms n Laundry,EC,30/10/2015,PAY00810634,CICL,City Clean,225.84,Revenue,Berendsen UK Ltd
Brighton & Hove City Council,http://statistics.data.gov.uk/id/local-authority/00ML,Children`s & Education Serv,BVAEDU,Ed Ed Other Other,ENF,Premises Related,C,Repair Maint n Alterations,CA,09/10/2015,PAY00804062,PROP,Property and Design,575.00,Revenue,Betapest
Brighton & Hove City Council,http://statistics.data.gov.uk/id/local-authority/00ML,Cultural and Related Serv,BVACUL,Recreation and Sport,REC,Premises Related,C,Repair Maint n Alterations,CA,30/10/2015,PAY00810482,SFAC,Sports Facilities,440.00,Revenue,Betapest
Brighton & Hove City Council,http://statistics.data.gov.uk/id/local-authority/00ML,Adult Social Care,BVASOC,ASC Memory Cognition Support,MEM,Supplies and Services,E,Catering,EB,02/10/2015,PAY00802457,RCOP,Resource Centres Older People,227.26,Revenue,Bidvest Foodservice
Brighton & Hove City Council,http://statistics.data.gov.uk/id/local-authority/00ML,Adult Social Care,BVASOC,ASC Physical Support,PHY,Supplies and Services,E,Catering,EB,02/10/2015,PAY00802457,RCOP,Resource Centres Older People,832.73,Revenue,Bidvest Foodservice
Brighton & Hove City Council,http://statistics.data.gov.uk/id/local-authority/00ML,Adult Social Care,BVASOC,ASC Memory Cognition Support,MEM,Supplies and Services,E,Catering,EB,07/10/2015,PAY00803310,RCOP,Resource Centres Older People,304.33,Revenue,Bidvest Foodservice
Brighton & Hove City Council,http://statistics.data.gov.uk/id/local-authority/00ML,Adult Social Care,BVASOC,ASC Physical Support,PHY,Supplies and Services,E,Catering,EB,07/10/2015,PAY00803310,RCOP,Resource Centres Older People,236.28,Revenue,Bidvest Foodservice
Brighton & Hove City Council,http://statistics.data.gov.uk/id/local-authority/00ML,Adult Social Care,BVASOC,ASC Memory Cognition Support,MEM,Supplies and Services,E,Catering,EB,14/10/2015,PAY00804985,RCOP,Resource Centres Older People,206.94,Revenue,Bidvest Foodservice
Brighton & Hove City Council,http://statistics.data.gov.uk/id/local-authority/00ML,Adult Social Care,BVASOC,ASC Physical Support,PHY,Supplies and Services,E,Catering,EB,14/10/2015,PAY00804985,RCOP,Resource Centres Older People,532.91,Revenue,Bidvest Foodservice
Brighton & Hove City Council,http://statistics.data.gov.uk/id/local-authority/00ML,Housing General Fund,BVAHOG,Homelessness,HML,Supplies and Services,E,Catering,EB,14/10/2015,PAY00804985,ASSA,Hostel Accommodation,307.27,Revenue,Bidvest Foodservice
Brighton & Hove City Council,http://statistics.data.gov.uk/id/local-authority/00ML,Adult Social Care,BVASOC,ASC Memory Cognition Support,MEM,Supplies and Services,E,Catering,EB,16/10/2015,PAY00805856,RCOP,Resource Centres Older People,124.80,Revenue,Bidvest Foodservice
Brighton & Hove City Council,http://statistics.data.gov.uk/id/local-authority/00ML,Adult Social Care,BVASOC,ASC Physical Support,PHY,Supplies and Services,E,Catering,EB,16/10/2015,PAY00805856,RCOP,Resource Centres Older People,184.54,Revenue,Bidvest Foodservice
Brighton & Hove City Council,http://statistics.data.gov.uk/id/local-authority/00ML,Adult Social Care,BVASOC,ASC Memory Cognition Support,MEM,Supplies and Services,E,Catering,EB,21/10/2015,PAY00807336,RCOP,Resource Centres Older People,172.65,Revenue,Bidvest Foodservice
Brighton & Hove City Council,http://statistics.data.gov.uk/id/local-authority/00ML,Housing General Fund,BVAHOG,Homelessness,HML,Supplies and Services,E,Catering,EB,21/10/2015,PAY00807336,ASSA,Hostel Accommodation,137.30,Revenue,Bidvest Foodservice
Brighton & Hove City Council,http://statistics.data.gov.uk/id/local-authority/00ML,Adult Social Care,BVASOC,ASC Memory Cognition Support,MEM,Supplies and Services,E,Catering,EB,23/10/2015,PAY00808233,RCOP,Resource Centres Older People,842.94,Revenue,Bidvest Foodservice
Brighton & Hove City Council,http://statistics.data.gov.uk/id/local-authority/00ML,Adult Social Care,BVASOC,ASC Physical Support,PHY,Supplies and Services,E,Catering,EB,23/10/2015,PAY00808233,RCOP,Resource Centres Older People,260.50,Revenue,Bidvest Foodservice
Brighton & Hove City Council,http://statistics.data.gov.uk/id/local-authority/00ML,Adult Social Care,BVASOC,ASC Memory Cognition Support,MEM,Supplies and Services,E,Catering,EB,28/10/2015,PAY00809453,RCOP,Resource Centres Older People,124.28,Revenue,Bidvest Foodservice
Brighton & Hove City Council,http://statistics.data.gov.uk/id/local-authority/00ML,Housing General Fund,BVAHOG,Homelessness,HML,Supplies and Services,E,Catering,EB,28/10/2015,PAY00809453,ASSA,Hostel Accommodation,273.06,Revenue,Bidvest Foodservice
Brighton & Hove City Council,http://statistics.data.gov.uk/id/local-authority/00ML,Adult Social Care,BVASOC,ASC Memory Cognition Support,MEM,Supplies and Services,E,Catering,EB,30/10/2015,PAY00810483,RCOP,Resource Centres Older People,163.38,Revenue,Bidvest Foodservice
Brighton & Hove City Council,http://statistics.data.gov.uk/id/local-authority/00ML,Adult Social Care,BVASOC,ASC Physical Support,PHY,Supplies and Services,E,Catering,EB,30/10/2015,PAY00810483,RCOP,Resource Centres Older People,377.83,Revenue,Bidvest Foodservice
Brighton & Hove City Council,http://statistics.data.gov.uk/id/local-authority/00ML,Planning and Development,BVAPLA,Economic Development,ECD,Supplies and Services,E,Grants n Subscriptions,EK,28/10/2015,PAY00809459,CMNY,Communities and Equalities,1250.00,Revenue,BHAFC Albion in the Community
Brighton & Hove City Council,http://statistics.data.gov.uk/id/local-authority/00ML,Cultural and Related Serv,BVACUL,Culture and Heritage,CHG,Supplies and Services,E,Miscellaneous Expenses,EM,14/10/2015,PAY00805333,VENU,Venues,400.00,Revenue,Big Beach Screens Ltd
Brighton & Hove City Council,http://statistics.data.gov.uk/id/local-authority/00ML,Adult Social Care,BVASOC,ASC Mental Health Support,MHP,Third Party Payments,F,Other Establishments,FH,02/10/2015,PAY00802377,MENH,Mental Health Support,423.95,Revenue,Big Box Storage Co Ltd
Brighton & Hove City Council,http://statistics.data.gov.uk/id/local-authority/00ML,Adult Social Care,BVASOC,ASC Mental Health Support,MHP,Third Party Payments,F,Other Establishments,FH,16/10/2015,PAY00805727,MENH,Mental Health Support,361.97,Revenue,Big Box Storage Co Ltd
Brighton & Hove City Council,http://statistics.data.gov.uk/id/local-authority/00ML,Children`s & Education Serv,BVAEDU,Child Srvcs Com and Scl Work,FCW,Supplies and Services,E,Miscellaneous Expenses,EM,16/10/2015,PAY00805727,SOCK,Social Work,244.72,Revenue,Big Box Storage Co Ltd
Brighton & Hove City Council,http://statistics.data.gov.uk/id/local-authority/00ML,Adult Social Care,BVASOC,ASC Mental Health Support,MHP,Third Party Payments,F,Other Establishments,FH,23/10/2015,PAY00808138,MENH,Mental Health Support,466.46,Revenue,Big Box Storage Co Ltd
Brighton & Hove City Council,http://statistics.data.gov.uk/id/local-authority/00ML,Children`s & Education Serv,BVAEDU,Child Srvcs Leaving Care,FAL,Transfer Payments,G,Other Transfer Payments,GD,28/10/2015,PAY00809271,CHIC,Children In Care,187.49,Revenue,Big Box Storage Co Ltd
Brighton & Hove City Council,http://statistics.data.gov.uk/id/local-authority/00ML,Highways and Transportation,BVAHRT,Transport Plan Policy Strategy,TPP,Supplies and Services,E,Miscellaneous Expenses,EM,28/10/2015,PAY00809271,TPRS,Transport Plan and Road Safety,131.04,Revenue,Big Box Storage Co Ltd
Brighton & Hove City Council,http://statistics.data.gov.uk/id/local-authority/00ML,Adult Social Care,BVASOC,ASC Mental Health Support,MHP,Third Party Payments,F,Other Establishments,FH,30/10/2015,PAY00810388,MENH,Mental Health Support,423.95,Revenue,Big Box Storage Co Ltd
Brighton & Hove City Council,http://statistics.data.gov.uk/id/local-authority/00ML,Planning and Development,BVAPLA,Economic Development,ECD,Supplies and Services,E,Grants n Subscriptions,EK,23/10/2015,PAY00808830,CMNY,Communities and Equalities,3600.00,Revenue,Big Nature
Brighton & Hove City Council,http://statistics.data.gov.uk/id/local-authority/00ML,Highways and Transportation,BVAHRT,Transport Plan Policy Strategy,TPP,Supplies and Services,E,Services,EF,07/10/2015,PAY00803591,TPRS,Transport Plan and Road Safety,2500.00,Revenue,Bike for Life (South) CIC
Brighton & Hove City Council,http://statistics.data.gov.uk/id/local-authority/00ML,Highways and Transportation,BVAHRT,Transport Plan Policy Strategy,TPP,Supplies and Services,E,Services,EF,09/10/2015,PAY00804512,TPRS,Transport Plan and Road Safety,2500.00,Revenue,Bike for Life (South) CIC
Brighton & Hove City Council,http://statistics.data.gov.uk/id/local-authority/00ML,Central Support and Overheads,BVACEN,Support Services (SSC),PPT,Third Party Payments,F,Other Establishments,FH,09/10/2015,PAY00804018,FINS,Financial Services,5066.00,Revenue,Birchgrove Healthcare (Sussex) Ltd
Brighton & Hove City Council,http://statistics.data.gov.uk/id/local-authority/00ML,Adult Social Care,BVASOC,ASC Memory Cognition Support,MEM,Customer n Client Receipts,M,Fees n Charges,MB,23/10/2015,PAY00808188,COGN,Memory Cognition Support,-2866.70,Revenue,Birchgrove Healthcare (Sussex) Ltd
Brighton & Hove City Council,http://statistics.data.gov.uk/id/local-authority/00ML,Adult Social Care,BVASOC,ASC Memory Cognition Support,MEM,Third Party Payments,F,Other Establishments,FH,23/10/2015,PAY00808188,COGN,Memory Cognition Support,15524.92,Revenue,Birchgrove Healthcare (Sussex) Ltd
Brighton & Hove City Council,http://statistics.data.gov.uk/id/local-authority/00ML,Adult Social Care,BVASOC,ASC Physical Support,PHY,Customer n Client Receipts,M,Fees n Charges,MB,23/10/2015,PAY00808188,PHYS,Physical Support,-5550.12,Revenue,Birchgrove Healthcare (Sussex) Ltd
Brighton & Hove City Council,http://statistics.data.gov.uk/id/local-authority/00ML,Adult Social Care,BVASOC,ASC Physical Support,PHY,Third Party Payments,F,Other Establishments,FH,23/10/2015,PAY00808188,PHYS,Physical Support,34626.02,Revenue,Birchgrove Healthcare (Sussex) Ltd
Brighton & Hove City Council,http://statistics.data.gov.uk/id/local-authority/00ML,Adult Social Care,BVASOC,ASC Memory Cognition Support,MEM,Customer n Client Receipts,M,Fees n Charges,MB,21/10/2015,PAY00807212,COGN,Memory Cognition Support,-3325.02,Revenue,Birchwood Grove Nursing Home
Brighton & Hove City Council,http://statistics.data.gov.uk/id/local-authority/00ML,Adult Social Care,BVASOC,ASC Memory Cognition Support,MEM,Third Party Payments,F,Other Establishments,FH,21/10/2015,PAY00807212,COGN,Memory Cognition Support,13669.14,Revenue,Birchwood Grove Nursing Home
Brighton & Hove City Council,http://statistics.data.gov.uk/id/local-authority/00ML,Adult Social Care,BVASOC,ASC Physical Support,PHY,Customer n Client Receipts,M,Fees n Charges,MB,21/10/2015,PAY00807212,PHYS,Physical Support,-505.20,Revenue,Birchwood Grove Nursing Home
Brighton & Hove City Council,http://statistics.data.gov.uk/id/local-authority/00ML,Adult Social Care,BVASOC,ASC Physical Support,PHY,Third Party Payments,F,Other Establishments,FH,21/10/2015,PAY00807212,PHYS,Physical Support,2500.68,Revenue,Birchwood Grove Nursing Home
Brighton & Hove City Council,http://statistics.data.gov.uk/id/local-authority/00ML,Children`s & Education Serv,BVAEDU,Child Srvcs Com and Scl Work,FCW,Direct Employees,A,Salaries,AA,14/10/2015,PAY00805110,SOCK,Social Work,540.70,Revenue,Bird Advisory Service Ltd
Brighton & Hove City Council,http://statistics.data.gov.uk/id/local-authority/00ML,Children`s & Education Serv,BVAEDU,Management Services (DEC),MGT,Supplies and Services,E,Services,EF,23/10/2015,PAY00808975,SOCK,Social Work,1198.64,Revenue,Bisbey Limited
Brighton & Hove City Council,http://statistics.data.gov.uk/id/local-authority/00ML,Housing General Fund,BVAHOG,Homelessness,HML,Supplies and Services,E,Services,EF,30/10/2015,PAY00810821,TAAS,Temp Accom and Allocations,467.50,Revenue,Bishop`s Move
Brighton & Hove City Council,http://statistics.data.gov.uk/id/local-authority/00ML,Adult Social Care,BVASOC,ASC Learning Disabilities,ALD,Premises Related,C,Energy Costs,CB,09/10/2015,PAY00804000,SUPE,Supported Employment,376.32,Revenue,Bizspace Ltd
Brighton & Hove City Council,http://statistics.data.gov.uk/id/local-authority/00ML,Adult Social Care,BVASOC,ASC Learning Disabilities,ALD,Premises Related,C,Rents Payable,CC,09/10/2015,PAY00804000,SUPE,Supported Employment,14743.68,Revenue,Bizspace Ltd
Brighton & Hove City Council,http://statistics.data.gov.uk/id/local-authority/00ML,Central Support and Overheads,BVACEN,Support Services (SSC),PPT,Supplies and Services,E,Equip't Furniture n Materials,EA,09/10/2015,PAY00804016,COMU,Communications,306.98,Revenue,Blackburns Metals Ltd
Brighton & Hove City Council,http://statistics.data.gov.uk/id/local-authority/00ML,Central Support and Overheads,BVACEN,Support Services (SSC),PPT,Supplies and Services,E,Equip't Furniture n Materials,EA,23/10/2015,PAY00808185,COMU,Communications,1096.02,Revenue,Blackburns Metals Ltd
Brighton & Hove City Council,http://statistics.data.gov.uk/id/local-authority/00ML,Cultural and Related Serv,BVACUL,Culture and Heritage,CHG,Premises Related,C,Repair Maint n Alterations,CA,23/10/2015,PAY00808163,RPMU,Royal Pavilion and Museums,374.46,Revenue,Blair Installations Ltd
Brighton & Hove City Council,http://statistics.data.gov.uk/id/local-authority/00ML,Non I&E,BVANON,Cap - Housing Services - HRA,4HR,New Construction n Conversion,PB,New Construction n Conversion,PBL5,16/10/2015,PAY00805855,HREG,Head of Regeneration,3000.00,Capital,BLB Surveyors Ltd
Brighton & Hove City Council,http://statistics.data.gov.uk/id/local-authority/00ML,Children`s & Education Serv,BVAEDU,Ed Ed Other Other,ENF,Third Party Payments,F,Other Establishments,FH,09/10/2015,PAY00804691,OEDS,Other Education Support,1400.00,Revenue,Blean Primary School
Brighton & Hove City Council,http://statistics.data.gov.uk/id/local-authority/00ML,Non I&E,BVANON,CAP Education Services,4ED,New Construction n Conversion,PB,New Construction n Conversion,PBL5,14/10/2015,PAY00805482,OEDS,Other Education Support,29450.00,Capital,Blenheim Roofing Service Ltd
Brighton & Hove City Council,http://statistics.data.gov.uk/id/local-authority/00ML,Central Support and Overheads,BVACEN,Support Services (SSC),PPT,Third Party Payments,F,Other Establishments,FH,09/10/2015,PAY00803983,FINS,Financial Services,1426.80,Revenue,Blind Veterans UK
Brighton & Hove City Council,http://statistics.data.gov.uk/id/local-authority/00ML,Adult Social Care,BVASOC,ASC Physical Support,PHY,Customer n Client Receipts,M,Fees n Charges,MB,16/10/2015,PAY00805729,PHYS,Physical Support,-1686.80,Revenue,Blind Veterans UK
Brighton & Hove City Council,http://statistics.data.gov.uk/id/local-authority/00ML,Adult Social Care,BVASOC,ASC Physical Support,PHY,Third Party Payments,F,Other Establishments,FH,16/10/2015,PAY00805729,PHYS,Physical Support,4789.84,Revenue,Blind Veterans UK
Brighton & Hove City Council,http://statistics.data.gov.uk/id/local-authority/00ML,Non I&E,BVANON,CAP Education Services,4ED,New Construction n Conversion,PB,New Construction n Conversion,PBL5,07/10/2015,PAY00803225,OEDS,Other Education Support,970.00,Capital,Blockbusters Contracts Ltd
Brighton & Hove City Council,http://statistics.data.gov.uk/id/local-authority/00ML,Cultural and Related Serv,BVACUL,Recreation and Sport,REC,Supplies and Services,E,Miscellaneous Expenses,EM,09/10/2015,PAY00804710,SDEV,Sports Development,750.00,Revenue,Blooming Health
Brighton & Hove City Council,http://statistics.data.gov.uk/id/local-authority/00ML,Children`s & Education Serv,BVAEDU,Child Srvcs - Fostering,FLF,Third Party Payments,F,Other Establishments,FH,14/10/2015,PAY00805151,AVFM,Agency Placements\VFM,69771.95,Revenue,Blue Sky Fostering Limited
Brighton & Hove City Council,http://statistics.data.gov.uk/id/local-authority/00ML,Children`s & Education Serv,BVAEDU,Child Srvcs - Fostering,FLF,Third Party Payments,F,Other Establishments,FH,14/10/2015,PAY00805151,DISS,Disability Services,5880.00,Revenue,Blue Sky Fostering Limited
Brighton & Hove City Council,http://statistics.data.gov.uk/id/local-authority/00ML,Cultural and Related Serv,BVACUL,Culture and Heritage,CHG,Supplies and Services,E,Goods for Resale,EG,14/10/2015,PAY00805418,RPMU,Royal Pavilion and Museums,960.00,Revenue,Blue Stevens
Brighton & Hove City Council,http://statistics.data.gov.uk/id/local-authority/00ML,Children`s & Education Serv,BVAEDU,Ed EY PVI,ENP,Supplies and Services,E,Grants n Subscriptions,EK,14/10/2015,PAY00805053,EYRS,Early Years,726.75,Revenue,Blueberry Nursery & Early Learning Organisation Ld
Brighton & Hove City Council,http://statistics.data.gov.uk/id/local-authority/00ML,Housing General Fund,BVAHOG,Homelessness,HML,Supplies and Services,E,Services,EF,09/10/2015,PAY00804303,TAAS,Temp Accom and Allocations,2610.00,Revenue,BNK Jevington LLP
Brighton & Hove City Council,http://statistics.data.gov.uk/id/local-authority/00ML,Housing General Fund,BVAHOG,Homelessness,HML,Supplies and Services,E,Services,EF,16/10/2015,PAY00806125,TAAS,Temp Accom and Allocations,5856.00,Revenue,BNK Jevington LLP
Brighton & Hove City Council,http://statistics.data.gov.uk/id/local-authority/00ML,Housing General Fund,BVAHOG,Homelessness,HML,Supplies and Services,E,Services,EF,21/10/2015,PAY00807463,TAAS,Temp Accom and Allocations,2892.00,Revenue,BNK Jevington LLP
Brighton & Hove City Council,http://statistics.data.gov.uk/id/local-authority/00ML,Non I&E,BVANON,CAP Transport,4TR,New Construction n Conversion,PB,New Construction n Conversion,PBL5,28/10/2015,PAY00809926,HWEN,Highways Engineering,4164.00,Capital,Bollards International
Brighton & Hove City Council,http://statistics.data.gov.uk/id/local-authority/00ML,Central Support and Overheads,BVACEN,Support Services (SSC),PPT,Third Party Payments,F,Other Establishments,FH,09/10/2015,PAY00804458,FINS,Financial Services,3274.00,Revenue,Bon Accord Care Home
Brighton & Hove City Council,http://statistics.data.gov.uk/id/local-authority/00ML,Adult Social Care,BVASOC,ASC Memory Cognition Support,MEM,Customer n Client Receipts,M,Fees n Charges,MB,23/10/2015,PAY00808694,COGN,Memory Cognition Support,-10759.48,Revenue,Bon Accord Care Home
Brighton & Hove City Council,http://statistics.data.gov.uk/id/local-authority/00ML,Adult Social Care,BVASOC,ASC Memory Cognition Support,MEM,Third Party Payments,F,Other Establishments,FH,23/10/2015,PAY00808694,COGN,Memory Cognition Support,36911.64,Revenue,Bon Accord Care Home
Brighton & Hove City Council,http://statistics.data.gov.uk/id/local-authority/00ML,Cultural and Related Serv,BVACUL,Culture and Heritage,CHG,Supplies and Services,E,Goods for Resale,EG,07/10/2015,PAY00803219,RPMU,Royal Pavilion and Museums,1014.78,Revenue,Bookspeed
Brighton & Hove City Council,http://statistics.data.gov.uk/id/local-authority/00ML,Library Services,BVACUL,Library Service,LBR,Supplies and Services,E,Goods for Resale,EG,07/10/2015,PAY00803219,LIBS,Libraries,462.45,Revenue,Bookspeed
Brighton & Hove City Council,http://statistics.data.gov.uk/id/local-authority/00ML,Library Services,BVACUL,Library Service,LBR,Supplies and Services,E,Goods for Resale,EG,09/10/2015,PAY00803976,LIBS,Libraries,1056.15,Revenue,Bookspeed
Brighton & Hove City Council,http://statistics.data.gov.uk/id/local-authority/00ML,Cultural and Related Serv,BVACUL,Culture and Heritage,CHG,Supplies and Services,E,Goods for Resale,EG,14/10/2015,PAY00804867,RPMU,Royal Pavilion and Museums,993.75,Revenue,Bookspeed
Brighton & Hove City Council,http://statistics.data.gov.uk/id/local-authority/00ML,Children`s & Education Serv,BVAEDU,Child Srvcs - Other Fam Supp,FFX,Transfer Payments,G,Other Transfer Payments,GD,09/10/2015,PAY00804711,FAMP,Families\Prevention,239.92,Revenue,Bostico International
Brighton & Hove City Council,http://statistics.data.gov.uk/id/local-authority/00ML,Children`s & Education Serv,BVAEDU,Child Srvcs - Other Fam Supp,FFX,Transfer Payments,G,Other Transfer Payments,GD,28/10/2015,PAY00810102,FAMP,Families\Prevention,782.76,Revenue,Bostico International
Brighton & Hove City Council,http://statistics.data.gov.uk/id/local-authority/00ML,Children`s & Education Serv,BVAEDU,Child Srvcs - Other Fam Supp,FFX,Transfer Payments,G,Other Transfer Payments,GD,30/10/2015,PAY00811390,FAMP,Families\Prevention,228.60,Revenue,Bostico International
Brighton & Hove City Council,http://statistics.data.gov.uk/id/local-authority/00ML,Adult Social Care,BVASOC,ASC Learning Disabilities,ALD,Customer n Client Receipts,M,Fees n Charges,MB,02/10/2015,PAY00802708,LDIS,Learning Disabilities,-321.80,Revenue,Bradfield House
Brighton & Hove City Council,http://statistics.data.gov.uk/id/local-authority/00ML,Adult Social Care,BVASOC,ASC Learning Disabilities,ALD,Third Party Payments,F,Other Establishments,FH,02/10/2015,PAY00802708,LDIS,Learning Disabilities,6060.00,Revenue,Bradfield House
Brighton & Hove City Council,http://statistics.data.gov.uk/id/local-authority/00ML,Adult Social Care,BVASOC,ASC Learning Disabilities,ALD,Supplies and Services,E,Catering,EB,21/10/2015,PAY00807202,RESP,Respite Services,382.07,Revenue,Brakes Catering Equipment
Brighton & Hove City Council,http://statistics.data.gov.uk/id/local-authority/00ML,Adult Social Care,BVASOC,ASC Memory Cognition Support,MEM,Customer n Client Receipts,M,Fees n Charges,MB,23/10/2015,PAY00808789,COGN,Memory Cognition Support,-500.08,Revenue,Bramber Nursing Home
Brighton & Hove City Council,http://statistics.data.gov.uk/id/local-authority/00ML,Adult Social Care,BVASOC,ASC Memory Cognition Support,MEM,Third Party Payments,F,Other Establishments,FH,23/10/2015,PAY00808789,COGN,Memory Cognition Support,1936.00,Revenue,Bramber Nursing Home
Brighton & Hove City Council,http://statistics.data.gov.uk/id/local-authority/00ML,Adult Social Care,BVASOC,ASC Physical Support,PHY,Customer n Client Receipts,M,Fees n Charges,MB,23/10/2015,PAY00808178,PHYS,Physical Support,-1878.84,Revenue,Bramble Care Homes Ltd
Brighton & Hove City Council,http://statistics.data.gov.uk/id/local-authority/00ML,Adult Social Care,BVASOC,ASC Physical Support,PHY,Third Party Payments,F,Other Establishments,FH,23/10/2015,PAY00808178,PHYS,Physical Support,3940.00,Revenue,Bramble Care Homes Ltd
Brighton & Hove City Council,http://statistics.data.gov.uk/id/local-authority/00ML,Adult Social Care,BVASOC,ASC Memory Cognition Support,MEM,Customer n Client Receipts,M,Fees n Charges,MB,23/10/2015,PAY00808432,COGN,Memory Cognition Support,-2916.56,Revenue,Bravery Care
Brighton & Hove City Council,http://statistics.data.gov.uk/id/local-authority/00ML,Adult Social Care,BVASOC,ASC Memory Cognition Support,MEM,Third Party Payments,F,Other Establishments,FH,23/10/2015,PAY00808432,COGN,Memory Cognition Support,23322.52,Revenue,Bravery Care
Brighton & Hove City Council,http://statistics.data.gov.uk/id/local-authority/00ML,Adult Social Care,BVASOC,S Svcs Other Adult Services,ADT,Indirect Employees,B,Training,BM,28/10/2015,PAY00809683,ORGD,Organisational Development,277.20,Revenue,Breaking Down Barriers CIC
Brighton & Hove City Council,http://statistics.data.gov.uk/id/local-authority/00ML,Central Support and Overheads,BVACEN,Support Services (SSC),PPT,Indirect Employees,B,Training,BM,28/10/2015,PAY00809683,ORGD,Organisational Development,217.80,Revenue,Breaking Down Barriers CIC
Brighton & Hove City Council,http://statistics.data.gov.uk/id/local-authority/00ML,Housing Revenue Account,BVAHOU,Hsing Management - HRA,HGM,Supplies and Services,E,Services,EF,16/10/2015,PAY00806881,HPAI,Property & Investment,1450.00,Revenue,Brices Sales and Lettings
Brighton & Hove City Council,http://statistics.data.gov.uk/id/local-authority/00ML,Cultural and Related Serv,BVACUL,Recreation and Sport,REC,Premises Related,C,Repair Maint n Alterations,CA,23/10/2015,PAY00808887,SEAS,Seafront Services,438.21,Revenue,Bricks 2 Mortar Ltd
Brighton & Hove City Council,http://statistics.data.gov.uk/id/local-authority/00ML,Children`s & Education Serv,BVAEDU,Ed Mgmt and Support Services,EMG,Premises Related,C,Rents Payable,CC,28/10/2015,PAY00809399,SACH,Standards and Achievement,90.00,Revenue,Bridge Community Education Centre
Brighton & Hove City Council,http://statistics.data.gov.uk/id/local-authority/00ML,Planning and Development,BVAPLA,Economic Development,ECD,Supplies and Services,E,Grants n Subscriptions,EK,28/10/2015,PAY00809399,CMNY,Communities and Equalities,1250.00,Revenue,Bridge Community Education Centre
Brighton & Hove City Council,http://statistics.data.gov.uk/id/local-authority/00ML,Children`s & Education Serv,BVAEDU,Child Srvcs - Fostering,FLF,Third Party Payments,F,Other Establishments,FH,14/10/2015,PAY00805143,AVFM,Agency Placements\VFM,26580.80,Revenue,Brighter Futures Foster Care Ltd
Brighton & Hove City Council,http://statistics.data.gov.uk/id/local-authority/00ML,Public Health,BVAPHE,Public Health,PHE,Third Party Payments,F,Voluntary Associations,FG,02/10/2015,PAY00802462,PHCM,PH Commissioning,769.80,Revenue,Brighthelm Trading Ltd
Brighton & Hove City Council,http://statistics.data.gov.uk/id/local-authority/00ML,Central Support and Overheads,BVACEN,Support Services (SSC),PPT,Premises Related,C,Rents Payable,CC,07/10/2015,PAY00803315,DEMO,Democratic Services,398.25,Revenue,Brighthelm Trading Ltd
Brighton & Hove City Council,http://statistics.data.gov.uk/id/local-authority/00ML,Highways and Transportation,BVAHRT,Management Services (DEC),MGT,Premises Related,C,Rents Payable,CC,21/10/2015,PAY00807341,HOTR,Head of Transport,470.00,Revenue,Brighthelm Trading Ltd
Brighton & Hove City Council,http://statistics.data.gov.uk/id/local-authority/00ML,Environment & Regulatory Serv,BVAERS,Community Safety,CMY,Premises Related,C,Rents Payable,CC,28/10/2015,PAY00809463,CSTP,Comm Safety Team & Partnership,227.50,Revenue,Brighthelm Trading Ltd
Brighton & Hove City Council,http://statistics.data.gov.uk/id/local-authority/00ML,Public Health,BVAPHE,Public Health,PHE,Supplies and Services,E,Miscellaneous Expenses,EM,28/10/2015,PAY00809463,PHCM,PH Commissioning,56.20,Revenue,Brighthelm Trading Ltd
Brighton & Hove City Council,http://statistics.data.gov.uk/id/local-authority/00ML,Children`s & Education Serv,BVAEDU,Ed EY Central,EAE,Supplies and Services,E,Miscellaneous Expenses,EM,02/10/2015,PAY00802934,EYRS,Early Years,370.50,Revenue,Brighton & Hove Albion FC
Brighton & Hove City Council,http://statistics.data.gov.uk/id/local-authority/00ML,Adult Social Care,BVASOC,ASC Physical Support,PHY,Customer n Client Receipts,M,Fees n Charges,MB,23/10/2015,PAY00808083,PHYS,Physical Support,-2801.56,Revenue,Brighton & Hove Bethesda Home
Brighton & Hove City Council,http://statistics.data.gov.uk/id/local-authority/00ML,Adult Social Care,BVASOC,ASC Physical Support,PHY,Third Party Payments,F,Other Establishments,FH,23/10/2015,PAY00808083,PHYS,Physical Support,6089.64,Revenue,Brighton & Hove Bethesda Home
Brighton & Hove City Council,http://statistics.data.gov.uk/id/local-authority/00ML,Children`s & Education Serv,BVAEDU,Child Srvcs - Other Fam Supp,FFX,Transport Related,D,Public Transport,DD,02/10/2015,PAY00802651,SFSC,Stronger Families Stronger Com,884.00,Revenue,Brighton & Hove Bus and Coach Co Ltd
Brighton & Hove City Council,http://statistics.data.gov.uk/id/local-authority/00ML,Housing General Fund,BVAHOG,Homelessness,HML,Transport Related,D,Contract Hire n Operating Leas,DB,02/10/2015,PAY00802651,TRAV,Travellers,253.71,Revenue,Brighton & Hove Bus and Coach Co Ltd
Brighton & Hove City Council,http://statistics.data.gov.uk/id/local-authority/00ML,Adult Social Care,BVASOC,ASC Learning Disabilities,ALD,Transport Related,D,Public Transport,DD,09/10/2015,PAY00804254,HOME,Home Care,216.00,Revenue,Brighton & Hove Bus and Coach Co Ltd
Brighton & Hove City Council,http://statistics.data.gov.uk/id/local-authority/00ML,Adult Social Care,BVASOC,Social Care Activities,ACM,Transport Related,D,Public Transport,DD,09/10/2015,PAY00804254,ASIT,Assessment and SIT,594.00,Revenue,Brighton & Hove Bus and Coach Co Ltd
Brighton & Hove City Council,http://statistics.data.gov.uk/id/local-authority/00ML,Children`s & Education Serv,BVAEDU,Child Srvcs - Fostering,FLF,Third Party Payments,F,Other Establishments,FH,09/10/2015,PAY00804254,CHIC,Children In Care,720.00,Revenue,Brighton & Hove Bus and Coach Co Ltd
Brighton & Hove City Council,http://statistics.data.gov.uk/id/local-authority/00ML,Children`s & Education Serv,BVAEDU,Child Srvcs - Other Fam Supp,FFX,Transfer Payments,G,Other Transfer Payments,GD,09/10/2015,PAY00804254,FAMP,Families\Prevention,1901.00,Revenue,Brighton & Hove Bus and Coach Co Ltd
Brighton & Hove City Council,http://statistics.data.gov.uk/id/local-authority/00ML,Highways and Transportation,BVAHRT,Public Transport,PTR,Transport Related,D,Public Transport,DD,09/10/2015,PAY00804254,TPRS,Transport Plan and Road Safety,2587.50,Revenue,Brighton & Hove Bus and Coach Co Ltd
Brighton & Hove City Council,http://statistics.data.gov.uk/id/local-authority/00ML,Highways and Transportation,BVAHRT,Transport Plan Policy Strategy,TPP,Supplies and Services,E,Miscellaneous Expenses,EM,09/10/2015,PAY00804254,TPRS,Transport Plan and Road Safety,700.00,Revenue,Brighton & Hove Bus and Coach Co Ltd
Brighton & Hove City Council,http://statistics.data.gov.uk/id/local-authority/00ML,Children`s & Education Serv,BVAEDU,Child Srvcs - Other Fam Supp,FFX,Transfer Payments,G,Other Transfer Payments,GD,14/10/2015,PAY00805069,FAMP,Families\Prevention,720.00,Revenue,Brighton & Hove Bus and Coach Co Ltd
Brighton & Hove City Council,http://statistics.data.gov.uk/id/local-authority/00ML,Highways and Transportation,BVAHRT,Highways and Roads - Mntnce,HRM,Transport Related,D,Public Transport,DD,14/10/2015,PAY00805069,HWEN,Highways Engineering,442.00,Revenue,Brighton & Hove Bus and Coach Co Ltd
Brighton & Hove City Council,http://statistics.data.gov.uk/id/local-authority/00ML,Housing General Fund,BVAHOG,Hsing Welfare,HGW,Transport Related,D,Public Transport,DD,14/10/2015,PAY00805069,HOSS,Supported Accommodation,221.00,Revenue,Brighton & Hove Bus and Coach Co Ltd
Brighton & Hove City Council,http://statistics.data.gov.uk/id/local-authority/00ML,Adult Social Care,BVASOC,ASC Learning Disabilities,ALD,Transport Related,D,Public Transport,DD,16/10/2015,PAY00806034,HOME,Home Care,221.00,Revenue,Brighton & Hove Bus and Coach Co Ltd
Brighton & Hove City Council,http://statistics.data.gov.uk/id/local-authority/00ML,Children`s & Education Serv,BVAEDU,Child Srvcs - Fostering,FLF,Third Party Payments,F,Other Establishments,FH,16/10/2015,PAY00806034,CHIC,Children In Care,436.00,Revenue,Brighton & Hove Bus and Coach Co Ltd
Brighton & Hove City Council,http://statistics.data.gov.uk/id/local-authority/00ML,Children`s & Education Serv,BVAEDU,Child Srvcs - Other Fam Supp,FFX,Transfer Payments,G,Other Transfer Payments,GD,16/10/2015,PAY00806034,FAMP,Families\Prevention,442.00,Revenue,Brighton & Hove Bus and Coach Co Ltd
Brighton & Hove City Council,http://statistics.data.gov.uk/id/local-authority/00ML,Highways and Transportation,BVAHRT,Public Transport,PTR,Supplies and Services,E,Miscellaneous Expenses,EM,16/10/2015,PAY00806034,TPRS,Transport Plan and Road Safety,14068.00,Revenue,Brighton & Hove Bus and Coach Co Ltd
Brighton & Hove City Council,http://statistics.data.gov.uk/id/local-authority/00ML,Children`s & Education Serv,BVAEDU,Child Srvcs - Fostering,FLF,Third Party Payments,F,Other Establishments,FH,21/10/2015,PAY00807422,CHIC,Children In Care,360.00,Revenue,Brighton & Hove Bus and Coach Co Ltd
Brighton & Hove City Council,http://statistics.data.gov.uk/id/local-authority/00ML,Children`s & Education Serv,BVAEDU,Child Srvcs - Other Fam Supp,FFX,Transfer Payments,G,Other Transfer Payments,GD,21/10/2015,PAY00807422,FAMP,Families\Prevention,663.00,Revenue,Brighton & Hove Bus and Coach Co Ltd
Brighton & Hove City Council,http://statistics.data.gov.uk/id/local-authority/00ML,Children`s & Education Serv,BVAEDU,Ed Ed Other LA Attrib Sch,ELA,Transport Related,D,Public Transport,DD,21/10/2015,PAY00807422,OEDS,Other Education Support,125175.31,Revenue,Brighton & Hove Bus and Coach Co Ltd
Brighton & Hove City Council,http://statistics.data.gov.uk/id/local-authority/00ML,Children`s & Education Serv,BVAEDU,Ed EY Central,EAE,Transport Related,D,Public Transport,DD,21/10/2015,PAY00807422,EYRS,Early Years,221.00,Revenue,Brighton & Hove Bus and Coach Co Ltd
Brighton & Hove City Council,http://statistics.data.gov.uk/id/local-authority/00ML,Children`s & Education Serv,BVAEDU,Ed Ed Other LA Attrib Sch,ELA,Transport Related,D,Public Transport,DD,23/10/2015,PAY00808462,OEDS,Other Education Support,2637.84,Revenue,Brighton & Hove Bus and Coach Co Ltd
Brighton & Hove City Council,http://statistics.data.gov.uk/id/local-authority/00ML,Adult Social Care,BVASOC,Social Care Activities,ACM,Transport Related,D,Public Transport,DD,28/10/2015,PAY00809556,ASIT,Assessment and SIT,525.00,Revenue,Brighton & Hove Bus and Coach Co Ltd
Brighton & Hove City Council,http://statistics.data.gov.uk/id/local-authority/00ML,Children`s & Education Serv,BVAEDU,Ed Ed Other LA Attrib Sch,ELA,Transport Related,D,Public Transport,DD,28/10/2015,PAY00809556,OEDS,Other Education Support,22403.23,Revenue,Brighton & Hove Bus and Coach Co Ltd
Brighton & Hove City Council,http://statistics.data.gov.uk/id/local-authority/00ML,Children`s & Education Serv,BVAEDU,Ed EY Central,EAE,Supplies and Services,E,Services,EF,28/10/2015,PAY00809556,EYRS,Early Years,442.00,Revenue,Brighton & Hove Bus and Coach Co Ltd
Brighton & Hove City Council,http://statistics.data.gov.uk/id/local-authority/00ML,Children`s & Education Serv,BVAEDU,Ed Srvcs YP Youth Srvcs,ENY,Transport Related,D,Public Transport,DD,28/10/2015,PAY00809556,YOTS,Youth Service,221.00,Revenue,Brighton & Hove Bus and Coach Co Ltd
Brighton & Hove City Council,http://statistics.data.gov.uk/id/local-authority/00ML,Highways and Transportation,BVAHRT,Public Transport,PTR,Third Party Payments,F,Private Contractors,FJ,28/10/2015,PAY00809556,TPRS,Transport Plan and Road Safety,16024.49,Revenue,Brighton & Hove Bus and Coach Co Ltd
Brighton & Hove City Council,http://statistics.data.gov.uk/id/local-authority/00ML,Highways and Transportation,BVAHRT,Transport Plan Policy Strategy,TPP,Third Party Payments,F,Private Contractors,FJ,28/10/2015,PAY00809556,TPRS,Transport Plan and Road Safety,11084.30,Revenue,Brighton & Hove Bus and Coach Co Ltd
Brighton & Hove City Council,http://statistics.data.gov.uk/id/local-authority/00ML,Adult Social Care,BVASOC,Social Care Activities,ACM,Transport Related,D,Public Transport,DD,30/10/2015,PAY00810672,ASIT,Assessment and SIT,175.00,Revenue,Brighton & Hove Bus and Coach Co Ltd
Brighton & Hove City Council,http://statistics.data.gov.uk/id/local-authority/00ML,Children`s & Education Serv,BVAEDU,Child Srvcs - Other Fam Supp,FFX,Transfer Payments,G,Other Transfer Payments,GD,30/10/2015,PAY00810672,FAMP,Families\Prevention,1238.00,Revenue,Brighton & Hove Bus and Coach Co Ltd
Brighton & Hove City Council,http://statistics.data.gov.uk/id/local-authority/00ML,Highways and Transportation,BVAHRT,Public Transport,PTR,Transport Related,D,Public Transport,DD,30/10/2015,PAY00810672,CONF,Concessionary Fares,790942.00,Revenue,Brighton & Hove Bus and Coach Co Ltd
Brighton & Hove City Council,http://statistics.data.gov.uk/id/local-authority/00ML,Public Health,BVAPHE,Public Health,PHE,Third Party Payments,F,Health Authorities,FC,09/10/2015,PAY00804566,PHCM,PH Commissioning,398324.00,Revenue,Brighton & Hove CCG
Brighton & Hove City Council,http://statistics.data.gov.uk/id/local-authority/00ML,Public Health,BVAPHE,Public Health,PHE,Third Party Payments,F,Other Establishments,FH,28/10/2015,PAY00809941,PHCM,PH Commissioning,8937.87,Revenue,Brighton & Hove CCG
Brighton & Hove City Council,http://statistics.data.gov.uk/id/local-authority/00ML,Planning and Development,BVAPLA,Economic Development,ECD,Supplies and Services,E,Miscellaneous Expenses,EM,07/10/2015,PAY00803411,ECOD,Economic Development,1250.00,Revenue,Brighton & Hove Chamber of Commerce
Brighton & Hove City Council,http://statistics.data.gov.uk/id/local-authority/00ML,Public Health,BVAPHE,Public Health,PHE,Third Party Payments,F,Voluntary Associations,FG,14/10/2015,PAY00804987,PHCM,PH Commissioning,12926.00,Revenue,Brighton & Hove Citizens Advice Bureau
Brighton & Hove City Council,http://statistics.data.gov.uk/id/local-authority/00ML,Planning and Development,BVAPLA,Community Development,CDV,Government Grants,K,Specific Grants,KB,23/10/2015,PAY00808235,CMNY,Communities and Equalities,6250.00,Revenue,Brighton & Hove Citizens Advice Bureau
Brighton & Hove City Council,http://statistics.data.gov.uk/id/local-authority/00ML,Planning and Development,BVAPLA,Community Development,CDV,Supplies and Services,E,Miscellaneous Expenses,EM,23/10/2015,PAY00808235,CMNY,Communities and Equalities,44375.00,Revenue,Brighton & Hove Citizens Advice Bureau
Brighton & Hove City Council,http://statistics.data.gov.uk/id/local-authority/00ML,Planning and Development,BVAPLA,Economic Development,ECD,Supplies and Services,E,Grants n Subscriptions,EK,28/10/2015,PAY00809457,CMNY,Communities and Equalities,25000.00,Revenue,Brighton & Hove Citizens Advice Bureau
Brighton & Hove City Council,http://statistics.data.gov.uk/id/local-authority/00ML,Non-BHC Organisations,BVANON,Trusts,TRT,Supplies and Services,E,Services,EF,21/10/2015,PAY00807775,NBHC,Non Council,2970.00,Revenue,Brighton & Hove City Council
Brighton & Hove City Council,http://statistics.data.gov.uk/id/local-authority/00ML,Children`s & Education Serv,BVAEDU,Ed Secondary Ed,EJE,Supplies and Services,E,Services,EF,16/10/2015,PAY00805759,OEDS,Other Education Support,257862.65,Revenue,Brighton & Hove City Schools Services Ltd
Brighton & Hove City Council,http://statistics.data.gov.uk/id/local-authority/00ML,Planning and Development,BVAPLA,Community Development,CDV,Supplies and Services,E,Grants n Subscriptions,EK,14/10/2015,PAY00804865,CMNY,Communities and Equalities,142339.00,Revenue,Brighton & Hove Community Works
Brighton & Hove City Council,http://statistics.data.gov.uk/id/local-authority/00ML,Planning and Development,BVAPLA,Economic Development,ECD,Supplies and Services,E,Grants n Subscriptions,EK,28/10/2015,PAY00809246,CMNY,Communities and Equalities,15000.00,Revenue,Brighton & Hove Community Works
Brighton & Hove City Council,http://statistics.data.gov.uk/id/local-authority/00ML,Public Health,BVAPHE,Public Health,PHE,Supplies and Services,E,Grants n Subscriptions,EK,14/10/2015,PAY00805071,PHCM,PH Commissioning,5078.00,Revenue,Brighton & Hove FareShare
Brighton & Hove City Council,http://statistics.data.gov.uk/id/local-authority/00ML,Planning and Development,BVAPLA,Economic Development,ECD,Supplies and Services,E,Grants n Subscriptions,EK,28/10/2015,PAY00809561,CMNY,Communities and Equalities,3000.00,Revenue,Brighton & Hove FareShare
Brighton & Hove City Council,http://statistics.data.gov.uk/id/local-authority/00ML,Adult Social Care,BVASOC,Info & Early Intervention,PRV,Third Party Payments,F,Other Establishments,FH,21/10/2015,PAY00807342,CONT,Contracts,4168.22,Revenue,Brighton & Hove Federation of Disabled People 
Brighton & Hove City Council,http://statistics.data.gov.uk/id/local-authority/00ML,Planning and Development,BVAPLA,Economic Development,ECD,Supplies and Services,E,Grants n Subscriptions,EK,28/10/2015,PAY00809464,CMNY,Communities and Equalities,5000.00,Revenue,Brighton & Hove Federation of Disabled People 
Brighton & Hove City Council,http://statistics.data.gov.uk/id/local-authority/00ML,Planning and Development,BVAPLA,Economic Development,ECD,Supplies and Services,E,Grants n Subscriptions,EK,28/10/2015,PAY00809682,CMNY,Communities and Equalities,1250.00,Revenue,Brighton & Hove Food Partnership
Brighton & Hove City Council,http://statistics.data.gov.uk/id/local-authority/00ML,Adult Social Care,BVASOC,Info & Early Intervention,PRV,Third Party Payments,F,Other Establishments,FH,21/10/2015,PAY00807213,CONT,Contracts,10672.25,Revenue,Brighton & Hove Impetus Ltd
Brighton & Hove City Council,http://statistics.data.gov.uk/id/local-authority/00ML,Central Support and Overheads,BVACEN,Support Services (SSC),PPT,Supplies and Services,E,Grants n Subscriptions,EK,21/10/2015,PAY00807213,CMNY,Communities and Equalities,17842.50,Revenue,Brighton & Hove Impetus Ltd
Brighton & Hove City Council,http://statistics.data.gov.uk/id/local-authority/00ML,Planning and Development,BVAPLA,Economic Development,ECD,Supplies and Services,E,Grants n Subscriptions,EK,28/10/2015,PAY00809247,CMNY,Communities and Equalities,6250.00,Revenue,Brighton & Hove Impetus Ltd
Brighton & Hove City Council,http://statistics.data.gov.uk/id/local-authority/00ML,Planning and Development,BVAPLA,Economic Development,ECD,Supplies and Services,E,Grants n Subscriptions,EK,28/10/2015,PAY00809298,CMNY,Communities and Equalities,1250.00,Revenue,Brighton & Hove Inclusion Project
Brighton & Hove City Council,http://statistics.data.gov.uk/id/local-authority/00ML,Children`s & Education Serv,BVAEDU,Ed Mgmt and Support Services,EMG,Indirect Employees,B,Training,BM,07/10/2015,PAY00803200,MUSE,Music Service,800.00,Revenue,Brighton & Hove Independent Mediation Service
Brighton & Hove City Council,http://statistics.data.gov.uk/id/local-authority/00ML,Planning and Development,BVAPLA,Economic Development,ECD,Supplies and Services,E,Grants n Subscriptions,EK,28/10/2015,PAY00809191,CMNY,Communities and Equalities,1250.00,Revenue,Brighton & Hove Independent Mediation Service
Brighton & Hove City Council,http://statistics.data.gov.uk/id/local-authority/00ML,Adult Social Care,BVASOC,Info & Early Intervention,PRV,Third Party Payments,F,Other Establishments,FH,21/10/2015,PAY00807239,CONT,Contracts,5358.50,Revenue,Brighton & Hove LGBT Switchboard
Brighton & Hove City Council,http://statistics.data.gov.uk/id/local-authority/00ML,Public Health,BVAPHE,Public Health,PHE,Third Party Payments,F,Voluntary Associations,FG,21/10/2015,PAY00807239,PHCM,PH Commissioning,5250.00,Revenue,Brighton & Hove LGBT Switchboard
Brighton & Hove City Council,http://statistics.data.gov.uk/id/local-authority/00ML,Planning and Development,BVAPLA,Economic Development,ECD,Supplies and Services,E,Grants n Subscriptions,EK,28/10/2015,PAY00809283,CMNY,Communities and Equalities,7000.00,Revenue,Brighton & Hove LGBT Switchboard
Brighton & Hove City Council,http://statistics.data.gov.uk/id/local-authority/00ML,Housing General Fund,BVAHOG,Hsing Welfare,HGW,Transfer Payments,G,Supporting People,GF,30/10/2015,PAY00810345,AHRS,Housing Related Support,10473.08,Revenue,Brighton & Hove Mencap
Brighton & Hove City Council,http://statistics.data.gov.uk/id/local-authority/00ML,Children`s & Education Serv,BVAEDU,Ed Special Ed,EKE,Third Party Payments,F,Other Agencies,FL,14/10/2015,PAY00804832,SEN,SEN,2326.00,Revenue,Brighton & Hove Montessori School
Brighton & Hove City Council,http://statistics.data.gov.uk/id/local-authority/00ML,Children`s & Education Serv,BVAEDU,Ed Ed Other LA Attrib Sch,ELA,Transport Related,D,Public Transport,DD,07/10/2015,PAY00803401,OEDS,Other Education Support,1524.60,Revenue,Brighton & Hove Radio Cabs Ltd
Brighton & Hove City Council,http://statistics.data.gov.uk/id/local-authority/00ML,Children`s & Education Serv,BVAEDU,Support Services (SSC),PPT,Transport Related,D,Public Transport,DD,07/10/2015,PAY00803401,OEDS,Other Education Support,1162.00,Revenue,Brighton & Hove Radio Cabs Ltd
Brighton & Hove City Council,http://statistics.data.gov.uk/id/local-authority/00ML,Highways and Transportation,BVAHRT,Public Transport,PTR,Transport Related,D,Public Transport,DD,21/10/2015,PAY00807420,CONF,Concessionary Fares,841.00,Revenue,Brighton & Hove Radio Cabs Ltd
Brighton & Hove City Council,http://statistics.data.gov.uk/id/local-authority/00ML,Children`s & Education Serv,BVAEDU,Ed Ed Other LA Attrib Sch,ELA,Transport Related,D,Public Transport,DD,23/10/2015,PAY00808461,OEDS,Other Education Support,5783.50,Revenue,Brighton & Hove Radio Cabs Ltd
Brighton & Hove City Council,http://statistics.data.gov.uk/id/local-authority/00ML,Children`s & Education Serv,BVAEDU,Support Services (SSC),PPT,Transport Related,D,Public Transport,DD,23/10/2015,PAY00808461,OEDS,Other Education Support,5119.00,Revenue,Brighton & Hove Radio Cabs Ltd
Brighton & Hove City Council,http://statistics.data.gov.uk/id/local-authority/00ML,Children`s & Education Serv,BVAEDU,Ed Ed Other LA Attrib Sch,ELA,Transport Related,D,Other Transport Costs,DG,28/10/2015,PAY00809554,OEDS,Other Education Support,6881.14,Revenue,Brighton & Hove Radio Cabs Ltd
Brighton & Hove City Council,http://statistics.data.gov.uk/id/local-authority/00ML,Cultural and Related Serv,BVACUL,Culture and Heritage,CHG,Transport Related,D,Public Transport,DD,28/10/2015,PAY00809554,VENU,Venues,500.58,Revenue,Brighton & Hove Radio Cabs Ltd
Brighton & Hove City Council,http://statistics.data.gov.uk/id/local-authority/00ML,Housing Revenue Account,BVAHOU,Hsing Management - HRA,HGM,Supplies and Services,E,Grants n Subscriptions,EK,14/10/2015,PAY00804983,HIII,Income Involvement Improvement,1191.84,Revenue,Brighton & Hove Social Welfare Educational Trust
Brighton & Hove City Council,http://statistics.data.gov.uk/id/local-authority/00ML,Planning and Development,BVAPLA,Economic Development,ECD,Supplies and Services,E,Grants n Subscriptions,EK,28/10/2015,PAY00809452,CMNY,Communities and Equalities,22500.00,Revenue,Brighton & Hove Social Welfare Educational Trust
Brighton & Hove City Council,http://statistics.data.gov.uk/id/local-authority/00ML,Planning and Development,BVAPLA,Economic Development,ECD,Supplies and Services,E,Grants n Subscriptions,EK,28/10/2015,PAY00809266,CMNY,Communities and Equalities,2500.00,Revenue,Brighton & Hove Speak Out
Brighton & Hove City Council,http://statistics.data.gov.uk/id/local-authority/00ML,Central Services to the Public,BVACEN,Reg - Birth Death and Marriage,RBD,Transport Related,D,Public Transport,DD,21/10/2015,PAY00807337,LIFE,Life Events,220.66,Revenue,Brighton & Hove Streamline Taxis Ltd
Brighton & Hove City Council,http://statistics.data.gov.uk/id/local-authority/00ML,Central Support and Overheads,BVACEN,Support Services (SSC),PPT,Transport Related,D,Public Transport,DD,21/10/2015,PAY00807337,COMU,Communications,113.63,Revenue,Brighton & Hove Streamline Taxis Ltd
Brighton & Hove City Council,http://statistics.data.gov.uk/id/local-authority/00ML,Central Support and Overheads,BVACEN,Support Services (SSC),PPT,Transport Related,D,Public Transport,DD,21/10/2015,PAY00807337,POLY,Policy,99.10,Revenue,Brighton & Hove Streamline Taxis Ltd
Brighton & Hove City Council,http://statistics.data.gov.uk/id/local-authority/00ML,Children`s & Education Serv,BVAEDU,Ed EY Central,EAE,Transport Related,D,Public Transport,DD,21/10/2015,PAY00807337,EYRS,Early Years,338.80,Revenue,Brighton & Hove Streamline Taxis Ltd
Brighton & Hove City Council,http://statistics.data.gov.uk/id/local-authority/00ML,Housing Revenue Account,BVAHOU,Hsing Management - HRA,HGM,Transport Related,D,Public Transport,DD,21/10/2015,PAY00807337,HIII,Income Involvement Improvement,613.80,Revenue,Brighton & Hove Streamline Taxis Ltd
Brighton & Hove City Council,http://statistics.data.gov.uk/id/local-authority/00ML,Central Support and Overheads,BVACEN,Support Services (SSC),PPT,Transport Related,D,Public Transport,DD,23/10/2015,PAY00808234,DEMO,Democratic Services,258.72,Revenue,Brighton & Hove Streamline Taxis Ltd
Brighton & Hove City Council,http://statistics.data.gov.uk/id/local-authority/00ML,Central Support and Overheads,BVACEN,Support Services (SSC),PPT,Transport Related,D,Public Transport,DD,23/10/2015,PAY00808234,POLY,Policy,36.74,Revenue,Brighton & Hove Streamline Taxis Ltd
Brighton & Hove City Council,http://statistics.data.gov.uk/id/local-authority/00ML,Cultural and Related Serv,BVACUL,Tourism,TRM,Transport Related,D,Public Transport,DD,23/10/2015,PAY00808234,TOMA,Tourism and Marketing,209.88,Revenue,Brighton & Hove Streamline Taxis Ltd
Brighton & Hove City Council,http://statistics.data.gov.uk/id/local-authority/00ML,Environment & Regulatory Serv,BVAERS,Court Services,CRT,Supplies and Services,E,Equip't Furniture n Materials,EA,02/10/2015,PAY00802459,LIFE,Life Events,4214.50,Revenue,Brighton & Sussex University Hospitals NHS Trust
Brighton & Hove City Council,http://statistics.data.gov.uk/id/local-authority/00ML,Cultural and Related Serv,BVACUL,Recreation and Sport,REC,Premises Related,C,Repair Maint n Alterations,CA,07/10/2015,PAY00803312,SEAS,Seafront Services,224.60,Revenue,Brighton & Sussex University Hospitals NHS Trust
Brighton & Hove City Council,http://statistics.data.gov.uk/id/local-authority/00ML,Public Health,BVAPHE,Public Health,PHE,Third Party Payments,F,Health Authorities,FC,07/10/2015,PAY00803312,PHCM,PH Commissioning,75000.00,Revenue,Brighton & Sussex University Hospitals NHS Trust
Brighton & Hove City Council,http://statistics.data.gov.uk/id/local-authority/00ML,Environment & Regulatory Serv,BVAERS,Court Services,CRT,Supplies and Services,E,Equip't Furniture n Materials,EA,16/10/2015,PAY00805858,LIFE,Life Events,606.82,Revenue,Brighton & Sussex University Hospitals NHS Trust
Brighton & Hove City Council,http://statistics.data.gov.uk/id/local-authority/00ML,Planning and Development,BVAPLA,Planning Policy,PLP,Customer n Client Receipts,M,Fees n Charges,MB,16/10/2015,PAY00805858,DEVP,Development Planning,385.00,Revenue,Brighton & Sussex University Hospitals NHS Trust
Brighton & Hove City Council,http://statistics.data.gov.uk/id/local-authority/00ML,Public Health,BVAPHE,Public Health,PHE,Third Party Payments,F,Health Authorities,FC,16/10/2015,PAY00805858,PHCM,PH Commissioning,1742500.00,Revenue,Brighton & Sussex University Hospitals NHS Trust
Brighton & Hove City Council,http://statistics.data.gov.uk/id/local-authority/00ML,Adult Social Care,BVASOC,Social Care Activities,ACM,Third Party Payments,F,Other Establishments,FH,28/10/2015,PAY00809458,ASIT,Assessment and SIT,1901.97,Revenue,Brighton & Sussex University Hospitals NHS Trust
Brighton & Hove City Council,http://statistics.data.gov.uk/id/local-authority/00ML,Adult Social Care,BVASOC,Social Care Activities,ACM,Transport Related,D,Other Transport Costs,DG,28/10/2015,PAY00809458,ASIT,Assessment and SIT,0.00,Revenue,Brighton & Sussex University Hospitals NHS Trust
Brighton & Hove City Council,http://statistics.data.gov.uk/id/local-authority/00ML,Housing General Fund,BVAHOG,Homelessness,HML,Customer n Client Receipts,M,Fees n Charges,MB,14/10/2015,PAY00805262,SSHS,Seaside Homes (BHSCH),292372.00,Revenue,Brighton and Hove Seaside Community Homes Ltd
Brighton & Hove City Council,http://statistics.data.gov.uk/id/local-authority/00ML,Adult Social Care,BVASOC,ASC Learning Disabilities,ALD,Customer n Client Receipts,M,Fees n Charges,MB,14/10/2015,PAY00805242,LDIS,Learning Disabilities,-204.00,Revenue,Brighton and Sussex Care Ltd
Brighton & Hove City Council,http://statistics.data.gov.uk/id/local-authority/00ML,Adult Social Care,BVASOC,ASC Learning Disabilities,ALD,Third Party Payments,F,Other Establishments,FH,14/10/2015,PAY00805242,LDIS,Learning Disabilities,24494.36,Revenue,Brighton and Sussex Care Ltd
Brighton & Hove City Council,http://statistics.data.gov.uk/id/local-authority/00ML,Adult Social Care,BVASOC,ASC Learning Disabilities,ALD,Customer n Client Receipts,M,Fees n Charges,MB,21/10/2015,PAY00807593,LDIS,Learning Disabilities,-204.00,Revenue,Brighton and Sussex Care Ltd
Brighton & Hove City Council,http://statistics.data.gov.uk/id/local-authority/00ML,Adult Social Care,BVASOC,ASC Learning Disabilities,ALD,Third Party Payments,F,Other Establishments,FH,21/10/2015,PAY00807593,LDIS,Learning Disabilities,23925.04,Revenue,Brighton and Sussex Care Ltd
Brighton & Hove City Council,http://statistics.data.gov.uk/id/local-authority/00ML,Adult Social Care,BVASOC,ASC Mental Health Support,MHP,Customer n Client Receipts,M,Fees n Charges,MB,21/10/2015,PAY00807593,MENH,Mental Health Support,-104.00,Revenue,Brighton and Sussex Care Ltd
Brighton & Hove City Council,http://statistics.data.gov.uk/id/local-authority/00ML,Adult Social Care,BVASOC,ASC Mental Health Support,MHP,Third Party Payments,F,Other Establishments,FH,21/10/2015,PAY00807593,MENH,Mental Health Support,2441.32,Revenue,Brighton and Sussex Care Ltd
Brighton & Hove City Council,http://statistics.data.gov.uk/id/local-authority/00ML,Adult Social Care,BVASOC,ASC Learning Disabilities,ALD,Third Party Payments,F,Other Establishments,FH,23/10/2015,PAY00808666,LDIS,Learning Disabilities,-365.32,Revenue,Brighton and Sussex Care Ltd
Brighton & Hove City Council,http://statistics.data.gov.uk/id/local-authority/00ML,Adult Social Care,BVASOC,ASC Mental Health Support,MHP,Customer n Client Receipts,M,Fees n Charges,MB,23/10/2015,PAY00808666,MENH,Mental Health Support,-104.00,Revenue,Brighton and Sussex Care Ltd
Brighton & Hove City Council,http://statistics.data.gov.uk/id/local-authority/00ML,Adult Social Care,BVASOC,ASC Mental Health Support,MHP,Third Party Payments,F,Other Establishments,FH,23/10/2015,PAY00808666,MENH,Mental Health Support,2441.32,Revenue,Brighton and Sussex Care Ltd
Brighton & Hove City Council,http://statistics.data.gov.uk/id/local-authority/00ML,Corporate Income & Expenditure,BVAOEX,Non Service Costs,NVC,Premises Related,C,Departmental Administration,CHA,30/10/2015,PAY00810474,FINS,Financial Services,454.20,Revenue,Brighton Community Compost Centre Ltd
Brighton & Hove City Council,http://statistics.data.gov.uk/id/local-authority/00ML,Cultural and Related Serv,BVACUL,Culture and Heritage,CHG,Premises Related,C,Energy Costs,CB,23/10/2015,PAY00808120,RPMU,Royal Pavilion and Museums,4332.74,Revenue,Brighton Dome & Festival Ltd
Brighton & Hove City Council,http://statistics.data.gov.uk/id/local-authority/00ML,Central Support and Overheads,BVACEN,Support Services (SSC),PPT,Premises Related,C,Repair Maint n Alterations,CA,28/10/2015,PAY00809237,PROP,Property and Design,34659.00,Revenue,Brighton Dome & Festival Ltd
Brighton & Hove City Council,http://statistics.data.gov.uk/id/local-authority/00ML,Planning and Development,BVAPLA,Economic Development,ECD,Supplies and Services,E,Grants n Subscriptions,EK,28/10/2015,PAY00809570,CMNY,Communities and Equalities,2500.00,Revenue,Brighton Festival Fringe Limited
Brighton & Hove City Council,http://statistics.data.gov.uk/id/local-authority/00ML,Cultural and Related Serv,BVACUL,Recreation and Sport,REC,Premises Related,C,Rents Payable,CC,07/10/2015,PAY00803201,SDEV,Sports Development,100.00,Revenue,Brighton Football Club (RFU) Ltd
Brighton & Hove City Council,http://statistics.data.gov.uk/id/local-authority/00ML,Cultural and Related Serv,BVACUL,Recreation and Sport,REC,Supplies and Services,E,Miscellaneous Expenses,EM,07/10/2015,PAY00803201,SDEV,Sports Development,8650.00,Revenue,Brighton Football Club (RFU) Ltd
Brighton & Hove City Council,http://statistics.data.gov.uk/id/local-authority/00ML,Planning and Development,BVAPLA,Economic Development,ECD,Supplies and Services,E,Grants n Subscriptions,EK,30/10/2015,PAY00811200,CMNY,Communities and Equalities,2000.00,Revenue,Brighton Handball Club
Brighton & Hove City Council,http://statistics.data.gov.uk/id/local-authority/00ML,Housing General Fund,BVAHOG,Hsing Welfare,HGW,Transfer Payments,G,Supporting People,GF,02/10/2015,PAY00802461,AHRS,Housing Related Support,7505.00,Revenue,Brighton Housing Trust
Brighton & Hove City Council,http://statistics.data.gov.uk/id/local-authority/00ML,Adult Social Care,BVASOC,ASC Mental Health Support,MHP,Customer n Client Receipts,M,Fees n Charges,MB,07/10/2015,PAY00803314,MENH,Mental Health Support,2589.59,Revenue,Brighton Housing Trust
Brighton & Hove City Council,http://statistics.data.gov.uk/id/local-authority/00ML,Public Health,BVAPHE,Public Health,PHE,Third Party Payments,F,Voluntary Associations,FG,07/10/2015,PAY00803314,PHCM,PH Commissioning,5960.75,Revenue,Brighton Housing Trust
Brighton & Hove City Council,http://statistics.data.gov.uk/id/local-authority/00ML,Adult Social Care,BVASOC,Info & Early Intervention,PRV,Third Party Payments,F,Other Establishments,FH,21/10/2015,PAY00807340,CCGC,CCG Commissioned Services,25565.00,Revenue,Brighton Housing Trust
Brighton & Hove City Council,http://statistics.data.gov.uk/id/local-authority/00ML,Adult Social Care,BVASOC,Social Care Activities,ACM,Third Party Payments,F,Other Establishments,FH,21/10/2015,PAY00807340,SPFT,S75 SPFT,6102.00,Revenue,Brighton Housing Trust
Brighton & Hove City Council,http://statistics.data.gov.uk/id/local-authority/00ML,Public Health,BVAPHE,Public Health,PHE,Third Party Payments,F,Voluntary Associations,FG,21/10/2015,PAY00807340,PHCM,PH Commissioning,100670.25,Revenue,Brighton Housing Trust
Brighton & Hove City Council,http://statistics.data.gov.uk/id/local-authority/00ML,Adult Social Care,BVASOC,ASC Mental Health Support,MHP,Customer n Client Receipts,M,Fees n Charges,MB,23/10/2015,PAY00808237,MENH,Mental Health Support,-309.00,Revenue,Brighton Housing Trust
Brighton & Hove City Council,http://statistics.data.gov.uk/id/local-authority/00ML,Adult Social Care,BVASOC,ASC Mental Health Support,MHP,Third Party Payments,F,Other Establishments,FH,23/10/2015,PAY00808237,MENH,Mental Health Support,15756.00,Revenue,Brighton Housing Trust
Brighton & Hove City Council,http://statistics.data.gov.uk/id/local-authority/00ML,Planning and Development,BVAPLA,Economic Development,ECD,Supplies and Services,E,Grants n Subscriptions,EK,28/10/2015,PAY00809462,CMNY,Communities and Equalities,35000.00,Revenue,Brighton Housing Trust
Brighton & Hove City Council,http://statistics.data.gov.uk/id/local-authority/00ML,Housing General Fund,BVAHOG,Hsing Welfare,HGW,Transfer Payments,G,Supporting People,GF,30/10/2015,PAY00810486,AHRS,Housing Related Support,108774.84,Revenue,Brighton Housing Trust
Brighton & Hove City Council,http://statistics.data.gov.uk/id/local-authority/00ML,Children`s & Education Serv,BVAEDU,Ed EY Central,EAE,Third Party Payments,F,Other Establishments,FH,28/10/2015,PAY00809302,SOCK,Social Work,7825.00,Revenue,Brighton Oasis Project
Brighton & Hove City Council,http://statistics.data.gov.uk/id/local-authority/00ML,Planning and Development,BVAPLA,Economic Development,ECD,Supplies and Services,E,Grants n Subscriptions,EK,28/10/2015,PAY00809302,CMNY,Communities and Equalities,6250.00,Revenue,Brighton Oasis Project
Brighton & Hove City Council,http://statistics.data.gov.uk/id/local-authority/00ML,Central Support and Overheads,BVACEN,Support Services (SSC),PPT,Premises Related,C,Repair Maint n Alterations,CA,02/10/2015,PAY00802594,PROP,Property and Design,309.60,Revenue,Brighton Paper Round Ltd
Brighton & Hove City Council,http://statistics.data.gov.uk/id/local-authority/00ML,Central Support and Overheads,BVACEN,Support Services (SSC),PPT,Premises Related,C,Repair Maint n Alterations,CA,23/10/2015,PAY00808365,PROP,Property and Design,1380.00,Revenue,Brighton Paper Round Ltd
Brighton & Hove City Council,http://statistics.data.gov.uk/id/local-authority/00ML,Planning and Development,BVAPLA,Economic Development,ECD,Supplies and Services,E,Services,EF,02/10/2015,PAY00802356,SUAI,Sustainability & International,1133.33,Revenue,Brighton Peace & Environment Centre
Brighton & Hove City Council,http://statistics.data.gov.uk/id/local-authority/00ML,Planning and Development,BVAPLA,Economic Development,ECD,Supplies and Services,E,Miscellaneous Expenses,EM,14/10/2015,PAY00804844,SUAI,Sustainability & International,1133.33,Revenue,Brighton Peace & Environment Centre
Brighton & Hove City Council,http://statistics.data.gov.uk/id/local-authority/00ML,Planning and Development,BVAPLA,Economic Development,ECD,Supplies and Services,E,Miscellaneous Expenses,EM,21/10/2015,PAY00807198,SUAI,Sustainability & International,833.33,Revenue,Brighton Peace & Environment Centre
Brighton & Hove City Council,http://statistics.data.gov.uk/id/local-authority/00ML,Planning and Development,BVAPLA,Economic Development,ECD,Supplies and Services,E,Grants n Subscriptions,EK,28/10/2015,PAY00809193,CMNY,Communities and Equalities,1250.00,Revenue,Brighton Peace & Environment Centre
Brighton & Hove City Council,http://statistics.data.gov.uk/id/local-authority/00ML,Planning and Development,BVAPLA,Economic Development,ECD,Supplies and Services,E,Miscellaneous Expenses,EM,28/10/2015,PAY00809193,SUAI,Sustainability & International,1816.66,Revenue,Brighton Peace & Environment Centre
Brighton & Hove City Council,http://statistics.data.gov.uk/id/local-authority/00ML,Housing General Fund,BVAHOG,Hsing Strat Advice and RSLs,HGR,Premises Related,C,Rents Payable,CC,07/10/2015,PAY00803214,ASSA,Hostel Accommodation,288.00,Revenue,Brighton Quaker Meeting
Brighton & Hove City Council,http://statistics.data.gov.uk/id/local-authority/00ML,Central Support and Overheads,BVACEN,Support Services (SSC),PPT,Premises Related,C,Rents Payable,CC,16/10/2015,PAY00805711,PROP,Property and Design,180.00,Revenue,Brighton Quaker Meeting
Brighton & Hove City Council,http://statistics.data.gov.uk/id/local-authority/00ML,Children`s & Education Serv,BVAEDU,Child Srvcs - Other Yth Jstce,FYX,Premises Related,C,Rents Payable,CC,16/10/2015,PAY00805711,FAMP,Families\Prevention,72.00,Revenue,Brighton Quaker Meeting
Brighton & Hove City Council,http://statistics.data.gov.uk/id/local-authority/00ML,Children`s & Education Serv,BVAEDU,Ed Ed Other LA Attrib Sch,ELA,Premises Related,C,Rents Payable,CC,16/10/2015,PAY00805711,SACH,Standards and Achievement,111.00,Revenue,Brighton Quaker Meeting
Brighton & Hove City Council,http://statistics.data.gov.uk/id/local-authority/00ML,Children`s & Education Serv,BVAEDU,Ed Ed Other Strat Mgt,ENM,Premises Related,C,Rents Payable,CC,16/10/2015,PAY00805711,SACH,Standards and Achievement,364.00,Revenue,Brighton Quaker Meeting
Brighton & Hove City Council,http://statistics.data.gov.uk/id/local-authority/00ML,Children`s & Education Serv,BVAEDU,Ed Mgmt and Support Services,EMG,Premises Related,C,Rents Payable,CC,16/10/2015,PAY00805711,SACH,Standards and Achievement,40.50,Revenue,Brighton Quaker Meeting
Brighton & Hove City Council,http://statistics.data.gov.uk/id/local-authority/00ML,Cultural and Related Serv,BVACUL,Culture and Heritage,CHG,Supplies and Services,E,Equip't Furniture n Materials,EA,21/10/2015,PAY00807665,RPMU,Royal Pavilion and Museums,320.84,Revenue,Brighton Soundsystem
Brighton & Hove City Council,http://statistics.data.gov.uk/id/local-authority/00ML,Children`s & Education Serv,BVAEDU,Ed Special Ed,EKE,Third Party Payments,F,Other Agencies,FL,09/10/2015,PAY00804363,SEN,SEN,529.95,Revenue,Brighton Steiner School Ltd
Brighton & Hove City Council,http://statistics.data.gov.uk/id/local-authority/00ML,Planning and Development,BVAPLA,Economic Development,ECD,Supplies and Services,E,Grants n Subscriptions,EK,30/10/2015,PAY00810362,CMNY,Communities and Equalities,3000.00,Revenue,Brighton Surf & Lifesaving Club
Brighton & Hove City Council,http://statistics.data.gov.uk/id/local-authority/00ML,Children`s & Education Serv,BVAEDU,Ed Ed Other Other,ENF,Third Party Payments,F,Other Establishments,FH,30/10/2015,PAY00810786,OEDS,Other Education Support,980.00,Revenue,Brighton Table Tennis Club
Brighton & Hove City Council,http://statistics.data.gov.uk/id/local-authority/00ML,Central Support and Overheads,BVACEN,Support Services (SSC),PPT,Supplies and Services,E,Equip't Furniture n Materials,EA,09/10/2015,PAY00804065,COMU,Communications,67.41,Revenue,Brighton Tools & Fixings Ltd
Brighton & Hove City Council,http://statistics.data.gov.uk/id/local-authority/00ML,Cultural and Related Serv,BVACUL,Management Services (DEC),MGT,Transport Related,D,Direct Transport Costs,DA,09/10/2015,PAY00804065,CIPK,City Parks,30.00,Revenue,Brighton Tools & Fixings Ltd
Brighton & Hove City Council,http://statistics.data.gov.uk/id/local-authority/00ML,Cultural and Related Serv,BVACUL,Open Spaces,PEN,Supplies and Services,E,Equip't Furniture n Materials,EA,09/10/2015,PAY00804065,CIPK,City Parks,159.00,Revenue,Brighton Tools & Fixings Ltd
Brighton & Hove City Council,http://statistics.data.gov.uk/id/local-authority/00ML,Central Support and Overheads,BVACEN,Support Services (SSC),PPT,Supplies and Services,E,Equip't Furniture n Materials,EA,23/10/2015,PAY00808236,COMU,Communications,453.95,Revenue,Brighton Tools & Fixings Ltd
Brighton & Hove City Council,http://statistics.data.gov.uk/id/local-authority/00ML,Cultural and Related Serv,BVACUL,Culture and Heritage,CHG,Premises Related,C,Repair Maint n Alterations,CA,23/10/2015,PAY00808236,VENU,Venues,97.20,Revenue,Brighton Tools & Fixings Ltd
Brighton & Hove City Council,http://statistics.data.gov.uk/id/local-authority/00ML,Planning and Development,BVAPLA,Economic Development,ECD,Supplies and Services,E,Grants n Subscriptions,EK,28/10/2015,PAY00809465,CMNY,Communities and Equalities,10250.00,Revenue,Brighton Unemployed Ctr Families Project Playroom
Brighton & Hove City Council,http://statistics.data.gov.uk/id/local-authority/00ML,Planning and Development,BVAPLA,Economic Development,ECD,Supplies and Services,E,Grants n Subscriptions,EK,28/10/2015,PAY00809455,CMNY,Communities and Equalities,3000.00,Revenue,Brighton Women`s Centre Ltd
Brighton & Hove City Council,http://statistics.data.gov.uk/id/local-authority/00ML,Housing General Fund,BVAHOG,Hsing Welfare,HGW,Transfer Payments,G,Supporting People,GF,30/10/2015,PAY00810353,AHRS,Housing Related Support,48461.83,Revenue,Brighton YMCA
Brighton & Hove City Council,http://statistics.data.gov.uk/id/local-authority/00ML,Children`s & Education Serv,BVAEDU,Ed EY Central,EAE,Supplies and Services,E,Grants n Subscriptions,EK,14/10/2015,PAY00804894,EYRS,Early Years,9600.00,Revenue,"Brighton, Hove & District Early Childhood Project"
Brighton & Hove City Council,http://statistics.data.gov.uk/id/local-authority/00ML,Planning and Development,BVAPLA,Economic Development,ECD,Supplies and Services,E,Grants n Subscriptions,EK,28/10/2015,PAY00809297,CMNY,Communities and Equalities,2000.00,Revenue,"Brighton, Hove & District Early Childhood Project"
Brighton & Hove City Council,http://statistics.data.gov.uk/id/local-authority/00ML,Cultural and Related Serv,BVACUL,Recreation and Sport,REC,Premises Related,C,Energy Costs,CB,23/10/2015,PAY00808107,SEAS,Seafront Services,337.76,Revenue,British Gas Business
Brighton & Hove City Council,http://statistics.data.gov.uk/id/local-authority/00ML,Cultural and Related Serv,BVACUL,Recreation and Sport,REC,Premises Related,C,Energy Costs,CB,23/10/2015,PAY00808227,SEAS,Seafront Services,269.91,Revenue,British Gas Business
Brighton & Hove City Council,http://statistics.data.gov.uk/id/local-authority/00ML,Housing Revenue Account,BVAHOU,Hsing Management - HRA,HGM,Supplies and Services,E,Communications n Computing,EH,02/10/2015,PAY00802650,HTEN,Tenancy Services,112.49,Revenue,British Telecommunications Plc
Brighton & Hove City Council,http://statistics.data.gov.uk/id/local-authority/00ML,Non I&E,BVANON,CAP Sport and Recreation,4RC,Plant Machinery n Equipment,PE2,Plant Machinery n Equipment,PE2L5,02/10/2015,PAY00802650,MJPR,Major Projects,10920.00,Capital,British Telecommunications Plc
Brighton & Hove City Council,http://statistics.data.gov.uk/id/local-authority/00ML,Highways and Transportation,BVAHRT,Highways and Roads - Mntnce,HRM,Supplies and Services,E,Communications n Computing,EH,21/10/2015,PAY00807421,HIGH,Highways,50914.20,Revenue,British Telecommunications Plc
Brighton & Hove City Council,http://statistics.data.gov.uk/id/local-authority/00ML,Housing Revenue Account,BVAHOU,Hsing Management - HRA,HGM,Supplies and Services,E,Communications n Computing,EH,21/10/2015,PAY00807421,HTEN,Tenancy Services,46.99,Revenue,British Telecommunications Plc
Brighton & Hove City Council,http://statistics.data.gov.uk/id/local-authority/00ML,Cultural and Related Serv,BVACUL,Open Spaces,PEN,Third Party Payments,F,Private Contractors,FJ,09/10/2015,PAY00804348,CIPK,City Parks,1489.00,Revenue,Brook Data Consulting
Brighton & Hove City Council,http://statistics.data.gov.uk/id/local-authority/00ML,Adult Social Care,BVASOC,ASC Physical Support,PHY,Customer n Client Receipts,M,Fees n Charges,MB,07/10/2015,PAY00803615,PHYS,Physical Support,-505.20,Revenue,Brooklands
Brighton & Hove City Council,http://statistics.data.gov.uk/id/local-authority/00ML,Adult Social Care,BVASOC,ASC Physical Support,PHY,Third Party Payments,F,Other Establishments,FH,07/10/2015,PAY00803615,PHYS,Physical Support,1824.00,Revenue,Brooklands
Brighton & Hove City Council,http://statistics.data.gov.uk/id/local-authority/00ML,Adult Social Care,BVASOC,ASC Memory Cognition Support,MEM,Customer n Client Receipts,M,Fees n Charges,MB,14/10/2015,PAY00804849,COGN,Memory Cognition Support,-42.00,Revenue,BS Project Services Ltd
Brighton & Hove City Council,http://statistics.data.gov.uk/id/local-authority/00ML,Adult Social Care,BVASOC,ASC Memory Cognition Support,MEM,Third Party Payments,F,Other Establishments,FH,14/10/2015,PAY00804849,COGN,Memory Cognition Support,207.87,Revenue,BS Project Services Ltd
Brighton & Hove City Council,http://statistics.data.gov.uk/id/local-authority/00ML,Adult Social Care,BVASOC,ASC Mental Health Support,MHP,Third Party Payments,F,Other Establishments,FH,14/10/2015,PAY00804849,MENH,Mental Health Support,594.10,Revenue,BS Project Services Ltd
Brighton & Hove City Council,http://statistics.data.gov.uk/id/local-authority/00ML,Adult Social Care,BVASOC,ASC Physical Support,PHY,Customer n Client Receipts,M,Fees n Charges,MB,14/10/2015,PAY00804849,PHYS,Physical Support,-1794.71,Revenue,BS Project Services Ltd
Brighton & Hove City Council,http://statistics.data.gov.uk/id/local-authority/00ML,Adult Social Care,BVASOC,ASC Physical Support,PHY,Third Party Payments,F,Other Establishments,FH,14/10/2015,PAY00804849,PHYS,Physical Support,16696.92,Revenue,BS Project Services Ltd
Brighton & Hove City Council,http://statistics.data.gov.uk/id/local-authority/00ML,Adult Social Care,BVASOC,ASC Substance Misuse,ADM,Third Party Payments,F,Other Establishments,FH,14/10/2015,PAY00804849,SUBM,Substance Misuse Support,551.01,Revenue,BS Project Services Ltd
Brighton & Hove City Council,http://statistics.data.gov.uk/id/local-authority/00ML,Adult Social Care,BVASOC,ASC Memory Cognition Support,MEM,Customer n Client Receipts,M,Fees n Charges,MB,23/10/2015,PAY00808104,COGN,Memory Cognition Support,-14.00,Revenue,BS Project Services Ltd
Brighton & Hove City Council,http://statistics.data.gov.uk/id/local-authority/00ML,Adult Social Care,BVASOC,ASC Memory Cognition Support,MEM,Third Party Payments,F,Other Establishments,FH,23/10/2015,PAY00808104,COGN,Memory Cognition Support,15.10,Revenue,BS Project Services Ltd
Brighton & Hove City Council,http://statistics.data.gov.uk/id/local-authority/00ML,Adult Social Care,BVASOC,ASC Mental Health Support,MHP,Third Party Payments,F,Other Establishments,FH,23/10/2015,PAY00808104,MENH,Mental Health Support,268.71,Revenue,BS Project Services Ltd
Brighton & Hove City Council,http://statistics.data.gov.uk/id/local-authority/00ML,Adult Social Care,BVASOC,ASC Physical Support,PHY,Customer n Client Receipts,M,Fees n Charges,MB,23/10/2015,PAY00808104,PHYS,Physical Support,-494.00,Revenue,BS Project Services Ltd
Brighton & Hove City Council,http://statistics.data.gov.uk/id/local-authority/00ML,Adult Social Care,BVASOC,ASC Physical Support,PHY,Third Party Payments,F,Other Establishments,FH,23/10/2015,PAY00808104,PHYS,Physical Support,4549.73,Revenue,BS Project Services Ltd
Brighton & Hove City Council,http://statistics.data.gov.uk/id/local-authority/00ML,Adult Social Care,BVASOC,ASC Substance Misuse,ADM,Third Party Payments,F,Other Establishments,FH,23/10/2015,PAY00808104,SUBM,Substance Misuse Support,211.43,Revenue,BS Project Services Ltd
Brighton & Hove City Council,http://statistics.data.gov.uk/id/local-authority/00ML,Central Support and Overheads,BVACEN,Support Services (SSC),PPT,Supplies and Services,E,Communications n Computing,EH,02/10/2015,PAY00802467,LEGS,Legal Services,451.38,Revenue,BT Business Direct Ltd
Brighton & Hove City Council,http://statistics.data.gov.uk/id/local-authority/00ML,Environment & Regulatory Serv,BVAERS,Management Services (DEC),MGT,Transport Related,D,Direct Transport Costs,DA,21/10/2015,PAY00807210,CICL,City Clean,249.75,Revenue,BTR Brakes (Sussex) Ltd
Brighton & Hove City Council,http://statistics.data.gov.uk/id/local-authority/00ML,Library Services,BVACUL,Library Service,LBR,Supplies and Services,E,Goods for Resale,EG,07/10/2015,PAY00803507,LIBS,Libraries,302.76,Revenue,Bug Art Ltd
Brighton & Hove City Council,http://statistics.data.gov.uk/id/local-authority/00ML,Cultural and Related Serv,BVACUL,Open Spaces,PEN,Third Party Payments,F,Private Contractors,FJ,14/10/2015,PAY00805487,CIPK,City Parks,3330.00,Revenue,Building for Wildlife
Brighton & Hove City Council,http://statistics.data.gov.uk/id/local-authority/00ML,Central Support and Overheads,BVACEN,Support Services (SSC),PPT,Third Party Payments,F,Other Establishments,FH,09/10/2015,PAY00804232,FINS,Financial Services,13382.80,Revenue,BUPA Care Services
Brighton & Hove City Council,http://statistics.data.gov.uk/id/local-authority/00ML,Central Support and Overheads,BVACEN,Support Services (SSC),PPT,Third Party Payments,F,Other Establishments,FH,14/10/2015,PAY00805050,FINS,Financial Services,4787.10,Revenue,BUPA Care Services
Brighton & Hove City Council,http://statistics.data.gov.uk/id/local-authority/00ML,Adult Social Care,BVASOC,ASC Memory Cognition Support,MEM,Customer n Client Receipts,M,Fees n Charges,MB,23/10/2015,PAY00808434,COGN,Memory Cognition Support,-10422.72,Revenue,BUPA Care Services
Brighton & Hove City Council,http://statistics.data.gov.uk/id/local-authority/00ML,Adult Social Care,BVASOC,ASC Memory Cognition Support,MEM,Third Party Payments,F,Other Establishments,FH,23/10/2015,PAY00808434,COGN,Memory Cognition Support,22111.92,Revenue,BUPA Care Services
Brighton & Hove City Council,http://statistics.data.gov.uk/id/local-authority/00ML,Adult Social Care,BVASOC,ASC Physical Support,PHY,Customer n Client Receipts,M,Fees n Charges,MB,23/10/2015,PAY00808434,PHYS,Physical Support,-8461.32,Revenue,BUPA Care Services
Brighton & Hove City Council,http://statistics.data.gov.uk/id/local-authority/00ML,Adult Social Care,BVASOC,ASC Physical Support,PHY,Third Party Payments,F,Other Establishments,FH,23/10/2015,PAY00808434,PHYS,Physical Support,28575.20,Revenue,BUPA Care Services
Brighton & Hove City Council,http://statistics.data.gov.uk/id/local-authority/00ML,Adult Social Care,BVASOC,ASC Memory Cognition Support,MEM,Customer n Client Receipts,M,Fees n Charges,MB,30/10/2015,PAY00810654,COGN,Memory Cognition Support,-675.04,Revenue,BUPA Care Services
Brighton & Hove City Council,http://statistics.data.gov.uk/id/local-authority/00ML,Adult Social Care,BVASOC,ASC Memory Cognition Support,MEM,Third Party Payments,F,Other Establishments,FH,30/10/2015,PAY00810654,COGN,Memory Cognition Support,2500.68,Revenue,BUPA Care Services
Brighton & Hove City Council,http://statistics.data.gov.uk/id/local-authority/00ML,Central Support and Overheads,BVACEN,Support Services (SSC),PPT,Third Party Payments,F,Other Establishments,FH,30/10/2015,PAY00810654,FINS,Financial Services,-339.71,Revenue,BUPA Care Services
Brighton & Hove City Council,http://statistics.data.gov.uk/id/local-authority/00ML,Adult Social Care,BVASOC,ASC Physical Support,PHY,Customer n Client Receipts,M,Fees n Charges,MB,16/10/2015,PAY00807018,PHYS,Physical Support,-543.04,Revenue,Burdyke Lodge
Brighton & Hove City Council,http://statistics.data.gov.uk/id/local-authority/00ML,Adult Social Care,BVASOC,ASC Physical Support,PHY,Third Party Payments,F,Other Establishments,FH,16/10/2015,PAY00807018,PHYS,Physical Support,1679.16,Revenue,Burdyke Lodge
Brighton & Hove City Council,http://statistics.data.gov.uk/id/local-authority/00ML,Adult Social Care,BVASOC,Social Care Activities,ACM,Supplies and Services,E,Services,EF,07/10/2015,PAY00803785,ASIT,Assessment and SIT,1666.67,Revenue,Burke Niazi Ltd
Brighton & Hove City Council,http://statistics.data.gov.uk/id/local-authority/00ML,Children`s & Education Serv,BVAEDU,Child Srvcs - Fostering,FLF,Third Party Payments,F,Other Establishments,FH,14/10/2015,PAY00805459,AVFM,Agency Placements\VFM,4059.60,Revenue,By The Bridge Ltd
Brighton & Hove City Council,http://statistics.data.gov.uk/id/local-authority/00ML,Housing General Fund,BVAHOG,Homelessness,HML,Premises Related,C,Cleaning n Domestic Supps,CH,07/10/2015,PAY00803249,ASSA,Hostel Accommodation,165.00,Revenue,C & C Cleaning Services Ltd
Brighton & Hove City Council,http://statistics.data.gov.uk/id/local-authority/00ML,Housing General Fund,BVAHOG,Homelessness,HML,Premises Related,C,Repair Maint n Alterations,CA,07/10/2015,PAY00803249,ASSA,Hostel Accommodation,90.00,Revenue,C & C Cleaning Services Ltd
Brighton & Hove City Council,http://statistics.data.gov.uk/id/local-authority/00ML,Cultural and Related Serv,BVACUL,Culture and Heritage,CHG,Premises Related,C,Cleaning n Domestic Supps,CH,23/10/2015,PAY00808161,VENU,Venues,450.00,Revenue,C & C Cleaning Services Ltd
Brighton & Hove City Council,http://statistics.data.gov.uk/id/local-authority/00ML,Housing General Fund,BVAHOG,Homelessness,HML,Premises Related,C,Repair Maint n Alterations,CA,30/10/2015,PAY00810418,ASSA,Hostel Accommodation,495.00,Revenue,C & C Cleaning Services Ltd
Brighton & Hove City Council,http://statistics.data.gov.uk/id/local-authority/00ML,Cultural and Related Serv,BVACUL,Culture and Heritage,CHG,Premises Related,C,Repair Maint n Alterations,CA,09/10/2015,PAY00804066,VENU,Venues,582.74,Revenue,C Brewer & Sons Ltd
Brighton & Hove City Council,http://statistics.data.gov.uk/id/local-authority/00ML,Adult Social Care,BVASOC,ASC Memory Cognition Support,MEM,Supplies and Services,E,Catering,EB,07/10/2015,PAY00803316,RCOP,Resource Centres Older People,304.20,Revenue,C H Mears And Sons Ltd
Brighton & Hove City Council,http://statistics.data.gov.uk/id/local-authority/00ML,Adult Social Care,BVASOC,ASC Memory Cognition Support,MEM,Supplies and Services,E,Catering,EB,09/10/2015,PAY00804067,RCOP,Resource Centres Older People,284.55,Revenue,C H Mears And Sons Ltd
Brighton & Hove City Council,http://statistics.data.gov.uk/id/local-authority/00ML,Housing General Fund,BVAHOG,Homelessness,HML,Supplies and Services,E,Catering,EB,09/10/2015,PAY00804067,ASSA,Hostel Accommodation,39.60,Revenue,C H Mears And Sons Ltd
Brighton & Hove City Council,http://statistics.data.gov.uk/id/local-authority/00ML,Environment & Regulatory Serv,BVAERS,Flood Drainage and Coast Prtn,FDC,Premises Related,C,Repair Maint n Alterations,CA,02/10/2015,PAY00802643,HWEN,Highways Engineering,5338.96,Revenue,C J Thorne & Co Ltd
Brighton & Hove City Council,http://statistics.data.gov.uk/id/local-authority/00ML,Highways and Transportation,BVAHRT,Highways and Roads - Mntnce,HRM,Premises Related,C,Repair Maint n Alterations,CA,02/10/2015,PAY00802643,HWEN,Highways Engineering,3231.03,Revenue,C J Thorne & Co Ltd
Brighton & Hove City Council,http://statistics.data.gov.uk/id/local-authority/00ML,Cultural and Related Serv,BVACUL,Recreation and Sport,REC,Premises Related,C,Repair Maint n Alterations,CA,09/10/2015,PAY00804248,SEAS,Seafront Services,3632.20,Revenue,C J Thorne & Co Ltd
Brighton & Hove City Council,http://statistics.data.gov.uk/id/local-authority/00ML,Non I&E,BVANON,CAP Transport,4TR,New Construction n Conversion,PB,New Construction n Conversion,PBL5,23/10/2015,PAY00808456,HWEN,Highways Engineering,117134.46,Capital,C J Thorne & Co Ltd
Brighton & Hove City Council,http://statistics.data.gov.uk/id/local-authority/00ML,Central Support and Overheads,BVACEN,Support Services (SSC),PPT,Supplies and Services,E,Communications n Computing,EH,07/10/2015,PAY00803470,PERR,Performance & Improvement,60300.00,Revenue,CAM Management Solutions Ltd
Brighton & Hove City Council,http://statistics.data.gov.uk/id/local-authority/00ML,Children`s & Education Serv,BVAEDU,Ed Special Ed,EKE,Third Party Payments,F,Other Agencies,FL,02/10/2015,PAY00802418,SEN,SEN,43345.04,Revenue,Cambian Asperger Syndrome Services Limited
Brighton & Hove City Council,http://statistics.data.gov.uk/id/local-authority/00ML,Public Health,BVAPHE,Public Health,PHE,Third Party Payments,F,Health Authorities,FC,07/10/2015,PAY00803674,PHCM,PH Commissioning,783.45,Revenue,Cambridge Community Services
Brighton & Hove City Council,http://statistics.data.gov.uk/id/local-authority/00ML,Adult Social Care,BVASOC,ASC Physical Support,PHY,Customer n Client Receipts,M,Fees n Charges,MB,16/10/2015,PAY00805654,PHYS,Physical Support,-487.16,Revenue,Camelot Nursing Home
Brighton & Hove City Council,http://statistics.data.gov.uk/id/local-authority/00ML,Adult Social Care,BVASOC,ASC Physical Support,PHY,Third Party Payments,F,Other Establishments,FH,16/10/2015,PAY00805654,PHYS,Physical Support,2101.05,Revenue,Camelot Nursing Home
Brighton & Hove City Council,http://statistics.data.gov.uk/id/local-authority/00ML,Adult Social Care,BVASOC,ASC Physical Support,PHY,Customer n Client Receipts,M,Fees n Charges,MB,23/10/2015,PAY00808064,PHYS,Physical Support,-505.20,Revenue,Camelot Nursing Home
Brighton & Hove City Council,http://statistics.data.gov.uk/id/local-authority/00ML,Adult Social Care,BVASOC,ASC Physical Support,PHY,Third Party Payments,F,Other Establishments,FH,23/10/2015,PAY00808064,PHYS,Physical Support,2420.68,Revenue,Camelot Nursing Home
Brighton & Hove City Council,http://statistics.data.gov.uk/id/local-authority/00ML,Adult Social Care,BVASOC,ASC Physical Support,PHY,Customer n Client Receipts,M,Fees n Charges,MB,07/10/2015,PAY00803668,PHYS,Physical Support,-571.56,Revenue,Cams Ridge Care Home
Brighton & Hove City Council,http://statistics.data.gov.uk/id/local-authority/00ML,Adult Social Care,BVASOC,ASC Physical Support,PHY,Third Party Payments,F,Other Establishments,FH,07/10/2015,PAY00803668,PHYS,Physical Support,2297.12,Revenue,Cams Ridge Care Home
Brighton & Hove City Council,http://statistics.data.gov.uk/id/local-authority/00ML,Cultural and Related Serv,BVACUL,Recreation and Sport,REC,Supplies and Services,E,Miscellaneous Expenses,EM,16/10/2015,PAY00807048,SDEV,Sports Development,1328.40,Revenue,Cap Trac
Brighton & Hove City Council,http://statistics.data.gov.uk/id/local-authority/00ML,Adult Social Care,BVASOC,Social Care Activities,ACM,Supplies and Services,E,Services,EF,02/10/2015,PAY00803067,ASIT,Assessment and SIT,493.22,Revenue,Capacity Matters
Brighton & Hove City Council,http://statistics.data.gov.uk/id/local-authority/00ML,Central Support and Overheads,BVACEN,Support Services (SSC),PPT,Supplies and Services,E,Services,EF,21/10/2015,PAY00807836,LEGS,Legal Services,619.65,Revenue,Capacity Matters
Brighton & Hove City Council,http://statistics.data.gov.uk/id/local-authority/00ML,Children`s & Education Serv,BVAEDU,Child Srvcs - Fostering,FLF,Third Party Payments,F,Other Establishments,FH,14/10/2015,PAY00805185,AVFM,Agency Placements\VFM,3076.00,Revenue,Capstone Foster Care (South East) Ltd
Brighton & Hove City Council,http://statistics.data.gov.uk/id/local-authority/00ML,Cultural and Related Serv,BVACUL,Management Services (DEC),MGT,Transport Related,D,Direct Transport Costs,DA,09/10/2015,PAY00804599,CIPK,City Parks,203.58,Revenue,Car Parts and Accessories
Brighton & Hove City Council,http://statistics.data.gov.uk/id/local-authority/00ML,Housing Revenue Account,BVAHOU,Hsing Management - HRA,HGM,Transport Related,D,Direct Transport Costs,DA,09/10/2015,PAY00804599,HTEN,Tenancy Services,34.44,Revenue,Car Parts and Accessories
Brighton & Hove City Council,http://statistics.data.gov.uk/id/local-authority/00ML,Cultural and Related Serv,BVACUL,Management Services (DEC),MGT,Transport Related,D,Direct Transport Costs,DA,30/10/2015,PAY00811279,CIPK,City Parks,400.33,Revenue,Car Parts and Accessories
Brighton & Hove City Council,http://statistics.data.gov.uk/id/local-authority/00ML,Adult Social Care,BVASOC,Info & Early Intervention,PRV,Third Party Payments,F,Other Establishments,FH,14/10/2015,PAY00804848,CCGC,CCG Commissioned Services,4304.50,Revenue,Care Co-operatives Ltd
Brighton & Hove City Council,http://statistics.data.gov.uk/id/local-authority/00ML,Adult Social Care,BVASOC,ASC Physical Support,PHY,Supplies and Services,E,Communications n Computing,EH,14/10/2015,PAY00805175,HOME,Home Care,5379.43,Revenue,Care Monitoring 2000 Ltd
Brighton & Hove City Council,http://statistics.data.gov.uk/id/local-authority/00ML,Adult Social Care,BVASOC,Info & Early Intervention,PRV,Supplies and Services,E,Communications n Computing,EH,14/10/2015,PAY00805175,CONT,Contracts,10778.45,Revenue,Care Monitoring 2000 Ltd
Brighton & Hove City Council,http://statistics.data.gov.uk/id/local-authority/00ML,Adult Social Care,BVASOC,ASC Memory Cognition Support,MEM,Customer n Client Receipts,M,Fees n Charges,MB,14/10/2015,PAY00805174,COGN,Memory Cognition Support,-1224.00,Revenue,Care Outlook
Brighton & Hove City Council,http://statistics.data.gov.uk/id/local-authority/00ML,Adult Social Care,BVASOC,ASC Memory Cognition Support,MEM,Third Party Payments,F,Other Establishments,FH,14/10/2015,PAY00805174,COGN,Memory Cognition Support,4751.34,Revenue,Care Outlook
Brighton & Hove City Council,http://statistics.data.gov.uk/id/local-authority/00ML,Adult Social Care,BVASOC,ASC Mental Health Support,MHP,Third Party Payments,F,Other Establishments,FH,14/10/2015,PAY00805174,MENH,Mental Health Support,1834.80,Revenue,Care Outlook
Brighton & Hove City Council,http://statistics.data.gov.uk/id/local-authority/00ML,Adult Social Care,BVASOC,ASC Physical Support,PHY,Customer n Client Receipts,M,Fees n Charges,MB,14/10/2015,PAY00805174,PHYS,Physical Support,-5122.72,Revenue,Care Outlook
Brighton & Hove City Council,http://statistics.data.gov.uk/id/local-authority/00ML,Adult Social Care,BVASOC,ASC Physical Support,PHY,Third Party Payments,F,Other Establishments,FH,14/10/2015,PAY00805174,PHYS,Physical Support,38244.31,Revenue,Care Outlook
Brighton & Hove City Council,http://statistics.data.gov.uk/id/local-authority/00ML,Adult Social Care,BVASOC,ASC Sensory Support,AHV,Third Party Payments,F,Other Establishments,FH,14/10/2015,PAY00805174,SORY,Sensory Support,361.47,Revenue,Care Outlook
Brighton & Hove City Council,http://statistics.data.gov.uk/id/local-authority/00ML,Adult Social Care,BVASOC,ASC Memory Cognition Support,MEM,Customer n Client Receipts,M,Fees n Charges,MB,21/10/2015,PAY00807526,COGN,Memory Cognition Support,-306.00,Revenue,Care Outlook
Brighton & Hove City Council,http://statistics.data.gov.uk/id/local-authority/00ML,Adult Social Care,BVASOC,ASC Memory Cognition Support,MEM,Third Party Payments,F,Other Establishments,FH,21/10/2015,PAY00807526,COGN,Memory Cognition Support,1177.19,Revenue,Care Outlook
Brighton & Hove City Council,http://statistics.data.gov.uk/id/local-authority/00ML,Adult Social Care,BVASOC,ASC Mental Health Support,MHP,Third Party Payments,F,Other Establishments,FH,21/10/2015,PAY00807526,MENH,Mental Health Support,415.76,Revenue,Care Outlook
Brighton & Hove City Council,http://statistics.data.gov.uk/id/local-authority/00ML,Adult Social Care,BVASOC,ASC Physical Support,PHY,Customer n Client Receipts,M,Fees n Charges,MB,21/10/2015,PAY00807526,PHYS,Physical Support,-1032.00,Revenue,Care Outlook
Brighton & Hove City Council,http://statistics.data.gov.uk/id/local-authority/00ML,Adult Social Care,BVASOC,ASC Physical Support,PHY,Third Party Payments,F,Other Establishments,FH,21/10/2015,PAY00807526,PHYS,Physical Support,9133.52,Revenue,Care Outlook
Brighton & Hove City Council,http://statistics.data.gov.uk/id/local-authority/00ML,Adult Social Care,BVASOC,ASC Sensory Support,AHV,Third Party Payments,F,Other Establishments,FH,21/10/2015,PAY00807526,SORY,Sensory Support,86.18,Revenue,Care Outlook
Brighton & Hove City Council,http://statistics.data.gov.uk/id/local-authority/00ML,Adult Social Care,BVASOC,ASC Memory Cognition Support,MEM,Customer n Client Receipts,M,Fees n Charges,MB,30/10/2015,PAY00810941,COGN,Memory Cognition Support,-300.00,Revenue,Care Outlook
Brighton & Hove City Council,http://statistics.data.gov.uk/id/local-authority/00ML,Adult Social Care,BVASOC,ASC Memory Cognition Support,MEM,Third Party Payments,F,Other Establishments,FH,30/10/2015,PAY00810941,COGN,Memory Cognition Support,1000.75,Revenue,Care Outlook
Brighton & Hove City Council,http://statistics.data.gov.uk/id/local-authority/00ML,Adult Social Care,BVASOC,ASC Mental Health Support,MHP,Third Party Payments,F,Other Establishments,FH,30/10/2015,PAY00810941,MENH,Mental Health Support,425.75,Revenue,Care Outlook
Brighton & Hove City Council,http://statistics.data.gov.uk/id/local-authority/00ML,Adult Social Care,BVASOC,ASC Physical Support,PHY,Customer n Client Receipts,M,Fees n Charges,MB,30/10/2015,PAY00810941,PHYS,Physical Support,-1100.00,Revenue,Care Outlook
Brighton & Hove City Council,http://statistics.data.gov.uk/id/local-authority/00ML,Adult Social Care,BVASOC,ASC Physical Support,PHY,Third Party Payments,F,Other Establishments,FH,30/10/2015,PAY00810941,PHYS,Physical Support,10041.49,Revenue,Care Outlook
Brighton & Hove City Council,http://statistics.data.gov.uk/id/local-authority/00ML,Adult Social Care,BVASOC,ASC Sensory Support,AHV,Third Party Payments,F,Other Establishments,FH,30/10/2015,PAY00810941,SORY,Sensory Support,90.17,Revenue,Care Outlook
Brighton & Hove City Council,http://statistics.data.gov.uk/id/local-authority/00ML,Adult Social Care,BVASOC,ASC Memory Cognition Support,MEM,Third Party Payments,F,Other Establishments,FH,23/10/2015,PAY00808119,COGN,Memory Cognition Support,5769.08,Revenue,Care UK Community Partnerships Ltd
Brighton & Hove City Council,http://statistics.data.gov.uk/id/local-authority/00ML,Adult Social Care,BVASOC,ASC Memory Cognition Support,MEM,Customer n Client Receipts,M,Fees n Charges,MB,14/10/2015,PAY00804888,COGN,Memory Cognition Support,-113.10,Revenue,Care UK Homecare
